Workbook

Sheet Resumo
A3: SISTEMA DE ABASTECIMENTO D'ÁGUA - REMANSO - BA
A5: RESUMO GERAL DO SISTEMA
B6: DATABASE: FEVEREIRO/2014
A7: ITEM | B7: DISCRIMINAÇÃO | C7: UNIDADE | D7: QUANT. | E7: V. UNITÁRIO | F7: V. TOTAL
A8: 1.0 | B8: SERVIÇOS PRELIMINARES | C8: un | D8: 1 | E8: ='SERV. PRELIM.'!G17 -> 225724.23 | F8: =E8*D8 -> 225724.23
A9: 1.1 | B9: CONSTRUÇÃO DE SISTEMA DE ABASTECIMENTO DE ÁGUA TRATADA NOS POVOADOS DO SISTEMA 01 (NOVO MARCO, ALGODÕES, MELOSA, LAGOA GRANDE, CACIMBA DO MEIO, SALGADINHA, LAGOINHA, JUÁ E ALECRIM/MANTEIGA) | C9: un | D9: 1 | E9: ='Sistema 1'!I6 -> 409087.64 | F9: =E9*D9 -> 409087.64
A10: 1.2 | B10: CONSTRUÇÃO DE SISTEMA DE ABASTECIMENTO DE ÁGUA TRATADA NOS POVOADOS DO SISTEMA 02 (VILA NOSSA SENHORA APARECIDA, MELANCIA, SUVELA, COAN, SANTA AROEIRA, PIMENTEIRAS, VENEZA E IGARAPÉ LAGOA DOURADA) | C10: un | D10: 1 | E10: ='Sistema 2'!I346 -> 768331.31 | F10: =ROUND(E10*D10,2) -> 768331.31
A11: 1.3 | B11: CONSTRUÇÃO DE SISTEMA DE ABASTECIMENTO DE ÁGUA TRATADA NOS POVOADOS DO SISTEMA 03 (MALHADINHA, SÃO FRANCISCO, VENTURA, RIACHINHO, TELHEIROS, TABULEIRO E LAGES) | C11: un | D11: 1 | E11: ='Sistema 3'!I8 -> 684489.93 | F11: =ROUND(E11*D11,2) -> 684489.93
A12: 1.4 | B12: SISTEMA DE AUTOMAÇÃO | C12: un | D12: 3 | E12: =Composições!H589 -> 31827.54002 | F12: =ROUND(E12*D12,2) -> 95482.62
E13: TOTAL GERAL | F13: =SUM(F8:F12) -> 2183115.73
B15: BDI SERVIÇOS: 26,44%
B16: BDI INSUMOS: 16,80 %

Sheet SERV. PRELIM.
F3: DATABASE: FEVEREIRO/2014
A4: SISTEMA DE ABASTECIMENTO D'ÁGUA - REMANSO - BA
A7: ITEM | B7: DISCRIMINAÇÃO | C7: UNIDADE | D7: QUANT. | E7: P.UNIT. | F7: P.UNIT.COM BDI-26,44% | G7: Total
A8: COMPOSIÇÃO | B8: ADMINISTRAÇÃO LOCAL E MANUTENÇÃO DE CANTEIRO DE OBRAS | C8: Unid. | D8: 1 | E8: =Composições!H26 -> 123120.19 | F8: =ROUND(E8*(1+$I$8),2) -> 155673.17 | G8: =IF(F8="",ROUND(#REF!*D8,2),ROUND(F8*D8,2)) -> 155673.17 | H8: BDI | I8: 0.2644
A9: 74209/001 | B9: PLACA DE IDENTIFICAÇÃO DE OBRA COM 4,5X4M - FORNECIMENTO E INSTALAÇÃO - MODELO CODEVASF-MI | C9: M² | D9: 20 | E9: 169.69 | F9: =ROUND(E9*(1+$I$8),2) -> 214.56 | G9: =IF(F9="",ROUND(#REF!*D9,2),ROUND(F9*D9,2)) -> 4291.2
A10: 73805/001 | B10: INSTALAÇÃO DE CANTEIRO DE OBRAS | C10: M² | D10: 60 | E10: 205.48 | F10: 259.81 | G10: =IF(F10="",ROUND(#REF!*D10,2),ROUND(F10*D10,2)) -> 15588.6
A11: 73948/016 | B11: LIMPEZA DO TERRENO - RASPAGEM E LIMPEZA MANUAL | C11: M² | D11: 900 | E11: 1.75 | F11: =ROUND(E11*(1+$I$8),2) -> 2.21 | G11: =IF(F11="",ROUND(#REF!*D11,2),ROUND(F11*D11,2)) -> 1989
A12: COMPOSIÇÃO | B12: MOBILIZAÇÃO DE EQUIPAMENTO E PESSOAS | C12: Und. | D12: 1 | E12: =Composições!H79 -> 7642.16 | F12: =ROUND(E12*(1+$I$8),2) -> 9662.75 | G12: =IF(F12="",ROUND(#REF!*D12,2),ROUND(F12*D12,2)) -> 9662.75
A13: COMPOSIÇÃO | B13: DESMOBILIZAÇÃO DE EQUIPAMENTO E PESSOAS | C13: Und. | D13: 1 | E13: =Composições!H91 -> 7642.16 | F13: 9662.75 | G13: =IF(F13="",ROUND(#REF!*D13,2),ROUND(F13*D13,2)) -> 9662.75
A14: COMPOSIÇÃO | B14: CARGA, TRANSPORTE E DESCARGA DE MATERIAIS ORIUNDOS DO REMANESCENTE DE OBRA DO CONTRATO ANTERIOR | C14: Und. | D14: 1 | E14: =Composições!H101 -> 1297.04 | F14: 1639.98 | G14: =IF(F14="",ROUND(#REF!*D14,2),ROUND(F14*D14,2)) -> 1639.98
A15: COTAÇÃO | B15: ALUGUEL DE BANHEIROS QUÍMICOS PARA ABRIGO PROVISÓRIO | C15: mês | D15: 6 | E15: 500 | F15: 632.2 | G15: =ROUND(F15*D15,2) -> 3793.2
A16: COMPOSIÇÃO | B16: VEÍCULO TIPO COMERCIAL LEVE 1.4 FLEX (85cv),C/ ARCONDICIONADO, DIREÇÃO HIDRÁULICA E TRAVAS ELÉTRICAS PARA APOIO À FISCALIZAÇÃO, INCL. DIREÇÃO HIDRÁULICA E TRAVAS ELÉTRICAS PARA APOIO À FISCALIZAÇÃO, INCLUINDO DESPESAS C/COMBUSTÍVEL, ÓLEOS, MANUTENÇÃO, LICENCIAMENTO, SEGUROS E IMPOSTOS. | C16: mês | D16: 6 | E16: =Composições!H66 -> 3087.57407 | F16: 3903.93 | G16: =IF(F16="",ROUND(#REF!*D16,2),ROUND(F16*D16,2)) -> 23423.58
B17: SUB-TOTAL MATERIAIS | G17: =ROUND(SUM(G8:G16),2) -> 225724.23

Sheet Sistema 1
A3: SISTEMA DE ABASTECIMENTO D'ÁGUA - REMANSO - BA
A4: REPLANILHAMENTO DA PLANILHA DO SISTEMA 01
A5: ITEM | C5: ITEM (SINAPI FEV/14 - C/DESONERAÇÃO) | D5: DESCRIÇÃO DE SERVIÇOS | E5: Unid. | F5: Quant. | G5: P.UNIT. | H5: P.UNIT.C /BDI | I5: Total
D6: SISTEMA 01 | I6: =(SUM(I7:I328)/2) -> 409087.64 | J6: BDI | M6: A0 1004812 | N6: maquinas veículos e impl agrícolas | O6: 1.008103909
C7: SERVIÇOS | I7: =SUM(I11:I257) -> 336194.18 | J7: SERV. | K7: 0.2644
A8: 1 | C8: UNIDADE DO SISTEMA: CAPTAÇÃO FLUTUANTE | J8: MAT | K8: 0.18 | M8: col 13 | N8: MDO ESPECIALIZADA | O8: 1.008103909
A9: 1.0 | C9: OBRAS CIVIS
A10: 1.1 | C10: Execução de blocos de ancoragem | M10: COL 15 | N10: MAQ. EQUIPAMENTOS | O10: 1.015079684
A11: 1.1.1 | B11: 74076/001 | C11: 74076/001 | D11: FORMA PINHO 3A P/CONCRETO EM FUNDAÇÃO REAPROV 3 VEZES - CORTE/MONTAGEM /ESCORAMENTO/DESFORMA, NÃO INCLUÍDO DEMOLDANTE | E11: m² | F11: 35.6 | G11: 38.9 | H11: =ROUND(G11*(1+$K$7),2) -> 49.19 | I11: =ROUND(H11*F11,2) -> 1751.16 | M11: 1004812
A12: 1.1.2 | B12: COMPOSIÇÃO | C12: COMPOSIÇÃO | D12: CONCRETO ESTRUTURAL, FCK = 15MPA, INCL. FORNEC. DOS MAT., PROD., LANÇ., ADEN. E CURA, EM FUNDAÇÕES | E12: m³ | F12: =4.45 -> 4.45 | G12: =Composições!H139 -> 507.1478 | H12: =ROUND(G12*(1+$K$7),2) -> 641.24 | I12: =ROUND(H12*F12,2) -> 2853.52
A13: 1.1.3 | B13: 74254/002 | C13: 74254/002 | D13: ARMAÇÃO AÇO CA-50, DIAMETRO 6.3 (1/4) Á 12,5mm (1/2) - FORNECIMENTO E CORTE (Kg PERDA DE 10%) / DOBRA / COLOCAÇÃO | E13: Kg | F13: =480 -> 480 | G13: 6.05 | H13: =ROUND(G13*(1+$K$7),2) -> 7.65 | I13: 3672
A14: 1.2 | C14: Pintura
A15: 1.2.1 | B15: 74064/001 | C15: 74064/001 | D15: FUNDO ANTICORROSIVO A BASE DE OXIDO DE FERRO (ZARÇÃO)-DUAS DEMÃOS | E15: m² | F15: 21.18 | G15: 10.18 | H15: 12.87 | I15: 272.59
A16: 1.2.2 | B16: 73924/002 | C16: 73924/002 | D16: PINTURA ESMALTE EM ESQUADRIA DE FERRO - 2 DEMÃOS | E16: m² | F16: 21.18 | G16: 13.2 | H16: 16.69 | I16: 353.49
A17: 1.3 | C17: Assentamento, montagem e instalações
A18: 1.3.1 | B18: COMPOSIÇÃO | C18: COMPOSIÇÃO | D18: ASSENTAMENTO DE MANGOTE FLEXÍVEL PARA CAPTAÇÃO FLUTUANTE Ø 100 MM | E18: m | F18: 15 | G18: =Composições!H111 -> 38.7 | H18: 48.93 | I18: 733.95
A19: 1.4 | C19: Instalação Elétrica
A20: 1.4.1 | B20: COMPOSIÇÃO | C20: COMPOSIÇÃO | D20: FORNECIMENTO E INSTALAÇÃO DOS ELETRODUTOS, CABOS, QUADRO, PONTOS DE FORÇA DOS MOTORES, TOMADA, INTERRUPTOR, LUMINÁRIAS DA CAPTAÇÃO | E20: und | F20: 1 | G20: ='Composição eletrica'!G248 -> 8826.16 | H20: =G20 -> 8826.16 | I20: 8826.16
A21: 1.4.2 | B21: COMPOSIÇÃO | C21: COMPOSIÇÃO | D21: FORNECIMENTO E INSTALAÇÃO DA SUBESTAÇÃO ABAIXADORA DE 15 KVA E INTERLIGAÇÃO (CIRCUITO ALIMENTADOR) DA SE AO CCM DA CAPTAÇÃO | E21: und | F21: 1 | G21: ='Composição eletrica'!G201 -> 16835.61 | H21: =G21 -> 16835.61 | I21: 16835.61
A22: 1.4.3 | B22: COMPOSIÇÃO | C22: COMPOSIÇÃO | D22: FORNECIMENTO E INSTALAÇÃO PARA A EXTENSÃO DE REDE ELÉTRICA DE MÉDIA TENSÃO, 13,8KV, TRIFÁSICO | E22: km | F22: 0.05 | G22: ='Composição eletrica'!G307 -> 70593.22 | H22: 70593.22 | I22: 3529.66
A23: 1.4.4 | B23: 73836/001 | C23: 73836/001 | D23: INSTALAÇÃO DE CONJUNTO MOTOR-BOMBA HORIZONTAL ATÉ 10CV | E23: und | F23: 2 | G23: 229.54 | H23: 229.54 | I23: =ROUND(H23*F23,2) -> 459.08
A24: 1.4.5 | B24: COMPOSIÇÃO | C24: COMPOSIÇÃO | D24: INSTALAÇÃO/MONTAGEM ELÉTRICA E MECÂNICA DA CAPTAÇÃO FLUTUANTE | E24: und | F24: 1 | G24: ='Composição eletrica'!G355 -> 434.6 | H24: 434.6 | I24: 434.6
A25: 1.4.6 | B25: COMPOSIÇÃO | C25: COMPOSIÇÃO | D25: INSTALAÇÃO DE CABO EPROTENAX 4 x 35 mm. | E25: m | F25: 680 | G25: =Composições!H243 -> 5.29 | H25: 6.69 | I25: 4549.2
A26: 1.4.7 | B26: COMPOSIÇÃO | C26: COMPOSIÇÃO | D26: INSTALAÇÃO DE ELETRODUTO PVC 4", INCLUSIVE ESCAVAÇÃO E REATERRO | E26: m | F26: 120 | G26: =Composições!H264 -> 22.63 | H26: 28.61 | I26: 3433.2
A27: 1.5 | C27: Diversos
A28: 1.5.1 | B28: COMPOSIÇÃO | C28: COMPOSIÇÃO | D28: CORRENTE EM AÇO GALVANIZADO | E28: m | F28: 60 | G28: =Composições!H595 -> 19.98797737 | H28: =ROUND(G28*(1+$K$7),2) -> 25.27 | I28: 1516.2
A30: 2 | C30: UNIDADE DO SISTEMA: CONSTRUÇÃO DO ABRIGO PARA COMANDO DA BOMBA
A31: 2.0 | C31: OBRAS CIVIS
A32: 2.1 | C32: Esquadrias
A33: 2.1.1 | B33: 85334 | C33: 85334 | D33: RETIRADA DE ESQUARIA METALICA | E33: m² | F33: 1.68 | G33: 6.3 | H33: =ROUND(G33*(1+$K$7),2) -> 7.97 | I33: 13.39
A34: 2.1.2 | B34: COMPOSIÇÃO | C34: COMPOSIÇÃO | D34: ASSENTAMENTO DE ESQUADRIA METALICA | E34: m² | F34: 1.68 | G34: =Composições!H274 -> 27.95 | H34: =ROUND(G34*(1+$K$7),2) -> 35.34 | I34: 59.37
A35: 2.2 | C35: Pintura
A36: 2.2.1 | B36: COMPOSIÇÃO | C36: COMPOSIÇÃO | D36: PINTURA DA LOGOMARCA DA CODEVASF | E36: un | F36: 2 | G36: =Composições!H347 -> 188.312 | H36: =ROUND(G36*(1+$K$7),2) -> 238.1 | I36: 476.2
A37: 2.2.2 | B37: 73924/002 | C37: 73924/002 | D37: PINTURA ESMALTE EM ESQUADRIA DE FERRO - 2 DEMÃOS | E37: m² | F37: 3.36 | G37: 13.2 | H37: 16.69 | I37: 56.08
A38: 2.2.3 | B38: 73954/003 | C38: 73954/003 | D38: PINTURA LATEX ACRILICA - 1 DEMÃOS | E38: m² | F38: 59.05 | G38: 4.2 | H38: 5.31 | I38: 313.56
A39: 2.3 | C39: Urbanização
A40: 2.3.1 | B40: 74084/001 | C40: 74084/001 | D40: PORTA CADEADO ZICADO OXIDADO PRETO COMCADEADO DE AÇO GRAFITADO OXIDADO ENVERNIZADO 45MM | E40: un | F40: 1 | G40: 31.5 | H40: =ROUND(G40*(1+$K$7),2) -> 39.83 | I40: 39.83
A41: 2.3.2 | B41: 73924/002 | C41: 73924/002 | D41: PINTURA ESMALTE EM ESQUADRIA DE FERRO - 2 DEMÃOS | E41: m² | F41: 4 | G41: 13.2 | H41: 16.69 | I41: 66.76
A42: 2.4 | C42: Serviços finais
A43: 2.4.1 | B43: 9537 | C43: 9537 | D43: LIMPEZA FINAL DA OBRA | E43: m² | F43: 5.29 | G43: 1 | H43: =ROUND(G43*(1+$K$7),2) -> 1.26 | I43: 6.67
A45: 3 | C45: UNIDADE DO SISTEMA: ADUTORA DE ÁGUA BRUTA - FLUTUANTE/ ETA
A46: 3.0 | C46: OBRAS CIVIS
A47: 3.1 | C47: Serviços Preliminares
A48: 3.1.1 | B48: 73679 | C48: 73679 | D48: LOCAÇÃO DA ADUTORA | E48: m | F48: 680 | G48: 0.56 | H48: =ROUND(G48*(1+$K$7),2) -> 0.71 | I48: 482.8
A49: 3.1.2 | B49: COMPOSIÇÃO | C49: COMPOSIÇÃO | D49: ACOMPANHAMENTO TOPOGRÁFICO | E49: dia | F49: 1.5 | G49: =Composições!H284 -> 205.68 | H49: 260.06 | I49: 390.09
A50: 3.1.3 | B50: COMPOSIÇÃO | C50: COMPOSIÇÃO | D50: SINALIZAÇÃO ABERTA SEM ILUMINAÇÃO, MONTANTES DE H=1,00M E TELA EM PVC, INCLUINDO FORNECIMNTO, TRANSPORTE, INSTALAÇÃO E REMOÇÃO PARA OUTRO LOCAL DA OBRA | E50: m | F50: 380 | G50: =Composições!H295 -> 23.22 | H50: 29.36 | I50: 11156.8
A51: 3.2 | C51: Movimento de terra
A52: 3.2.1 | B52: 73965/010 | C52: 73965/010 | D52: ESCAVAÇÃO MANUAL DE VALAS EM SOLO DE 1ª CAT. EXEC. COM PROFUNDIDADE ATÉ 1,5M EXCLUINDO ESGOTAMENTO / ESCORAMENTO | E52: m³ | F52: =60+4 -> 64 | G52: 22.07 | H52: =ROUND(G52*(1+$K$7),2) -> 27.91 | I52: 1786.24
A53: 3.2.2 | B53: 73962/013 | C53: 73962/013 | D53: ESCAVACAO DE VALA NAO ESCORADA EM MATERIAL 1A CATEGORIA , PROFUNDIDADE ATE 1,5 M COM ESCAVADEIRA HIDRAULICA 105 HP(CAPACIDADE DE 0,78M3), SEM ESGOTAMENTO | E53: m³ | F53: =223.34+60 -> 283.34 | G53: 3.59 | H53: 4.54 | I53: 1286.36
A54: 3.2.3 | B54: SERVIÇO 74015/001 | C54: SERVIÇO 74015/001 | D54: EXEC. DE ATERRO EM VALAS/POCOS/CAVAS DE FUNDACAO C/ SOLO PROVENIENTE DAS ESCAVACOES, INCL. LANCAM., ESPALHAM., COMPACT. C/ PLACA VIBRAT., SOQUETE PNEUMATICO | E54: m³ | F54: 223.34 | G54: 14.97 | H54: 18.93 | I54: 4227.83
A55: 3.2.4 | B55: 74010/001 | C55: 74010/001 | D55: CARGA E DESCARGA MECANIZADA DE MATERIAL DE 1ª CATEGORIA EM CAMINHÃO BASCULANTE | E55: m³ | F55: =(F52+F53)-F54 -> 124 | G55: 0.98 | H55: 1.24 | I55: 153.76
A56: 3.2.5 | B56: 72855 | C56: 72855 | D56: TRANSPORTE LOCAL COM CAMINHÃO BASCULHANTE 6M³, EM RODOVIA EM LEITO NATURAL DMT 800 A 1.000M | E56: m³ | F56: =F55 -> 124 | G56: 2.79 | H56: 3.53 | I56: 437.72
A57: 3.3 | C57: Assentamento e Envelopamento das tubulações
A58: 3.3.1 | B58: COMPOSIÇÃO | C58: COMPOSIÇÃO | D58: CARGA E DESCARGA DE TUBULAÇÃO EM POLIETILENO PARA Ø ATÉ 160MM | E58: m | F58: 680 | G58: =Composições!H304 -> 1.4778816 | H58: =ROUND(G58*(1+$K$7),2) -> 1.87 | I58: 1271.6
A59: 3.3.2 | B59: COMPOSIÇÃO | C59: COMPOSIÇÃO | D59: MOMENTO DE TRANSPORTE DE TUBULAÇÃO, PEÇAS E CONEXÕES EM POLIETILENO DE ALTA DENSIDADE, PEAD, PE-80 ATÉ 160 MM | E59: m | F59: 680 | G59: =Composições!H313 -> 0.9462 | H59: 1.2 | I59: 816
A60: 3.3.3 | B60: COMPOSIÇÃO | C60: COMPOSIÇÃO | D60: ASSENTAMENTO DE TUBO DE POLIETILENO PEAD PE-80 PN 12,5 DN 125 MM | E60: m | F60: 680 | G60: =Composições!H519 -> 1.1 | H60: =ROUND(G60*(1+$K$7),2) -> 1.39 | I60: 945.2
A61: 3.3.4 | B61: 73884/003 | C61: 73884/003 | D61: INSTALAÇÃO DE VÁLVULAS OU REGISTRO COM JUNTA ELÁSTICA DN 100 | E61: un | F61: 1 | G61: 48.62 | H61: =ROUND(G61*(1+$K$7),2) -> 61.48 | I61: 61.48
A62: 3.3.5 | B62: COMPOSIÇÃO | C62: COMPOSIÇÃO | D62: RETIRADA DE TUBO DE POLIETILENO PEAD PE-80 PN 12,5 DN 125 MM | E62: m | F62: 200 | G62: =Composições!H527 -> 1.1 | H62: =ROUND(G62*(1+$K$7),2) -> 1.39 | I62: 278
A63: 3.3.6 | B63: COMPOSIÇÃO | C63: COMPOSIÇÃO | D63: EXECUÇÃO DE ENVELOPAMENTO DE TUBULAÇÃO EM CONCRETO SIMPLES,INCLUIDO PREPARO MECANICO, LANÇAMENTO E ADENSAMENTO. | E63: m³ | F63: 1 | G63: =Composições!H152 -> 687.76 | H63: =ROUND(G63*(1+$K$7),2) -> 869.6 | I63: 869.6
A64: 3.3.7 | B64: COMPOSIÇÃO | C64: COMPOSIÇÃO | D64: ASSENTAMENTO DE CONEXÃO EM PEAD PE-80 EM GERAL | E64: un | F64: 11 | G64: =Composições!H164 -> 91.81 | H64: =ROUND(G64*(1+$K$7),2) -> 116.08 | I64: 1276.88
A65: 3.4 | C65: Caixas para válvulas, ventosas e energia
A66: 3.4.1 | B66: COMPOSIÇÃO | C66: COMPOSIÇÃO | D66: CONSTRUÇÃO DE CAIXA DE ALVENARIA COM TAMPA METÁLICA E PORTA CADEADO, COM FUNDO DRENANTE, FORRADO DE BRITA (5,0 CM) PARA ABRIGAR OS REGISTROS DE GAVETA, COM DIMENSÕES 1,0 X 1,0 X 1,0. | E66: un | F66: 1 | G66: =Composições!H464 -> 519.30428 | H66: =ROUND(G66*(1+$K$7),2) -> 656.61 | I66: 656.61
A67: 3.4.2 | B67: 74166/001 | C67: 74166/001 | D67: CAIXA PRE-MOLDADA DE D=60CM PARA REDE ELETRICA | E67: un | F67: 8 | G67: 123.18 | H67: =ROUND(G67*(1+$K$7),2) -> 155.75 | I67: 1246
A68: 3.5 | C68: Bloco de Ancoragem e Descarga
A69: 3.5.1 | B69: 74007/002 | C69: 74007/002 | D69: FORMA COMUM DE MADEIRA | E69: m² | F69: 9.6 | G69: 55 | H69: =ROUND(G69*(1+$K$7),2) -> 69.54 | I69: 667.58
A70: 3.5.2 | B70: COMPOSIÇÃO | C70: COMPOSIÇÃO | D70: CONCRETO ESTRUTURAL, FCK = 15MPA, INCL. FORNEC. DOS MAT., PROD., LANÇ., ADEN. E CURA, EM FUNDAÇÕES | E70: m³ | F70: 0.68 | G70: =Composições!H139 -> 507.1478 | H70: =ROUND(G70*(1+$K$7),2) -> 641.24 | I70: 436.04
A71: 3.6 | C71: Serviços Diversos
A72: 3.6.1 | B72: 73678 | C72: 73678 | D72: CADASTRO DA ADUTORA | E72: m | F72: 680 | G72: 1.72 | H72: =ROUND(G72*(1+$K$7),2) -> 2.17 | I72: 1475.6
A73: 3.6.2 | B73: COMPOSIÇÃO | C73: COMPOSIÇÃO | D73: TESTE HIDROSTÁTICO EM REDE DE ÁGUA/ADUTORA | E73: m | F73: 980 | G73: =Composições!H474 -> 0.225347 | H73: =ROUND(G73*(1+$K$7),2) -> 0.28 | I73: 274.4
A75: 4 | C75: UNIDADE DO SISTEMA: ADUTORAS DE ÁGUA TRATADA
A76: 4.0 | C76: OBRAS CIVIS
A77: 4.1 | C77: Serviços Preliminares
A78: 4.1.1 | B78: 73679 | C78: 73679 | D78: LOCAÇÃO DA ADUTORA | E78: m | F78: 150 | G78: 0.56 | H78: =ROUND(G78*(1+$K$7),2) -> 0.71 | I78: =ROUND(H78*F78,2) -> 106.5
A79: 4.1.2 | B79: COMPOSIÇÃO | C79: COMPOSIÇÃO | D79: ACOMPANHAMENTO TOPOGRÁFICO | E79: dia | F79: 1 | G79: =Composições!H284 -> 205.68 | H79: 260.06 | I79: 260.06
A80: 4.1.3 | B80: COMPOSIÇÃO | C80: COMPOSIÇÃO | D80: SINALIZAÇÃO ABERTA SEM ILUMINAÇÃO, MONTANTES DE H=1,00M E TELA EM PVC, INCLUINDO FORNECIMNTO, TRANSPORTE, INSTALAÇÃO E REMOÇÃO PARA OUTRO LOCAL DA OBRA | E80: m | F80: 40 | G80: =Composições!H295 -> 23.22 | H80: 29.36 | I80: 1174.4
A81: 4.2 | C81: Movimento de terra
A82: 4.2.1 | B82: 73965/010 | C82: 73965/010 | D82: ESCAVAÇÃO MANUAL DE VALAS EM SOLO DE 1ª CAT. EXEC. COM PROFUNDIDADE ATÉ 1,5M EXCLUINDO ESGOTAMENTO / ESCORAMENTO | E82: m³ | F82: =56*0.4+168+200 -> 390.4 | G82: 22.07 | H82: 27.91 | I82: 10896.06
A83: 4.2.2 | B83: 73965/001 | C83: 73965/001 | D83: ESCAVAÇÃO MANUAL DE VALAS , A FRIO EM MATERIAL DE 2ª CATEGORIA, COM PROFUNDIDADE ATÉ 1,5M | E83: m³ | F83: =56-22.4 -> 33.6 | G83: 47.3 | H83: =ROUND(G83*(1+$K$7),2) -> 59.81 | I83: 2009.62
A84: 4.2.3 | B84: 73962/013 | C84: 73962/013 | D84: ESCAVACAO DE VALA NAO ESCORADA EM MATERIAL 1A CATEGORIA , PROFUNDIDADE ATE 1,5 M COM ESCAVADEIRA HIDRAULICA 105 HP(CAPACIDADE DE 0,78M3), SEM ESGOTAMENTO | E84: m³ | F84: =42+240 -> 282 | G84: 3.59 | H84: 4.54 | I84: 1280.28
A85: 4.2.4 | B85: 72915 | C85: 72915 | D85: ESCAVAÇÃO MECANIZADA DE MATERIAL DE 2ª CATEGORIA | E85: m³ | F85: 21 | G85: 9.44 | H85: 11.94 | I85: 250.74
A86: 4.2.5 | B86: COMPOSIÇÃO | C86: COMPOSIÇÃO | D86: ESCAVAÇÃO MECANIZADA DE MATERIAL DE 3ª CATEGORIA | E86: m³ | F86: =69-21 -> 48 | G86: =Composições!H220 -> 121.646495 | H86: 153.81 | I86: 7382.88
A87: 4.2.6 | B87: 74010/001 | C87: 74010/001 | D87: CARGA E DESCARGA MECANIZADA DE MATERIAL DE 1ª, 2ª E 3ª CATEGORIA EM CAMINHÃO BASCULANTE | E87: m³ | F87: 55.69 | G87: 0.98 | H87: 1.24 | I87: 69.06
A88: 4.2.7 | B88: 72900 | C88: 72900 | D88: TRANSPORTE DE ENTULHO COM CAMINHÃO BASCULHANTE 6M³, EM RODOVIA PAVIMENTADA DMT 0,5 A 1,0 KM | E88: m³ | F88: =F87 -> 55.69 | G88: 3.96 | H88: 5.01 | I88: 279.01
A89: 4.2.8 | B89: 72921 | C89: 72921 | D89: EXECUÇÃO DE ENVOLTÓRIO DE AREIA EM VALAS, INCL. LANÇAM., ESPALHAM., E COMPAC. MANUAL, COM FORNECIM. DO MATERIAL | E89: m³ | F89: 19.61 | G89: 43.08 | H89: 54.47 | I89: 1068.16
A90: 4.2.9 | B90: 72856 | C90: 72856 | D90: TRANSPORTE LOCAL COM CAMINHÃO BASCULHANTE 6M³, EM RODOVIA EM LEITO NATURAL | E90: m³ x km | F90: =69*15 -> 1035 | G90: 1.22 | H90: 1.54 | I90: 1593.9
A91: 4.2.10 | B91: SERVIÇO 74015/001 | C91: SERVIÇO 74015/001 | D91: EXEC. DE ATERRO EM VALAS/POCOS/CAVAS DE FUNDACAO C/ SOLO PROVENIENTE DAS ESCAVACOES, INCL. LANCAM., ESPALHAM., COMPACT. C/ PLACA VIBRAT., SOQUETE PNEUMATICO | E91: m³ | F91: =567.31+200 -> 767.31 | G91: 14.97 | H91: 18.93 | I91: 14525.18
A92: 4.3 | C92: Assentamento e Envelopamento das tubulações
A93: 4.3.1 | B93: COMPOSIÇÃO | C93: COMPOSIÇÃO | D93: CARGA E DESCARGA DE TUBULAÇÃO EM POLIETILENO PARA Ø ATÉ 160MM | E93: m | F93: 150 | G93: =Composições!H304 -> 1.4778816 | H93: 1.87 | I93: 280.5
A94: 4.3.2 | B94: COMPOSIÇÃO | C94: COMPOSIÇÃO | D94: MOMENTO DE TRANSPORTE DE TUBULAÇÃO, PEÇAS E CONEXÕES EM POLIETILENO DE ALTA DENSIDADE, PEAD, PE-80 ATÉ 160 MM | E94: m | F94: 150 | G94: =Composições!H313 -> 0.9462 | H94: 1.2 | I94: 180
A95: 4.3.3 | B95: COMPOSIÇÃO | C95: COMPOSIÇÃO | D95: CARGA E DESCARGA DE TUBULAÇÃO EM PVC RÍGIDO OU DEFOFO PARA Ø ATÉ 350MM | E95: m | F95: 750 | G95: =Composições!H181 -> 0.73044 | H95: 0.92 | I95: 690
A96: 4.3.4 | B96: COMPOSIÇÃO | C96: COMPOSIÇÃO | D96: MOMENTO DE TRANSPORTE DE TUBULAÇÃO, PEÇAS E CONEXÕES EM PVC RÍGIDO DN ATÉ 350 MM | E96: m | F96: 750 | G96: =Composições!H190 -> 1.2174 | H96: 1.54 | I96: 1155
A97: 4.3.5 | B97: COMPOSIÇÃO | C97: COMPOSIÇÃO | D97: ASSENTAMENTO DE TUBO DE POLIETILENO PEAD PE-80 PN 12,5 DN 110 MM | E97: m | F97: 150 | G97: =Composições!H543 -> 1.04 | H97: 1.31 | I97: 196.5
A98: 4.3.6 | B98: 73888/002 | C98: 73888/002 | D98: ASSENTAMENTO DE TUBOS E CONEXÕES EM PVC RÍG. PBA, PB JE P/ ÁGUA Ø 75MM | E98: m | F98: 400 | G98: 0.95 | H98: 1.2 | I98: 480
A99: 4.3.7 | B99: COMPOSIÇÃO | C99: COMPOSIÇÃO | D99: EXECUÇÃO DE ENVELOPAMENTO DE TUBULAÇÃO EM CONCRETO SIMPLES,INCLUIDO PREPARO MECANICO, LANÇAMENTO E ADENSAMENTO. | E99: m³ | F99: 3.8 | G99: =Composições!H152 -> 687.76 | H99: 869.6 | I99: 3304.48
A100: 4.3.8 | B100: 73976/011 | C100: 73976/011 | D100: ENVELOPAMENTO EM TUBO GALVANIZADO COM COSTURA 6" (150MM), INCLUSIVE CONEXÕES - FORNECIMENTO E INSTALAÇÃO | E100: m | F100: 50 | G100: 234.47 | H100: =ROUND(G100*(1+$K$7),2) -> 296.46 | I100: 14823
A101: 4.3.9 | B101: 73884/003 | C101: 73884/003 | D101: INSTALAÇÃO DE VÁLVULAS OU REGISTRO COM JUNTA ELÁSTICA DN 100 | E101: un | F101: 14 | G101: 48.62 | H101: =ROUND(G101*(1+$K$7),2) -> 61.48 | I101: 860.72
A102: 4.3.10 | B102: COMPOSIÇÃO | C102: COMPOSIÇÃO | D102: ASSENTAMENTO DE CONEXÃO EM PEAD PE-80 EM GERAL | E102: un | F102: =14*2+3+210 -> 241 | G102: =Composições!H164 -> 91.81 | H102: =ROUND(G102*(1+$K$7),2) -> 116.08 | I102: 27975.28
A103: 4.3.11 | B103: COMPOSIÇÃO | C103: COMPOSIÇÃO | D103: RETIRADA DE TUBOS E CONEXÕES EM PVC RÍG. PBA, PB JE P/ ÁGUA Ø 75MM | E103: m | F103: 350 | G103: =Composições!H172 -> 0.95 | H103: =ROUND(G103*(1+$K$7),2) -> 1.2 | I103: 420
A104: 4.4 | C104: Caixas para válvulas e ventosas
A105: 4.4.1 | B105: COMPOSIÇÃO | C105: COMPOSIÇÃO | D105: CONSTRUÇÃO DE CAIXA DE ALVENARIA COM TAMPA METÁLICA E PORTA CADEADO, COM FUNDO DRENANTE, FORRADO DE BRITA (5,0 CM) PARA ABRIGAR OS REGISTROS DE GAVETA, COM DIMENSÕES 1,0 X 1,0 X 1,0. | E105: un | F105: 14 | G105: =Composições!H464 -> 519.30428 | H105: =ROUND(G105*(1+$K$7),2) -> 656.61 | I105: 9192.54
A106: 4.5 | C106: Bloco de Ancoragem e Descarga | I106: 0
A107: 4.5.1 | B107: 74007/002 | C107: 74007/002 | D107: FORMA COMUM DE MADEIRA | E107: m² | F107: 6.5 | G107: 55 | H107: =ROUND(G107*(1+$K$7),2) -> 69.54 | I107: 452.01
A108: 4.5.2 | B108: COMPOSIÇÃO | C108: COMPOSIÇÃO | D108: CONCRETO ESTRUTURAL, FCK = 15MPA, INCL. FORNEC. DOS MAT., PROD., LANÇ., ADEN. E CURA, EM FUNDAÇÕES | E108: m³ | F108: 0.34 | G108: =G12 -> 507.1478 | H108: =ROUND(G108*(1+$K$7),2) -> 641.24 | I108: 218.02
A109: 4.6 | C109: Serviços Diversos
A110: 4.6.1 | B110: 73678 | C110: 73678 | D110: CADASTRO DA ADUTORA | E110: m | F110: 150 | G110: 1.72 | H110: =ROUND(G110*(1+$K$7),2) -> 2.17 | I110: 325.5
A111: 4.6.2 | B111: COMPOSIÇÃO | C111: COMPOSIÇÃO | D111: TESTE HIDROSTÁTICO EM REDE DE ÁGUA/ADUTORA | E111: m | F111: 13020 | G111: =G73 -> 0.225347 | H111: =ROUND(G111*(1+$K$7),2) -> 0.28 | I111: 3645.6
A113: 5 | C113: UNIDADE DO SISTEMA: SUB-ADUTORAS DE ÁGUA TRATADA
A114: 5.0 | C114: OBRAS CIVIS
A115: 5.1 | C115: Assentamento das tubulações
A116: 5.1.1 | B116: COMPOSIÇÃO | C116: COMPOSIÇÃO | D116: CARGA E DESCARGA DE TUBULAÇÃO EM PVC RÍGIDO OU DEFOFO PARA Ø ATÉ 350MM | E116: m | F116: 750 | G116: =Composições!H181 -> 0.73044 | H116: =ROUND(G116*(1+$K$7),2) -> 0.92 | I116: 690
A117: 5.1.2 | B117: COMPOSIÇÃO | C117: COMPOSIÇÃO | D117: MOMENTO DE TRANSPORTE DE TUBULAÇÃO, PEÇAS E CONEXÕES EM PVC RÍGIDO DN ATÉ 350 MM | E117: m | F117: 750 | G117: =Composições!H190 -> 1.2174 | H117: 1.54 | I117: 1155
A118: 5.1.3 | B118: 73888/001 | C118: 73888/001 | D118: ASSENTAMENTO DE TUBOS E CONEXÕES EM PVC RÍG. PBA, PB JE P/ ÁGUA Ø 50MM | E118: m | F118: 400 | G118: 0.71 | H118: 0.9 | I118: 360
A119: 5.1.4 | B119: COMPOSIÇÃO | C119: COMPOSIÇÃO | D119: RETIRADA DE TUBOS E CONEXÕES EM PVC RÍG. PBA, PB JE P/ ÁGUA Ø 50MM | E119: m | F119: 350 | G119: =Composições!H198 -> 0.72 | H119: =ROUND(G119*(1+$K$7),2) -> 0.91 | I119: 318.5
A120: 5.2 | C120: Serviços Diversos
A121: 5.2.1 | B121: COMPOSIÇÃO | C121: COMPOSIÇÃO | D121: TESTE HIDROSTÁTICO EM REDE DE ÁGUA/ADUTORA | E121: m | F121: 12195.46 | G121: =G73 -> 0.225347 | H121: =ROUND(G121*(1+$K$7),2) -> 0.28 | I121: 3414.73
A122: 5.2.2 | B122: COMPOSIÇÃO | C122: COMPOSIÇÃO | D122: EXECUÇÃO DE ENVELOPAMENTO DE TUBULAÇÃO EM CONCRETO SIMPLES,INCLUIDO PREPARO MECANICO, LANÇAMENTO E ADENSAMENTO. | E122: m³ | F122: =0.86*5 -> 4.3 | G122: =Composições!H152 -> 687.76 | H122: =ROUND(G122*(1+$K$7),2) -> 869.6 | I122: 3739.28
A124: 6 | C124: UNIDADE DO SISTEMA: ESTAÇÃO DE TRATAMENTO DE ÁGUA (Q = 7,0 l/s)
A125: 6.0 | C125: OBRAS CIVIS
C126: SUMIDOURO 2,5 X 2,5 m
A127: 6.1 | C127: Serviços Preliminares
A128: 6.1.1 | B128: 73948/016 | C128: 73948/016 | D128: LIMPEZA DO TERRENO | E128: m² | F128: 50 | G128: 1.57 | H128: =ROUND(G128*(1+$K$7),2) -> 1.99 | I128: 99.5
A129: 6.1.2 | B129: 73992/001 | C129: 73992/001 | D129: LOCAÇÃO DA OBRA | E129: m² | F129: 9 | G129: 8.84 | H129: 11.18 | I129: 100.62
A130: 6.2 | C130: Movimento de terra
A131: 6.2.1 | B131: 73904/001 | C131: 73904/001 | D131: EXECUÇÃO DE ATERRO EM VALAS, POÇOS, CAVAS DE FUNDAÇÃO COM AQUISIÇÃO DE MATERIAL, INC. LANÇ., ESPAL., COMPAC. MANUAL | E131: m³ | F131: 108 | G131: 60.17 | H131: 76.08 | I131: 8216.64
A132: 6.3 | C132: Fundações e Estrutura
A133: 6.3.1 | B133: 74076/001 | C133: 74076/001 | D133: FORMA PINHO 3A P/CONCRETO EM FUNDAÇÃO REAPROV 3 VEZES - CORTE/MONTAGEM /ESCORAMENTO/DESFORMA, NÃO INCLUÍDO DEMOLDANTE | E133: m² | F133: 4 | G133: 38.06 | H133: =ROUND(G133*(1+$K$7),2) -> 48.12 | I133: 192.48
A134: 6.3.2 | B134: 74254/002 | C134: 74254/002 | D134: ARMAÇÃO AÇO CA-50, DIAMETRO 6.3 (1/4) Á 12,5mm (1/2) - FORNECIMENTO E CORTE (Kg PERDA DE 10%) / DOBRA / COLOCAÇÃO | E134: Kg | F134: 35 | G134: 6.05 | H134: 7.65 | I134: 267.75
A135: 6.3.3 | B135: COMPOSIÇÃO | C135: COMPOSIÇÃO | D135: CONCRETO ESTRUTURAL, FCK = 15MPA, INCL. FORNEC. DOS MAT., PROD., LANÇ., ADEN. E CURA, EM FUNDAÇÕES | E135: m³ | F135: 0.41 | G135: =Composições!H139 -> 507.1478 | H135: =ROUND(G135*(1+$K$7),2) -> 641.24 | I135: 262.91
A136: 6.4 | C136: Vedação
A137: 6.4.1 | B137: 73935/002 | C137: 73935/002 | D137: ALVENARIA DE TIJOLO CERÂMICO 1 VEZ | E137: m² | F137: 8.8 | G137: 48.04 | H137: =ROUND(G137*(1+$K$7),2) -> 60.74 | I137: 534.51
A138: 6.5 | C138: Revestimento
A139: 6.5.1 | B139: 73928/001 | C139: 73928/001 | D139: CHAPISCO | E139: m² | F139: 17.6 | G139: 3.33 | H139: =ROUND(G139*(1+$K$7),2) -> 4.21 | I139: =ROUND(H139*F139,2) -> 74.1
A140: 6.5.2 | B140: 5976 | C140: 5976 | D140: REBOCO | E140: m² | F140: 17.6 | G140: 15.18 | H140: 19.19 | I140: 337.74
A141: 6.6 | C141: Pintura
A142: 6.6.1 | B142: 73924/002 | C142: 73924/002 | D142: PINTURA ESMALTE EM ESQUADRIA DE FERRO - 2 DEMÃOS | E142: m² | F142: 4 | G142: 13.2 | H142: =ROUND(G142*(1+$K$7),2) -> 16.69 | I142: 66.76
A143: 6.7 | C143: Urbanização
A144: 6.7.1 | B144: 74142/004 | C144: 74142/004 | D144: CERCA COM 14 FIOS DE ARAME FARPADO 16BWG 4X4", COM ESTACAS DE CONCRETO PRÉ-MOLDADA, COM DIMENSÕES 10X10X2,45CM | E144: m | F144: 22.5 | G144: 33.94 | H144: =ROUND(G144*(1+$K$7),2) -> 42.91 | I144: 965.48
A145: 6.7.2 | B145: 74100/001 | C145: 74100/001 | D145: PORTÃO EM TUBO DE FERRO COM VARA 1/2" COMREQUADRO, INCL. GUARNIÇÕES E FERRAGENS | E145: m² | F145: 2 | G145: 213.55 | H145: =ROUND(G145*(1+$K$7),2) -> 270.01 | I145: 540.02
A146: 6.8 | C146: Montagem dos Equipamentos
A147: 6.8.1 | B147: COMPOSIÇÃO | C147: COMPOSIÇÃO | D147: REALIZAÇÃO DE TESTES PRÉ-OPERACIONAIS E TESTE DE FUCIONAMENTE DO SISTEMA, INCLUISIVE FORNECIMENTO DOS PRODUTOS QUÍMICOS NECESSÁRIOS PARA UM MÊS DE OPERAÇÃO, E TREINAMENTO DE PESSOAL PARA OPERAÇÃO E MANUTENÇÃO DA ETA ATE 13,00 L/S | E147: un | F147: 1 | G147: =Composições!H397 -> 1307.56 | H147: 1653.28 | I147: 1653.28
A148: 6.8.2 | B148: COMPOSIÇÃO | C148: COMPOSIÇÃO | D148: MONTAGEM DA ESCADA DE ACESSO AOS FLOCULADORES DA ESTAÇÃO DE TRATAMENTO. | E148: un | F148: 1 | G148: =Composições!H335 -> 379.92 | H148: 480.37 | I148: 480.37
A150: 7 | C150: UNIDADE DO SISTEMA: ESTAÇÃO ELEVATÓRIA (15 CV) E CASA DE QUÍMICA
A151: 7.0 | C151: OBRAS CIVIS
A152: 7.1 | C152: Pisos
A153: 7.1.1 | B153: 73829/001 | C153: 73829/001 | D153: PISO EM CERAMICA ESMALTADA PEI-V | E153: m² | F153: 3.12 | G153: 43.46 | H153: =ROUND(G153*(1+$K$7),2) -> 54.95 | I153: 171.44
A154: 7.2 | C154: Revestimento
A155: 7.2.1 | B155: 73912/001 | C155: 73912/001 | D155: Revestimento cerâmico 20x20 PEI-IV | E155: m² | F155: 19.6 | G155: 26.4 | H155: =ROUND(G155*(1+$K$7),2) -> 33.38 | I155: 654.25
A156: 7.3 | C156: Pintura
A157: 7.3.1 | B157: COMPOSIÇÃO | C157: COMPOSIÇÃO | D157: PINTURA DA LOGOMARCA DA CODEVASF | E157: un | F157: 2 | G157: =Composições!H347 -> 188.312 | H157: =ROUND(G157*(1+$K$7),2) -> 238.1 | I157: 476.2
A158: 7.3.2 | B158: 73924/002 | C158: 73924/002 | D158: PINTURA ESMALTE EM ESQUADRIA DE FERRO - 2 DEMÃOS | E158: m² | F158: 7.56 | G158: 13.2 | H158: =ROUND(G158*(1+$K$7),2) -> 16.69 | I158: 126.18
A159: 7.3.3 | B159: 73954/003 | C159: 73954/003 | D159: PINTURA LATEX ACRILICA - 1 DEMÃOS | E159: m² | F159: 190.05 | G159: 4.2 | H159: 5.31 | I159: 1009.17
A160: 7.4 | C160: Instalação elétrica
A161: 7.4.1 | B161: Composição | C161: Composição | D161: FORNECIMENTO E INSTALAÇÃO DOS ELETRODUTOS, CABOS, QUADROS, PONTOS DE FORÇA DOS MOTORES, TOMADAS, INTERRUPTORES, LUMINÁRIAS E ILUMINAÇÃO EXTERNA DA ETA | E161: und | F161: 1 | G161: ='Composição eletrica'!G71 -> 15519.46 | H161: =G161 -> 15519.46 | I161: 15519.46
A162: 7.4.2 | B162: Composição | C162: Composição | D162: FORNECIMENTO E INSTALAÇÃO DA SUBESTAÇÃO ABAIXADORA DE 30 KVA E INTERLIGAÇÃO (CIRCUITO ALIMENTADOR) DA SE AO QGBT DA ETA/CAPTAÇÃO | E162: und | F162: 1 | G162: ='Composição eletrica'!G136 -> 18377.5 | H162: 18377.5 | I162: 18377.5
A163: 7.4.3 | B163: Composição | C163: Composição | D163: FORNECIMENTO E INSTALAÇÃO PARA A EXTENSÃO DE REDE ELÉTRICA DE MÉDIA TENSÃO, 13,8KV, TRIFÁSICO | E163: km | F163: 0.2 | G163: ='Composição eletrica'!G307 -> 70593.22 | H163: 70593.22 | I163: 14118.64
A164: 7.4.4 | B164: 73836/002 | C164: 73836/002 | D164: INSTALAÇÃO DE CONJUNTO MOTOR-BOMBA HORIZONTAL DE 12,5 A 25CV | E164: und | F164: 2 | G164: 298.41 | H164: 298.41 | I164: 596.82
A165: 7.4.5 | B165: Composição | C165: Composição | D165: ELABORAÇÃO DE PROJETO EXECUTIVO DAS INSTALAÇÕES ELÉTRICAS DE MÉDIA E BAIXA TENSÃO DA ETA E CAPTAÇÃO/FLUTUANTE, COM APROVAÇÃO E EMOLUMENTOS JUNTO A CONCESSIONÁRIA | E165: und | F165: 1 | G165: ='Composição eletrica'!G330 -> 2800.6 | H165: 2800.6 | I165: 2800.6
A166: 7.5 | C166: Instalações hidráulicas e sanitárias
A167: 7.5.1 | B167: 72685 | C167: 72685 | D167: RALO SINFONADO DE PVC 100 X 100 MM SIMPLES - FORNECIMENTO E INSTALAÇÃO | E167: un | F167: 1 | G167: 15.25 | H167: =ROUND(G167*(1+$K$7),2) -> 19.28 | I167: 19.28
A168: 7.5.2 | B168: 86943 | C168: 86943 | D168: LAVATÓRIO LOUÇA BRANCA, SEM COLUNA PADRÃO POPULAR, COM TORNEIRA, SIFÃO, VÁLVULA E ENGATE PLÁSTICO | E168: un | F168: 1 | G168: 97.3 | H168: =ROUND(G168*(1+$K$7),2) -> 123.03 | I168: 123.03
A169: 7.5.3 | B169: 86931 | C169: 86931 | D169: VASO SANITÁRIO BRANCO COM CAIXA ACOPLADA,PADRÃO MÉDIO, INCLUINDO ENGATE | E169: un | F169: 1 | G169: 267.02 | H169: 337.62 | I169: 337.62
A170: 7.5.4 | B170: 6004 | C170: 6004 | D170: PAPELEIRA DE LOUÇA BRANCA - FORNECIMENTO E INSTALAÇÃO | E170: un | F170: 1 | G170: 44 | H170: 55.63 | I170: 55.63
A171: 7.5.5 | B171: 6007 | C171: 6007 | D171: SABONETEIRA DE LOUÇA BRANCA 7,5 X 15 CM - FORNECIMENTO E INSTALAÇÃO | E171: un | F171: 1 | G171: 36.14 | H171: 45.7 | I171: 45.7
A172: 7.5.6 | B172: 72671 | C172: 72671 | D172: NIPLE DE PVC ROSCÁVEL ÁGUA FRIA 1/2"- FORNECIMENTO E INSTALAÇÃO | E172: un | F172: 1 | G172: 2.7 | H172: 3.41 | I172: 3.41
A173: 7.5.7 | B173: 68061 | C173: 68061 | D173: CHUVEIRO PLÁSTICO BRANCO SIMPLES - FORNECIMENTO E INSTALAÇÃO | E173: un | F173: 1 | G173: 10.78 | H173: 13.63 | I173: 13.63
A174: 7.6 | C174: Serviços finais
A175: 7.6.1 | B175: 9537 | C175: 9537 | D175: LIMPEZA FINAL DA OBRA | E175: m² | F175: 38.69 | G175: 1 | H175: =ROUND(G175*(1+$K$7),2) -> 1.26 | I175: 48.75
A177: 8 | C177: UNIDADE DO SISTEMA: LEITO DE SECAGEM ( 8 m x 8 m)
A178: 8.0 | C178: OBRAS CIVIS
A179: 8.1 | C179: Pintura
A180: 8.1.1 | B180: 79334/001 | C180: 79334/001 | D180: PINTURA A BASE DE CAL FIXADOR A BASE DE COLA - 2 DEMÃOS | E180: m² | F180: 36.31 | G180: 3.7 | H180: =ROUND(G180*(1+$K$7),2) -> 4.68 | I180: 169.93
A181: 8.2 | C181: Serviços finais
A182: 8.2.1 | B182: 9537 | C182: 9537 | D182: LIMPEZA FINAL DA OBRA | E182: m² | F182: 70.42 | G182: 1 | H182: =ROUND(G182*(1+$K$7),2) -> 1.26 | I182: 88.73
A183: 9 | C183: UNIDADE DO SISTEMA: RESERVATÓRIO ENTERRADO 15 m³
A184: 9.0 | C184: OBRAS CIVIS
A185: 9.1 | C185: Impermeabilização
A186: 9.1.1 | B186: 83738 | C186: 83738 | D186: IMPERMEABILIZANTE DE SUPERFICIE COM MANTA ASFALTICA ( COM POLIMETRO TIPO APP), E= 4 MM | E186: m² | F186: 36.84 | G186: 49.43 | H186: =ROUND(G186*(1+$K$7),2) -> 62.5 | I186: 2302.5
A187: 9.2 | C187: Revestimento
A188: 9.2.1 | B188: 73928/001 | C188: 73928/001 | D188: CHAPISCO | E188: m² | F188: 28.3 | G188: 3.33 | H188: 4.21 | I188: 119.14
A189: 9.2.2 | B189: 5976 | C189: 5976 | D189: REBOCO | E189: m² | F189: 28.3 | G189: 15.18 | H189: 19.19 | I189: 543.08
A190: 9.3 | C190: Pintura
A191: 9.3.1 | B191: 79334/001 | C191: 79334/001 | D191: PINTURA A CAL - 2 DEMÃOS | E191: m² | F191: 28.3 | G191: 3.7 | H191: 4.68 | I191: 132.44
A192: 9.4 | C192: Assentamento, montagem e instalações
A193: 9.4.1 | B193: COMPOSIÇÃO | C193: COMPOSIÇÃO | D193: MONTAGEM DE PEÇAS, CONEXÕES, VÁLVULAS, APARELHOS E ACESSÓRIOS DE FERRO | E193: kg | F193: 150 | G193: =Composições!H234 -> 1.79538478 | H193: =ROUND(G193*(1+$K$7),2) -> 2.27 | I193: 340.5
A194: 9.5 | C194: Serviços finais
A195: 9.5.1 | B195: 9537 | C195: 9537 | D195: LIMPEZA FINAL DA OBRA | E195: m² | F195: 14.55 | G195: 1 | H195: =ROUND(G195*(1+$K$7),2) -> 1.26 | I195: 18.33
A196: 10 | C196: UNIDADE DO SISTEMA: RESERVATÓRIO E REDE DE DISTRIBUIÇÃO
A197: 10.0 | C197: OBRAS CIVIS
A198: 10.1 | C198: Diversos
A199: 10.1.1 | B199: COMPOSIÇÃO | C199: COMPOSIÇÃO | D199: ASSENTAMENTO DE CONEXÃO EM PEAD PE-80 EM GERAL | E199: un | F199: 6 | G199: =Composições!H164 -> 91.81 | H199: =ROUND(G199*(1+$K$7),2) -> 116.08 | I199: 696.48
A200: 10.1.2 | B200: Composição | C200: Composição | D200: FORNECIMENTO E INSTALAÇÃO DO SPDA (SISTEMA DE PROTEÇÃO CONTRA DESCARGAS ATMOSFÉRICAS) DOS RESERVATÓRIOS DE ÁGUA | E200: und | F200: 6 | G200: ='Composição eletrica'!G395 -> 3666.67 | H200: =G200 -> 3666.67 | I200: 22000.02
A201: 11 | C201: UNID. DO SIST.: RESERVAT. E REDE DE DISTRIBUIÇÃO DA ALGODÕES/MELOSA - 15 M³
A202: 11.0 | C202: OBRAS CIVIS
A203: 11.1 | C203: Diversos
A204: 11.1.1 | B204: COMPOSIÇÃO | C204: COMPOSIÇÃO | D204: PINTURA DA LOGOMARCA DA CODEVASF NO RESERVATÓRIO | E204: un | F204: 1 | G204: =Composições!H359 -> 376.772 | H204: =ROUND(G204*(1+$K$7),2) -> 476.39 | I204: =ROUND(H204*F204,2) -> 476.39
A205: 11.1.2 | B205: 9537 | C205: 9537 | D205: LIMPEZA FINAL DA OBRA | E205: m² | F205: 9 | G205: 1 | H205: =ROUND(G205*(1+$K$7),2) -> 1.26 | I205: 11.34
A206: 11.1.3 | B206: COMPOSIÇÃO | C206: COMPOSIÇÃO | D206: TESTE HIDROSTÁTICO EM REDE DE ÁGUA/ADUTORA | E206: m | F206: 6252 | G206: =G121 -> 0.225347 | H206: =ROUND(G206*(1+$K$7),2) -> 0.28 | I206: 1750.56
A207: 12 | C207: UNIDADE DO SISTEMA: RESERVATÓRIO E REDE DE DISTRIBUIÇÃO DA SALGADINHA/ LAGOA GRANDE/ CACIMBA DO MEIO - 20 M³
A208: 12.0 | C208: OBRAS CIVIS
A209: 12.1 | C209: Diversos
... 119 more rows

Sheet Sistema 2
A4: SISTEMA DE ABASTECIMENTO D'ÁGUA - REMANSO - BA
A5: REPLANILHAMENTO DA PLANILHA DO SISTEMA 02
A7: ITEM | C7: ITEM (SINAPI FEV/14 - C/DESONERAÇÃO) | D7: DESCRIÇÃO DE SERVIÇOS | E7: Unid. | F7: Quant. | G7: P.UNIT. | H7: P.UNIT.C /BDI | I7: Total | J7: VALOR
C8: SISTEMA 02 | I8: =(SUM(I9:I345)/2) -> 768331.31 | J8: BDI
C9: SERVIÇOS | I9: =SUM(I11:I269) -> 615197.63 | J9: SERV. | K9: 0.2644
J10: MAT | K10: 0.168
A11: 1 | C11: UNIDADE DO SISTEMA: CAPTAÇÃO FLUTUANTE
A12: 1.0 | C12: OBRAS CIVIS
A13: 1.1 | C13: Transporte de equipamentos, tubos e conexões
A14: 1.1.1 | B14: COMPOSIÇÃO | C14: COMPOSIÇÃO | D14: CARGA E DESCARGA DE TUBO DE FERRO, FOFO DUCTIL OU AÇO CARBONO PARA Ø ATÉ 300MM | E14: t | F14: 0.36 | G14: =Composições!H208 -> 29.759 | H14: =ROUND(G14*(1+$K$9),2) -> 37.63 | I14: =ROUND(H14*F14,2) -> 13.55
A15: 1.2 | C15: Execução de blocos de ancoragem | K15: =G15-H15 -> 0
A16: 1.2.1 | B16: 74076/001 | C16: 74076/001 | D16: FORMA PINHO 3A P/CONCRETO EM FUNDAÇÃO REAPROV 3 VEZES - CORTE/MONTAGEM /ESCORAMENTO/DESFORMA, NÃO INCLUÍDO DEMOLDANTE | E16: m² | F16: 39.05 | G16: 38.06 | H16: =ROUND(G16*(1+$K$9),2) -> 48.12 | I16: =ROUND(H16*F16,2) -> 1879.09 | K16: -10.06
A17: 1.2.2 | B17: COMPOSIÇÃO | C17: COMPOSIÇÃO | D17: CONCRETO FCK 15 MPA (1:2:5:3),INCLUIDO PREPARO MECANICO, LANÇAMENTO E ADENSAMENTO. | E17: m³ | F17: 4.56 | G17: =Composições!H139 -> 507.1478 | H17: 641.24 | I17: 2924.05
A18: 1.2.3 | B18: 74254/002 | C18: 74254/002 | D18: ARMAÇÃO AÇO CA-50, DIAMETRO 6.3 (1/4) Á 12,5mm (1/2) - FORNECIMENTO E CORTE (Kg PERDA DE 10%) / DOBRA / COLOCAÇÃO | E18: Kg | F18: 480 | G18: 6.05 | H18: 7.65 | I18: 3672 | K18: -1.6
A19: 1.3 | C19: Pintura | K19: 0
A20: 1.3.1 | B20: 74064/001 | C20: 74064/001 | D20: FUNDO ANTICORROSIVO A BASE DE OXIDO DE FERRO (ZARÇÃO)-DUAS DEMÃOS | E20: m² | F20: 21.18 | G20: 10.18 | H20: =ROUND(G20*(1+$K$9),2) -> 12.87 | I20: =ROUND(H20*F20,2) -> 272.59 | K20: -2.69
A21: 1.3.2 | B21: 73924/002 | C21: 73924/002 | D21: PINTURA ESMALTE EM ESQUADRIA DE FERRO - 2 DEMÃOS | E21: m² | F21: 21.18 | G21: 13.2 | H21: 16.69 | I21: 353.49 | K21: -3.49
A22: 1.4 | C22: Assentamento, montagem e instalações | K22: 0
A23: 1.4.1 | B23: COMPOSIÇÃO | C23: COMPOSIÇÃO | D23: ASSENTAMENTO DE MANGOTE FLEXÍVEL PARA CAPTAÇÃO FLUTUANTE Ø 100 MM | E23: m | F23: 15 | G23: =Composições!H111 -> 38.7 | H23: =ROUND(G23*(1+$K$9),2) -> 48.93 | I23: =ROUND(H23*F23,2) -> 733.95
A24: 1.5 | C24: Diversos | K24: 0
A25: 1.5.1 | B25: COMPOSIÇÃO | C25: COMPOSIÇÃO | D25: CORRENTE EM AÇO GALVANIZADO | E25: m | F25: 45 | G25: =Composições!H595 -> 19.98797737 | H25: =ROUND(G25*(1+$K$9),2) -> 25.27 | I25: =ROUND(H25*F25,2) -> 1137.15
A26: 2 | C26: UNIDADE DO SISTEMA: CONSTRUÇÃO DO ABRIGO PARA COMANDO DA BOMBA | K26: 0
A27: 2.0 | C27: OBRAS CIVIS | K27: 0
A28: 2.1 | C28: Esquadrias | K28: 0
A29: 2.1.1 | B29: 85334 | C29: 85334 | D29: RETIRADA DE ESQUARIA METALICA | E29: m² | F29: 1.68 | G29: 6.3 | H29: =ROUND(G29*(1+$K$9),2) -> 7.97 | I29: =ROUND(H29*F29,2) -> 13.39 | K29: -1.67
A30: 2.1.2 | B30: COMPOSIÇÃO | C30: COMPOSIÇÃO | D30: ASSENTAMENTO DE ESQUADRIA METALICA | E30: m² | F30: 1.68 | G30: =Composições!H274 -> 27.95 | H30: 35.34 | I30: 59.37
A31: 2.2 | C31: Pintura | K31: 0
A32: 2.2.1 | B32: COMPOSIÇÃO | C32: COMPOSIÇÃO | D32: PINTURA DA LOGOMARCA DA CODEVASF | E32: un | F32: 2 | G32: =Composições!H347 -> 188.312 | H32: =ROUND(G32*(1+$K$9),2) -> 238.1 | I32: =ROUND(H32*F32,2) -> 476.2
A33: 2.2.2 | B33: 73924/002 | C33: 73924/002 | D33: PINTURA ESMALTE EM ESQUADRIA DE FERRO - 2 DEMÃOS | E33: m² | F33: 3.36 | G33: 13.2 | H33: 16.69 | I33: 56.08 | K33: -3.49
A34: 2.2.3 | B34: 73954/003 | C34: 73954/003 | D34: PINTURA LATEX ACRILICA - 1 DEMÃOS | E34: m² | F34: 59.05 | G34: 4.2 | H34: 5.31 | I34: 313.56 | K34: -1.11
A35: 2.3 | C35: Instalação elétrica | K35: 0
A36: 2.3.1 | B36: Composição | C36: Composição | D36: FORNECIMENTO E INSTALAÇÃO DOS ELETRODUTOS, CABOS, QUADRO, PONTOS DE FORÇA DOS MOTORES, TOMADA, INTERRUPTOR, LUMINÁRIAS DA CAPTAÇÃO | E36: und | F36: 1 | G36: ='Composição eletrica'!G248 -> 8826.16 | H36: =G36 -> 8826.16 | I36: =ROUND(H36*F36,2) -> 8826.16
A37: 2.3.2 | B37: Composição | C37: Composição | D37: FORNECIMENTO E INSTALAÇÃO DA SUBESTAÇÃO ABAIXADORA DE 15 KVA E INTERLIGAÇÃO (CIRCUITO ALIMENTADOR) DA SE AO CCM DA CAPTAÇÃO | E37: und | F37: 1 | G37: ='Composição eletrica'!G201 -> 16835.61 | H37: =G37 -> 16835.61 | I37: 16835.61
A38: 2.3.3 | B38: Composição | C38: Composição | D38: FORNECIMENTO E INSTALAÇÃO PARA A EXTENSÃO DE REDE ELÉTRICA DE MÉDIA TENSÃO, 13,8KV, TRIFÁSICO | E38: km | F38: 0.7 | G38: ='Composição eletrica'!G307 -> 70593.22 | H38: 70593.22 | I38: 49415.25
A39: 2.3.4 | B39: 73836/001 | C39: 73836/001 | D39: MONTAGEM E INSTALAÇÃO DE CONJUNTO MOTOR-BOMBA CENTRÍFUGA ATÉ 10CV | E39: un | F39: 2 | G39: 229.54 | H39: 229.54 | I39: =ROUND(H39*F39,2) -> 459.08 | K39: 0
A40: 2.3.5 | B40: 04618/ORSE | C40: 04618/ORSE | D40: CABO TIPO PP DE COBRE 0,6/1KV MULTIPLEXADOS 4#35MM² | E40: m | F40: 3500 | G40: 12.94 | H40: 12.94 | I40: =ROUND(H40*F40,2) -> 45290 | K40: 0
A41: 2.3.6 | B41: Composição | C41: Composição | D41: INSTALAÇÃO/MONTAGEM ELÉTRICA E MECÂNICA DA CAPTAÇÃO FLUTUANTE | E41: und | F41: 1 | G41: ='Composição eletrica'!G355 -> 434.6 | H41: 434.6 | I41: =ROUND(H41*F41,2) -> 434.6
A42: 2.3.7 | B42: COMPOSIÇÃO | C42: COMPOSIÇÃO | D42: INSTALAÇÃO DE CABO EPROTENAX 4 X 50 MM. | E42: m | F42: 2700 | G42: =Composições!H253 -> 7.94 | H42: =ROUND(G42*(1+$K$9),2) -> 10.04 | I42: =ROUND(H42*F42,2) -> 27108
A43: 2.3.8 | B43: COMPOSIÇÃO | C43: COMPOSIÇÃO | D43: INSTALAÇÃO DE ELETRODUTO PVC 4", INCLUSIVE ESCAVAÇÃO E REATERRO | E43: m | F43: 2000 | G43: =Composições!H264 -> 22.63 | H43: =ROUND(G43*(1+$K$9),2) -> 28.61 | I43: =ROUND(H43*F43,2) -> 57220
A44: 2.4 | C44: Urbanização | K44: 0
A45: 2.4.1 | B45: 74084/001 | C45: 74084/001 | D45: PORTA CADEADO ZICADO OXIDADO PRETO COMCADEADO DE AÇO GRAFITADO OXIDADO ENVERNIZADO 45MM | E45: un | F45: 1 | G45: 31.5 | H45: =ROUND(G45*(1+$K$9),2) -> 39.83 | I45: =ROUND(H45*F45,2) -> 39.83 | K45: -8.33
A46: 2.4.2 | B46: 73924/002 | C46: 73924/002 | D46: PINTURA ESMALTE EM ESQUADRIA DE FERRO - 2 DEMÃOS | E46: m² | F46: 4 | G46: 13.2 | H46: 16.69 | I46: 66.76 | K46: -3.49
A47: 2.5 | D47: Serviços finais | K47: 0
A48: 2.5.1 | B48: 9537 | C48: 9537 | D48: LIMPEZA FINAL DA OBRA | E48: m² | F48: 5.29 | G48: 1 | H48: =ROUND(G48*(1+$K$9),2) -> 1.26 | I48: =ROUND(H48*F48,2) -> 6.67 | K48: -0.26
A49: 3 | C49: UNIDADE DO SISTEMA: ADUTORA DE ÁGUA BRUTA - FLUTUANTE/ ETA | K49: 0
A50: 3.0 | C50: OBRAS CIVIS | K50: 0
A51: 3.1 | C51: Serviços Preliminares | K51: 0
A52: 3.1.1 | B52: 73679 | C52: 73679 | D52: LOCAÇÃO DA ADUTORA | E52: m | F52: 2140 | G52: 0.56 | H52: =ROUND(G52*(1+$K$9),2) -> 0.71 | I52: =ROUND(H52*F52,2) -> 1519.4 | K52: -0.15
A53: 3.1.2 | B53: COMPOSIÇÃO | C53: COMPOSIÇÃO | D53: ACOMPANHAMENTO TOPOGRÁFICO | E53: dia | F53: 3 | G53: =Composições!H284 -> 205.68 | H53: 260.06 | I53: 780.18
A54: 3.1.3 | B54: COMPOSIÇÃO | C54: COMPOSIÇÃO | D54: SINALIZAÇÃO ABERTA SEM ILUMINAÇÃO, MONTANTES DE H=1,00M E TELA EM PVC, INCLUINDO FORNECIMNTO, TRANSPORTE, INSTALAÇÃO E REMOÇÃO PARA OUTRO LOCAL DA OBRA | E54: m | F54: 550 | G54: =Composições!H295 -> 23.22 | H54: 29.36 | I54: 16148
A55: 3.2 | C55: Movimento de terra | K55: 0
A56: 3.2.1 | B56: 73965/010 | C56: 73965/010 | D56: ESCAVAÇÃO MANUAL DE VALAS EM SOLO DE 1ª CAT. EXEC. COM PROFUNDIDADE ATÉ 1,5M EXCLUINDO ESGOTAMENTO / ESCORAMENTO | E56: m³ | F56: 35 | G56: 22.07 | H56: =ROUND(G56*(1+$K$9),2) -> 27.91 | I56: =ROUND(H56*F56,2) -> 976.85 | K56: -5.84
A57: 3.2.2 | B57: 73962/013 | C57: 73962/013 | D57: ESCAVACAO DE VALA NAO ESCORADA EM MATERIAL 1A CATEGORIA , PROFUNDIDADE ATE 1,5 M COM ESCAVADEIRA HIDRAULICA 105 HP(CAPACIDADE DE 0,78M3), SEM ESGOTAMENTO | E57: m³ | F57: 720 | G57: 3.59 | H57: 4.54 | I57: 3268.8 | K57: -0.95
A58: 3.2.3 | B58: 72915 | C58: 72915 | D58: ESCAVAÇÃO MECANIZADA DE MATERIAL DE 2ª CATEGORIA | E58: m³ | F58: 343.2 | G58: 9.44 | H58: 11.94 | I58: 4097.81 | K58: -2.5
A59: 3.2.4 | B59: COMPOSIÇÃO | C59: COMPOSIÇÃO | D59: ESCAVAÇÃO MECANIZADA DE MATERIAL DE 3ª CATEGORIA | E59: m³ | F59: 136.8 | G59: =Composições!H220 -> 121.646495 | H59: 153.81 | I59: 21041.21
A60: 3.2.5 | B60: 74010/001 | C60: 74010/001 | D60: CARGA E DESCARGA MECANIZADA DE MATERIAL DE 1ª, 2ª E 3ª CATEGORIA EM CAMINHÃO BASCULANTE | E60: m³ | F60: =F58*0.5+F59+18 -> 326.4 | G60: 0.98 | H60: 1.24 | I60: 404.74 | K60: -0.26
A61: 3.2.6 | B61: 72855 | C61: 72855 | D61: TRANSPORTE LOCAL COM CAMINHÃO BASCULHANTE 6M³, EM RODOVIA EM LEITO NATURAL DMT 800 A 1.000M | E61: m³ | F61: =F60 -> 326.4 | G61: 2.79 | H61: 3.53 | I61: 1152.19 | K61: -0.74
A62: 3.2.7 | B62: 72921 | C62: 72921 | D62: EXECUÇÃO DE ENVOLTÓRIO DE AREIA EM VALAS, INCL. LANÇAM., ESPALHAM., E COMPAC. MANUAL, COM FORNECIM. DO MATERIAL | E62: m³ | F62: 43.92 | G62: 43.08 | H62: 54.47 | I62: 2392.32 | K62: -11.39
A63: 3.2.8 | B63: 73904/001 | C63: 73904/001 | D63: EXECUÇÃO DE ATERRO EM VALAS, POÇOS, CAVAS DE FUNDAÇÃO COM AQUISIÇÃO DE MATERIAL, INC. LANÇ., ESPAL., COMPAC. MANUAL | E63: m³ | F63: =F58*0.5+F59-F62-123.15 -> 141.33 | G63: 60.17 | H63: 76.08 | I63: 10752.39 | K63: -15.91
A64: 3.2.9 | B64: SERVIÇO 74015/001 | C64: SERVIÇO 74015/001 | D64: EXEC. DE ATERRO EM VALAS/POCOS/CAVAS DE FUNDACAO C/ SOLO PROVENIENTE DAS ESCAVACOES, INCL. LANCAM., ESPALHAM., COMPACT. C/ PLACA VIBRAT., SOQUETE PNEUMATICO | E64: m³ | F64: =F57+F58*0.5 -> 891.6 | G64: 14.97 | H64: 18.93 | I64: 16877.99 | K64: -3.96
A65: 3.3 | C65: Assentamento e Envelopamento das tubulações | K65: 0
A66: 3.3.1 | B66: COMPOSIÇÃO | C66: COMPOSIÇÃO | D66: CARGA E DESCARGA DE TUBULAÇÃO EM POLIETILENO PARA Ø ATÉ 160MM | E66: m | F66: 2140 | G66: =Composições!H304 -> 1.4778816 | H66: =ROUND(G66*(1+$K$9),2) -> 1.87 | I66: =ROUND(H66*F66,2) -> 4001.8
A67: 3.3.2 | B67: COMPOSIÇÃO | C67: COMPOSIÇÃO | D67: MOMENTO DE TRANSPORTE DE TUBULAÇÃO, PEÇAS E CONEXÕES EM POLIETILENO DE ALTA DENSIDADE, PEAD, PE-80 ATÉ 160 MM | E67: m | F67: =F66 -> 2140 | G67: =Composições!H313 -> 0.9462 | H67: 1.2 | I67: 2568
A68: 3.3.3 | B68: COMPOSIÇÃO | C68: COMPOSIÇÃO | D68: ASSENTAMENTO DE TUBO DE POLIETILENO PEAD PE-80 PN 12,5 DN 140 MM | E68: m | F68: =F66 -> 2140 | G68: =Composições!H535 -> 1.11 | H68: 1.4 | I68: 2996
A69: 3.3.4 | B69: 73884/003 | C69: 73884/003 | D69: INSTALAÇÃO DE VÁLVULAS OU REGISTRO COM JUNTA ELÁSTICA DN 100 | E69: un | F69: 1 | G69: 48.62 | H69: 61.48 | I69: 61.48 | K69: -12.86
A70: 3.3.5 | B70: COMPOSIÇÃO | C70: COMPOSIÇÃO | D70: EXECUÇÃO DE ENVELOPAMENTO DE TUBULAÇÃO EM CONCRETO SIMPLES,INCLUIDO PREPARO MECANICO, LANÇAMENTO E ADENSAMENTO. | E70: m³ | F70: 1 | G70: =Composições!H152 -> 687.76 | H70: 869.6 | I70: 869.6
A71: 3.3.6 | B71: COMPOSIÇÃO | C71: COMPOSIÇÃO | D71: ASSENTAMENTO DE CONEXÃO EM PEAD PE-80 EM GERAL | E71: un | F71: =1*2+43 -> 45 | G71: =Composições!H164 -> 91.81 | H71: 116.08 | I71: 5223.6
A72: 3.4 | C72: Caixas para válvulas, ventosas e energia | K72: 0
A73: 3.4.1 | B73: COMPOSIÇÃO | C73: COMPOSIÇÃO | D73: CONSTRUÇÃO DE CAIXA DE ALVENARIA COM TAMPA METÁLICA E PORTA CADEADO, COM FUNDO DRENANTE, FORRADO DE BRITA (5,0 CM) PARA ABRIGAR OS REGISTROS DE GAVETA, COM DIMENSÕES 1,0 X 1,0 X 1,0. | E73: un | F73: 5 | G73: =Composições!H464 -> 519.30428 | H73: =ROUND(G73*(1+$K$9),2) -> 656.61 | I73: =ROUND(H73*F73,2) -> 3283.05
A74: 3.4.2 | B74: 74166/001 | C74: 74166/001 | D74: CAIXA PRE-MOLDADA DE D=60CM PARA REDE ELETRICA | E74: un | F74: 55 | G74: 123.18 | H74: 155.75 | I74: 8566.25 | K74: -32.57
A75: 3.5 | C75: Bloco de Ancoragem e Descarga | K75: 0
A76: 3.5.1 | B76: 74076/001 | C76: 74076/001 | D76: FORMA PINHO 3A P/CONCRETO EM FUNDAÇÃO REAPROV 3 VEZES - CORTE/MONTAGEM /ESCORAMENTO/DESFORMA, NÃO INCLUÍDO DEMOLDANTE | E76: m² | F76: 4.1 | G76: 38.06 | H76: =ROUND(G76*(1+$K$9),2) -> 48.12 | I76: =ROUND(H76*F76,2) -> 197.29 | K76: -10.06
A77: 3.5.2 | B77: COMPOSIÇÃO | C77: COMPOSIÇÃO | D77: CONCRETO FCK 15 MPA (1:2:5:3),INCLUIDO PREPARO MECANICO, LANÇAMENTO E ADENSAMENTO. | E77: m³ | F77: 0.51 | G77: =Composições!H139 -> 507.1478 | H77: 641.24 | I77: 327.03
A78: 3.6 | C78: Serviços Diversos | K78: 0
A79: 3.6.1 | B79: 73678 | C79: 73678 | D79: CADASTRO DA ADUTORA | E79: m | F79: 2140 | G79: 1.72 | H79: =ROUND(G79*(1+$K$9),2) -> 2.17 | I79: =ROUND(H79*F79,2) -> 4643.8 | K79: =G79-H79 -> -0.45
A80: 3.6.2 | B80: COMPOSIÇÃO | C80: COMPOSIÇÃO | D80: TESTE HIDROSTÁTICO EM REDE DE ÁGUA/ADUTORA | E80: m | F80: 3300 | G80: =Composições!H474 -> 0.225347 | H80: 0.28 | I80: 924
K81: 0
A82: 4 | C82: UNIDADE DO SISTEMA: ADUTORAS DE ÁGUA TRATADA | K82: 0
A83: 4.0 | C83: OBRAS CIVIS | K83: 0
A84: 4.1 | C84: Serviços Preliminares | K84: 0
A85: 4.1.1 | B85: 73679 | C85: 73679 | D85: LOCAÇÃO DA ADUTORA | E85: m | F85: 92 | G85: 0.56 | H85: =ROUND(G85*(1+$K$9),2) -> 0.71 | I85: =ROUND(H85*F85,2) -> 65.32 | K85: -0.15
A86: 4.1.2 | B86: COMPOSIÇÃO | C86: COMPOSIÇÃO | D86: ACOMPANHAMENTO TOPOGRÁFICO | E86: dia | F86: 1 | G86: =Composições!H284 -> 205.68 | H86: 260.06 | I86: 260.06
A87: 4.1.3 | B87: COMPOSIÇÃO | C87: COMPOSIÇÃO | D87: SINALIZAÇÃO ABERTA SEM ILUMINAÇÃO, MONTANTES DE H=1,00M E TELA EM PVC, INCLUINDO FORNECIMNTO, TRANSPORTE, INSTALAÇÃO E REMOÇÃO PARA OUTRO LOCAL DA OBRA | E87: m | F87: 40 | G87: =Composições!H295 -> 23.22 | H87: 29.36 | I87: 1174.4
A88: 4.2 | C88: Movimento de terra | K88: 0
A89: 4.2.1 | B89: 73965/010 | C89: 73965/010 | D89: ESCAVAÇÃO MANUAL DE VALAS EM SOLO DE 1ª CAT. EXEC. COM PROFUNDIDADE ATÉ 1,5M EXCLUINDO ESGOTAMENTO / ESCORAMENTO | E89: m³ | F89: =120*0.4+30+311 -> 389 | G89: 22.07 | H89: 27.91 | I89: 10856.99 | K89: -5.84
A90: 4.2.2 | B90: 73965/001 | C90: 73965/001 | D90: ESCAVAÇÃO MANUAL DE VALAS , A FRIO EM MATERIAL DE 2ª CATEGORIA, COM PROFUNDIDADE ATÉ 1,5M | E90: m³ | F90: =120-78+18.6 -> 60.6 | G90: 47.03 | H90: 59.46 | I90: 3603.28 | K90: -12.43
A91: 4.2.3 | B91: 73962/013 | C91: 73962/013 | D91: ESCAVACAO DE VALA NAO ESCORADA EM MATERIAL 1A CATEGORIA , PROFUNDIDADE ATE 1,5 M COM ESCAVADEIRA HIDRAULICA 105 HP(CAPACIDADE DE 0,78M3), SEM ESGOTAMENTO | E91: m³ | F91: 6.6 | G91: 3.59 | H91: 4.54 | I91: 29.96 | K91: -0.95
A92: 4.2.4 | B92: SERVIÇO 74015/001 | C92: SERVIÇO 74015/001 | D92: EXEC. DE ATERRO EM VALAS/POCOS/CAVAS DE FUNDACAO C/ SOLO PROVENIENTE DAS ESCAVACOES, INCL. LANCAM., ESPALHAM., COMPACT. C/ PLACA VIBRAT., SOQUETE PNEUMATICO | E92: m³ | F92: =30+6.25+47.6+311 -> 394.85 | G92: 14.97 | H92: 18.93 | I92: 7474.51 | K92: -3.96
A93: 4.2.5 | B93: 74010/001 | C93: 74010/001 | D93: CARGA E DESCARGA MECANIZADA DE MATERIAL DE 2ª E 3ª CATEGORIA EM CAMINHÃO BASCULANTE | E93: m³ | F93: 61.35 | G93: 0.98 | H93: 1.24 | I93: 76.07 | K93: -0.26
A94: 4.2.6 | B94: 72855 | C94: 72855 | D94: TRANSPORTE LOCAL COM CAMINHÃO BASCULHANTE 6M³, EM RODOVIA EM LEITO NATURAL DMT 800 A 1.000M | E94: m³ | F94: =F93 -> 61.35 | G94: 2.79 | H94: 3.53 | I94: 216.57 | K94: -0.74
A95: 4.3 | C95: Assentamento e Envelopamento das tubulações | K95: 0
A96: 4.3.1 | B96: COMPOSIÇÃO | C96: COMPOSIÇÃO | D96: CARGA E DESCARGA DE TUBULAÇÃO EM POLIETILENO PARA Ø ATÉ 160MM | E96: m | F96: 92 | G96: =Composições!H304 -> 1.4778816 | H96: =ROUND(G96*(1+$K$9),2) -> 1.87 | I96: =ROUND(H96*F96,2) -> 172.04
A97: 4.3.2 | B97: COMPOSIÇÃO | C97: COMPOSIÇÃO | D97: MOMENTO DE TRANSPORTE DE TUBULAÇÃO, PEÇAS E CONEXÕES EM POLIETILENO DE ALTA DENSIDADE, PEAD, PE-80 ATÉ 160 MM | E97: m | F97: 92 | G97: =Composições!H313 -> 0.9462 | H97: 1.2 | I97: 110.4
A98: 4.3.3 | B98: COMPOSIÇÃO | C98: COMPOSIÇÃO | D98: ASSENTAMENTO DE TUBO DE POLIETILENO PEAD PE-80 PN 12,5 DN 140 MM | E98: m | F98: 35 | G98: =Composições!H535 -> 1.11 | H98: 1.4 | I98: 49
A99: 4.3.4 | B99: COMPOSIÇÃO | C99: COMPOSIÇÃO | D99: ASSENTAMENTO DE TUBO DE POLIETILENO PEAD PE-80 PN 12,5 DN 110 MM | E99: m | F99: 25 | G99: =Composições!H543 -> 1.04 | H99: 1.31 | I99: 32.75
A100: 4.3.5 | B100: COMPOSIÇÃO | C100: COMPOSIÇÃO | D100: ASSENTAMENTO DE TUBO DE POLIETILENO PEAD PE-80 PN 10 DN 90 MM | E100: m | F100: 32 | G100: =Composições!H551 -> 0.93 | H100: 1.18 | I100: 37.76
A101: 4.3.6 | B101: 73884/003 | C101: 73884/003 | D101: INSTALAÇÃO DE VÁLVULAS OU REGISTRO COM JUNTA ELÁSTICA DN 100 | E101: un | F101: 30 | G101: 48.62 | H101: 61.48 | I101: 1844.4 | K101: -12.86
A102: 4.3.7 | B102: COMPOSIÇÃO | C102: COMPOSIÇÃO | D102: EXECUÇÃO DE ENVELOPAMENTO DE TUBULAÇÃO EM CONCRETO SIMPLES,INCLUIDO PREPARO MECANICO, LANÇAMENTO E ADENSAMENTO. | E102: m³ | F102: 2.35 | G102: =Composições!H152 -> 687.76 | H102: 869.6 | I102: 2043.56
A103: 4.3.8 | B103: COMPOSIÇÃO | C103: COMPOSIÇÃO | D103: ASSENTAMENTO DE CONEXÃO EM PEAD PE-80 EM GERAL | E103: un | F103: =30+5+311 -> 346 | G103: =Composições!H164 -> 91.81 | H103: 116.08 | I103: 40163.68
A104: 4.4 | C104: Caixas para válvulas e ventosas | K104: 0
A105: 4.4.1 | B105: COMPOSIÇÃO | C105: COMPOSIÇÃO | D105: CONSTRUÇÃO DE CAIXA DE ALVENARIA COM TAMPA METÁLICA E PORTA CADEADO, COM FUNDO DRENANTE, FORRADO DE BRITA (5,0 CM) PARA ABRIGAR OS REGISTROS DE GAVETA, COM DIMENSÕES 1,0 X 1,0 X 1,0. | E105: un | F105: 30 | G105: =Composições!H464 -> 519.30428 | H105: =ROUND(G105*(1+$K$9),2) -> 656.61 | I105: =ROUND(H105*F105,2) -> 19698.3
A106: 4.5 | C106: Bloco de Ancoragem e Descarga | K106: 0
A107: 4.5.1 | B107: 74076/001 | C107: 74076/001 | D107: FORMA PINHO 3A P/CONCRETO EM FUNDAÇÃO REAPROV 3 VEZES - CORTE/MONTAGEM /ESCORAMENTO/DESFORMA, NÃO INCLUÍDO DEMOLDANTE | E107: m² | F107: 14.88 | G107: 38.06 | H107: =ROUND(G107*(1+$K$9),2) -> 48.12 | I107: =ROUND(H107*F107,2) -> 716.03 | K107: -10.06
A108: 4.5.2 | B108: COMPOSIÇÃO | C108: COMPOSIÇÃO | D108: CONCRETO FCK 15 MPA (1:2:5:3),INCLUIDO PREPARO MECANICO, LANÇAMENTO E ADENSAMENTO. | E108: m³ | F108: 3.8 | G108: =Composições!H139 -> 507.1478 | H108: =ROUND(G108*(1+$K$9),2) -> 641.24 | I108: =ROUND(H108*F108,2) -> 2436.71
A109: 4.6 | C109: Serviços Diversos | K109: 0
A110: 4.6.1 | B110: 73678 | C110: 73678 | D110: CADASTRO DA ADUTORA | E110: m | F110: 92 | G110: 1.72 | H110: =ROUND(G110*(1+$K$9),2) -> 2.17 | I110: =ROUND(H110*F110,2) -> 199.64 | K110: -0.45
A111: 4.6.2 | B111: COMPOSIÇÃO | C111: COMPOSIÇÃO | D111: TESTE HIDROSTÁTICO EM REDE DE ÁGUA/ADUTORA | E111: m | F111: 22721.25 | G111: =Composições!H474 -> 0.225347 | H111: 0.28 | I111: 6361.95
K112: 0
A113: 5 | C113: UNIDADE DO SISTEMA: SUB-ADUTORAS DE ÁGUA TRATADA | K113: 0
A114: 5.0 | C114: OBRAS CIVIS | K114: 0
A115: 5.1 | C115: Serviços Preliminares | K115: 0
A116: 5.1.1 | B116: 73679 | C116: 73679 | D116: LOCAÇÃO DA ADUTORA | E116: m | F116: 33 | G116: 0.56 | H116: =ROUND(G116*(1+$K$9),2) -> 0.71 | I116: =ROUND(H116*F116,2) -> 23.43 | K116: -0.15
A117: 5.1.2 | B117: COMPOSIÇÃO | C117: COMPOSIÇÃO | D117: ACOMPANHAMENTO TOPOGRÁFICO | E117: dia | F117: 1 | G117: =Composições!H284 -> 205.68 | H117: 260.06 | I117: 260.06
A118: 5.1.3 | B118: COMPOSIÇÃO | C118: COMPOSIÇÃO | D118: SINALIZAÇÃO ABERTA SEM ILUMINAÇÃO, MONTANTES DE H=1,00M E TELA EM PVC, INCLUINDO FORNECIMNTO, TRANSPORTE, INSTALAÇÃO E REMOÇÃO PARA OUTRO LOCAL DA OBRA | E118: m | F118: 30 | G118: =Composições!H295 -> 23.22 | H118: =ROUND(G118*(1+$K$9),2) -> 29.36 | I118: =ROUND(H118*F118,2) -> 880.8
A119: 5.2 | C119: Movimento de terra | K119: 0
A120: 5.2.1 | B120: 73965/010 | C120: 73965/010 | D120: ESCAVAÇÃO MANUAL DE VALAS EM SOLO DE 1ª CAT. EXEC. COM PROFUNDIDADE ATÉ 1,5M EXCLUINDO ESGOTAMENTO / ESCORAMENTO | E120: m³ | F120: =28 -> 28 | G120: 22.07 | H120: =ROUND(G120*(1+$K$9),2) -> 27.91 | I120: =ROUND(H120*F120,2) -> 781.48 | K120: -5.84
A121: 5.2.2 | B121: 72915 | C121: 72915 | D121: ESCAVAÇÃO MECANIZADA DE MATERIAL DE 2ª CATEGORIA | E121: m³ | F121: 9.9 | G121: 9.44 | H121: 11.94 | I121: 118.21 | K121: -2.5
A122: 5.2.3 | B122: SERVIÇO 74015/001 | C122: SERVIÇO 74015/001 | D122: EXEC. DE ATERRO EM VALAS/POCOS/CAVAS DE FUNDACAO C/ SOLO PROVENIENTE DAS ESCAVACOES, INCL. LANCAM., ESPALHAM., COMPACT. C/ PLACA VIBRAT., SOQUETE PNEUMATICO | E122: m³ | F122: =9.52+F120 -> 37.52 | G122: 14.97 | H122: 18.93 | I122: 710.25 | K122: -3.96
A123: 5.2.4 | B123: 73904/001 | C123: 73904/001 | D123: EXECUÇÃO DE ATERRO EM VALAS, POÇOS, CAVAS DE FUNDAÇÃO COM AQUISIÇÃO DE MATERIAL, INC. LANÇ., ESPAL., COMPAC. MANUAL | E123: m³ | F123: 10 | G123: 60.17 | H123: 76.08 | I123: 760.8 | K123: -15.91
A124: 5.2.5 | B124: 72855 | C124: 72855 | D124: TRANSPORTE LOCAL COM CAMINHÃO BASCULHANTE 6M³, EM RODOVIA EM LEITO NATURAL DMT 800 A 1.000M | E124: m³ | F124: 10.38 | G124: 2.79 | H124: 3.53 | I124: 36.64 | K124: -0.74
A125: 5.3 | C125: Assentamento e Envelopamento das tubulações | K125: 0
A126: 5.3.1 | B126: COMPOSIÇÃO | C126: COMPOSIÇÃO | D126: CARGA E DESCARGA DE TUBULAÇÃO EM PVC RÍGIDO OU DEFOFO PARA Ø ATÉ 350MM | E126: m | F126: 58 | G126: =Composições!H181 -> 0.73044 | H126: =ROUND(G126*(1+$K$9),2) -> 0.92 | I126: =ROUND(H126*F126,2) -> 53.36
A127: 5.3.2 | B127: COMPOSIÇÃO | C127: COMPOSIÇÃO | D127: MOMENTO DE TRANSPORTE DE TUBULAÇÃO, PEÇAS E CONEXÕES EM PVC RÍGIDO DN ATÉ 350 MM | E127: m | F127: 58 | G127: =Composições!H190 -> 1.2174 | H127: 1.54 | I127: 89.32
A128: 5.3.3 | B128: 73888/001 | C128: 73888/001 | D128: ASSENTAMENTO DE TUBOS E CONEXÕES EM PVC RÍG. PBA, PB JE P/ ÁGUA Ø 50MM | E128: m | F128: 33 | G128: 0.71 | H128: 0.9 | I128: 29.7 | K128: -0.19
A129: 5.3.4 | B129: 73888/002 | C129: 73888/002 | D129: ASSENTAMENTO DE TUBOS E CONEXÕES EM PVC RÍG. PBA, PB JE P/ ÁGUA Ø 75MM | E129: m | F129: 25 | G129: 0.95 | H129: 1.2 | I129: 30 | K129: -0.25
A130: 5.3.5 | B130: 73884/003 | C130: 73884/003 | D130: INSTALAÇÃO DE VÁLVULAS OU REGISTRO COM JUNTA ELÁSTICA DN 100 | E130: un | F130: 12 | G130: 48.62 | H130: 61.48 | I130: 737.76 | K130: -12.86
A131: 5.3.6 | B131: COMPOSIÇÃO | C131: COMPOSIÇÃO | D131: EXECUÇÃO DE ENVELOPAMENTO DE TUBULAÇÃO EM CONCRETO SIMPLES,INCLUIDO PREPARO MECANICO, LANÇAMENTO E ADENSAMENTO. | E131: m³ | F131: 5.16 | G131: =Composições!H152 -> 687.76 | H131: 869.6 | I131: 4487.14
A132: 5.4 | C132: Caixas para válvulas e ventosas | K132: 0
A133: 5.4.1 | B133: COMPOSIÇÃO | C133: COMPOSIÇÃO | D133: CONSTRUÇÃO DE CAIXA DE ALVENARIA COM TAMPA METÁLICA E PORTA CADEADO, COM FUNDO DRENANTE, FORRADO DE BRITA (5,0 CM) PARA ABRIGAR OS REGISTROS DE GAVETA, COM DIMENSÕES 1,0 X 1,0 X 1,0. | E133: un | F133: 13 | G133: =Composições!H464 -> 519.30428 | H133: =ROUND(G133*(1+$K$9),2) -> 656.61 | I133: =ROUND(H133*F133,2) -> 8535.93
A134: 5.5 | C134: Bloco de Ancoragem e Descarga | K134: 0
A135: 5.5.1 | B135: 74076/001 | C135: 74076/001 | D135: FORMA PINHO 3A P/CONCRETO EM FUNDAÇÃO REAPROV 3 VEZES - CORTE/MONTAGEM /ESCORAMENTO/DESFORMA, NÃO INCLUÍDO DEMOLDANTE | E135: m² | F135: 11.2 | G135: 38.06 | H135: =ROUND(G135*(1+$K$9),2) -> 48.12 | I135: =ROUND(H135*F135,2) -> 538.94 | K135: -10.06
A136: 5.5.2 | B136: COMPOSIÇÃO | C136: COMPOSIÇÃO | D136: CONCRETO FCK 15 MPA (1:2:5:3),INCLUIDO PREPARO MECANICO, LANÇAMENTO E ADENSAMENTO. | E136: m³ | F136: 0.51 | G136: =Composições!H139 -> 507.1478 | H136: 641.24 | I136: 327.03
A137: 5.6 | C137: Serviços Diversos | K137: 0
A138: 5.6.1 | B138: 73678 | C138: 73678 | D138: CADASTRO DA ADUTORA | E138: m | F138: 58 | G138: 1.72 | H138: =ROUND(G138*(1+$K$9),2) -> 2.17 | I138: =ROUND(H138*F138,2) -> 125.86 | K138: -0.45
A139: 5.6.2 | B139: COMPOSIÇÃO | C139: COMPOSIÇÃO | D139: TESTE HIDROSTÁTICO EM REDE DE ÁGUA/ADUTORA | E139: m | F139: 10059.23 | G139: =Composições!H474 -> 0.225347 | H139: 0.28 | I139: 2816.58
K140: 0
A141: 6 | C141: UNIDADE DO SISTEMA: ESTAÇÃO DE TRATAMENTO DE ÁGUA (Q = 9,0 l/s) | K141: 0
A142: 6.0 | C142: OBRAS CIVIS | K142: 0
C143: SUMIDOURO 2,5 X 2,5 m | K143: =G143-H143 -> 0
A144: 6.1 | C144: Serviços Preliminares | K144: 0
A145: 6.1.1 | B145: 73948/016 | C145: 73948/016 | D145: LIMPEZA DO TERRENO | E145: m² | F145: 50 | G145: 1.57 | H145: =ROUND(G145*(1+$K$9),2) -> 1.99 | I145: =ROUND(H145*F145,2) -> 99.5 | K145: -0.42
A146: 6.1.2 | B146: 73992/001 | C146: 73992/001 | D146: LOCAÇÃO DA OBRA | E146: m² | F146: 9 | G146: 8.84 | H146: 11.18 | I146: 100.62 | K146: -2.34
A147: 6.2 | C147: Movimento de terra | K147: 0
A148: 6.2.1 | B148: 73904/001 | C148: 73904/001 | D148: EXECUÇÃO DE ATERRO EM VALAS, POÇOS, CAVAS DE FUNDAÇÃO COM AQUISIÇÃO DE MATERIAL, INC. LANÇ., ESPAL., COMPAC. MANUAL | E148: m³ | F148: 108 | G148: 60.17 | H148: 76.08 | I148: 8216.64 | K148: -15.91
A149: 6.3 | C149: Fundações e Estrutura | K149: 0
A150: 6.3.1 | B150: 74076/001 | C150: 74076/001 | D150: FORMA PINHO 3A P/CONCRETO EM FUNDAÇÃO REAPROV 3 VEZES - CORTE/MONTAGEM /ESCORAMENTO/DESFORMA, NÃO INCLUÍDO DEMOLDANTE | E150: m² | F150: 4 | G150: 38.06 | H150: 48.12 | I150: 192.48 | K150: -10.06
A151: 6.3.2 | B151: 74254/002 | C151: 74254/002 | D151: ARMAÇÃO AÇO CA-50, DIAMETRO 6.3 (1/4) Á 12,5mm (1/2) - FORNECIMENTO E CORTE (Kg PERDA DE 10%) / DOBRA / COLOCAÇÃO | E151: Kg | F151: 35 | G151: 6.05 | H151: 7.65 | I151: 267.75 | K151: -1.6
A152: 6.3.3 | B152: COMPOSIÇÃO | C152: COMPOSIÇÃO | D152: CONCRETO FCK 15 MPA (1:2:5:3),INCLUIDO PREPARO MECANICO, LANÇAMENTO E ADENSAMENTO. | E152: m³ | F152: 0.41 | G152: =Composições!H139 -> 507.1478 | H152: 641.24 | I152: =ROUND(H152*F152,2) -> 262.91
A153: 6.4 | C153: Vedação | K153: 0
A154: 6.4.1 | B154: 73935/002 | C154: 73935/002 | D154: ALVENARIA DE TIJOLO CERÂMICO 1 VEZ | E154: m² | F154: 8.8 | G154: 48.04 | H154: 60.74 | I154: 534.51 | K154: -12.7
A155: 6.5 | C155: Revestimento | K155: 0
A156: 6.5.1 | B156: 73928/001 | C156: 73928/001 | D156: CHAPISCO | E156: m² | F156: 17.6 | G156: 3.33 | H156: 4.21 | I156: 74.1 | K156: -0.88
A157: 6.5.2 | B157: 5976 | C157: 5976 | D157: REBOCO | E157: m² | F157: 17.6 | G157: 15.18 | H157: 19.19 | I157: 337.74 | K157: -4.01
A158: 6.6 | C158: Pintura | K158: 0
A159: 6.6.1 | B159: 73924/002 | C159: 73924/002 | D159: PINTURA ESMALTE EM ESQUADRIA DE FERRO - 2 DEMÃOS | E159: m² | F159: 4 | G159: 13.2 | H159: =ROUND(G159*(1+$K$9),2) -> 16.69 | I159: 66.76 | K159: -3.49
A160: 6.7 | C160: Urbanização | K160: 0
A161: 6.7.1 | B161: 74142/004 | C161: 74142/004 | D161: CERCA COM 14 FIOS DE ARAME FARPADO 16BWG 4X4", COM ESTACAS DE CONCRETO PRÉ-MOLDADA, COM DIMENSÕES 10X10X2,45CM | E161: m | F161: 56 | G161: 33.94 | H161: =ROUND(G161*(1+$K$9),2) -> 42.91 | I161: =ROUND(H161*F161,2) -> 2402.96 | K161: -8.97
A162: 6.7.2 | B162: 74100/001 | C162: 74100/001 | D162: PORTÃO EM TUBO DE FERRO COM VARA 1/2" COMREQUADRO, INCL. GUARNIÇÕES E FERRAGENS | E162: m² | F162: 2 | G162: 213.55 | H162: 270.01 | I162: 540.02 | K162: -56.46
A163: 6.8 | C163: Montagem dos Equipamentos | K163: 0
A164: 6.8.1 | B164: COMPOSIÇÃO | C164: COMPOSIÇÃO | D164: REALIZAÇÃO DE TESTES PRÉ-OPERACIONAIS E TESTE DE FUCIONAMENTE DO SISTEMA, INCLUISIVE FORNECIMENTO DOS PRODUTOS QUÍMICOS NECESSÁRIOS PARA UM MÊS DE OPERAÇÃO, E TREINAMENTO DE PESSOAL PARA OPERAÇÃO E MANUTENÇÃO DA ETA ATE 13,00 L/S | E164: un | F164: 1 | G164: =Composições!H397 -> 1307.56 | H164: =ROUND(G164*(1+$K$9),2) -> 1653.28 | I164: =ROUND(H164*F164,2) -> 1653.28
A165: 6.8.2 | B165: COMPOSIÇÃO | C165: COMPOSIÇÃO | D165: MONTAGEM DA ESCADA DE ACESSO AOS FLOCULADORES DA ESTAÇÃO DE TRATAMENTO. | E165: un | F165: 1 | G165: =Composições!H335 -> 379.92 | H165: =ROUND(G165*(1+$K$9),2) -> 480.37 | I165: 480.37
A166: 7 | C166: UNIDADE DO SISTEMA: ESTAÇÃO ELEVATÓRIA (20 CV) E CASA DE QUÍMICA | K166: 0
A167: 7.0 | C167: OBRAS CIVIS | K167: 0
A168: 7.1 | C168: Pisos | K168: 0
A169: 7.1.1 | B169: 73829/001 | C169: 73829/001 | D169: PISO EM CERAMICA ESMALTADA PEI-V | E169: m² | F169: 3.12 | G169: 43.46 | H169: =ROUND(G169*(1+$K$9),2) -> 54.95 | I169: =ROUND(H169*F169,2) -> 171.44 | K169: -11.49
A170: 7.2 | C170: Revestimento | K170: 0
A171: 7.2.1 | B171: 73912/001 | C171: 73912/001 | D171: Revestimento cerâmico 20x20 PEI-IV | E171: m² | F171: 19.6 | G171: 26.4 | H171: =ROUND(G171*(1+$K$9),2) -> 33.38 | I171: =ROUND(H171*F171,2) -> 654.25 | K171: -6.98
A172: 7.3 | C172: Esquadrias | K172: 0
A173: 7.3.1 | B173: 73933/002 | C173: 73933/002 | D173: FORNECIMENTO E ASSENTAMENTO DE PORTA EM CHAPA DE FERRO DE ABRIR COM UMA FOLHA, COLOCAÇÃO E ACABAMENTO | E173: m² | F173: 2.1 | G173: 317.09 | H173: =ROUND(G173*(1+$K$9),2) -> 400.93 | I173: =ROUND(H173*F173,2) -> 841.95 | K173: -83.84
A174: 7.4 | C174: Pintura | K174: 0
A175: 7.4.1 | B175: COMPOSIÇÃO | C175: COMPOSIÇÃO | D175: PINTURA DA LOGOMARCA DA CODEVASF | E175: un | F175: 2 | G175: =Composições!H347 -> 188.312 | H175: =ROUND(G175*(1+$K$9),2) -> 238.1 | I175: =ROUND(H175*F175,2) -> 476.2
A176: 7.4.2 | B176: 73924/002 | C176: 73924/002 | D176: PINTURA ESMALTE EM ESQUADRIA DE FERRO - 2 DEMÃOS | E176: m² | F176: 7.56 | G176: 13.2 | H176: =ROUND(G176*(1+$K$9),2) -> 16.69 | I176: 126.18 | K176: -3.49
A177: 7.4.3 | B177: 73954/003 | C177: 73954/003 | D177: PINTURA LATEX ACRILICA - 1 DEMÃOS | E177: m² | F177: 190.05 | G177: 13.27 | H177: 16.78 | I177: 3189.04 | K177: -3.51
A178: 7.5 | C178: Instalação elétrica | K178: 0
A179: 7.5.1 | B179: Composição | C179: Composição | D179: FORNECIMENTO E INSTALAÇÃO DOS ELETRODUTOS, CABOS, QUADROS, PONTOS DE FORÇA DOS MOTORES, TOMADAS, INTERRUPTORES, LUMINÁRIAS E ILUMINAÇÃO EXTERNA DA ETA | E179: und | F179: 1 | G179: ='Composição eletrica'!G71 -> 15519.46 | H179: =G179 -> 15519.46 | I179: =ROUND(H179*F179,2) -> 15519.46
A180: 7.5.2 | B180: Composição | C180: Composição | D180: FORNECIMENTO E INSTALAÇÃO DA SUBESTAÇÃO ABAIXADORA DE 30 KVA E INTERLIGAÇÃO (CIRCUITO ALIMENTADOR) DA SE AO QGBT DA ETA/CAPTAÇÃO | E180: und | F180: 1 | G180: ='Composição eletrica'!G136 -> 18377.5 | H180: 18377.5 | I180: 18377.5
A181: 7.5.3 | B181: Composição | C181: Composição | D181: FORNECIMENTO E INSTALAÇÃO PARA A EXTENSÃO DE REDE ELÉTRICA DE MÉDIA TENSÃO, 13,8KV, TRIFÁSICO | E181: km | F181: 0.25 | G181: ='Composição eletrica'!G307 -> 70593.22 | H181: 70593.22 | I181: 17648.31
A182: 7.5.4 | B182: 73836/002 | C182: 73836/002 | D182: INSTALAÇÃO DE CONJUNTO MOTOR-BOMBA HORIZONTAL DE 12,5 A 25CV | E182: und | F182: 2 | G182: 298.41 | H182: 298.41 | I182: 596.82 | K182: 0
A183: 7.5.5 | B183: Composição | C183: Composição | D183: ELABORAÇÃO DE PROJETO EXECUTIVO DAS INSTALAÇÕES ELÉTRICAS DE MÉDIA E BAIXA TENSÃO DA ETA E CAPTAÇÃO/FLUTUANTE, COM APROVAÇÃO E EMOLUMENTOS JUNTO A CONCESSIONÁRIA | E183: und | F183: 1 | G183: ='Composição eletrica'!G330 -> 2800.6 | H183: 2800.6 | I183: 2800.6
A184: 7.6 | C184: Instalações hidráulicas e sanitárias | K184: 0
A185: 7.6.1 | B185: 72685 | C185: 72685 | D185: RALO SINFONADO DE PVC 100 X 100 MM SIMPLES - FORNECIMENTO E INSTALAÇÃO | E185: un | F185: 1 | G185: 15.25 | H185: =ROUND(G185*(1+$K$9),2) -> 19.28 | I185: =ROUND(H185*F185,2) -> 19.28 | K185: -4.03
A186: 7.6.2 | B186: 86942 | C186: 86942 | D186: LAVATÓRIO LOUÇA BRANCA, S/COLUNA PADRÃO POPULAR, COM TORNEIRA, SIFÃO, VÁLVULA E ENGATE PLÁSTICO FORN. E INST. | E186: un | F186: 1 | G186: 90.83 | H186: 114.85 | I186: 114.85 | K186: -24.02
A187: 7.6.3 | B187: 86931 | C187: 86931 | D187: VASO SANITÁRIO BRANCO COM CAIXA ACOPLADA,PADRÃO MÉDIO, INCLUINDO ENGATE, FORN E INSTALAÇÃO | E187: un | F187: 1 | G187: 267.02 | H187: 337.62 | I187: 337.62 | K187: -70.6
A188: 7.6.4 | B188: 6004 | C188: 6004 | D188: PAPELEIRA DE LOUÇA BRANCA - FORNECIMENTO E INSTALAÇÃO | E188: un | F188: 1 | G188: 44 | H188: 55.63 | I188: 55.63 | K188: -11.63
A189: 7.6.5 | B189: 6007 | C189: 6007 | D189: SABONETEIRA DE LOUÇA BRANCA 7,5 X 15 CM - FORNECIMENTO E INSTALAÇÃO | E189: un | F189: 1 | G189: 36.14 | H189: 45.7 | I189: 45.7 | K189: -9.56
A190: 7.6.6 | B190: 72671 | C190: 72671 | D190: NIPLE DE PVC ROSCÁVEL ÁGUA FRIA 1/2"- FORNECIMENTO E INSTALAÇÃO | E190: un | F190: 1 | G190: 2.7 | H190: 3.41 | I190: 3.41 | K190: -0.71
A191: 7.6.7 | B191: 68061 | C191: 68061 | D191: CHUVEIRO PLÁSTICO BRANCO SIMPLES - FORNECIMENTO E INSTALAÇÃO | E191: un | F191: 1 | G191: 10.78 | H191: 13.63 | I191: 13.63 | K191: -2.85
A192: 7.7 | C192: Serviços finais | K192: 0
A193: 7.7.1 | B193: 9537 | C193: 9537 | D193: LIMPEZA FINAL DA OBRA | E193: m² | F193: 38.69 | G193: 1 | H193: =ROUND(G193*(1+$K$9),2) -> 1.26 | I193: =ROUND(H193*F193,2) -> 48.75 | K193: -0.26
A194: 8 | C194: UNIDADE DO SISTEMA: DESCARGA DE LAVAGEM DOS FILTROS | K194: 0
A195: 8.0 | C195: OBRAS CIVIS | K195: 0
A196: 8.1 | C196: Movimento de terra | K196: 0
A197: 8.1.1 | B197: 73962/013 | C197: 73962/013 | D197: ESCAVACAO DE VALA NAO ESCORADA EM MATERIAL 1A CATEGORIA , PROFUNDIDADE ATE 1,5 M COM ESCAVADEIRA HIDRAULICA 105 HP(CAPACIDADE DE 0,78M3), SEM ESGOTAMENTO | E197: m³ | F197: 25 | G197: 3.59 | H197: =ROUND(G197*(1+$K$9),2) -> 4.54 | I197: =ROUND(H197*F197,2) -> 113.5 | K197: -0.95
A198: 8.1.2 | B198: 72915 | C198: 72915 | D198: ESCAVAÇÃO MECANIZADA DE MATERIAL DE 2ª CATEGORIA | E198: m³ | F198: =75.58-F197 -> 50.58 | G198: 9.44 | H198: =ROUND(G198*(1+$K$9),2) -> 11.94 | I198: =ROUND(H198*F198,2) -> 603.93 | K198: -2.5
A199: 8.1.3 | B199: COMPOSIÇÃO | C199: COMPOSIÇÃO | D199: ESCAVAÇÃO MECANIZADA DE MATERIAL DE 3ª CATEGORIA | E199: m³ | F199: 26.4 | G199: =Composições!H220 -> 121.646495 | H199: 153.81 | I199: 4060.58
A200: 8.1.4 | B200: 74010/001 | C200: 74010/001 | D200: CARGA E DESCARGA MECANIZADA DE MATERIAL DE 1ª, 2ª E 3ª CATEGORIA EM CAMINHÃO BASCULANTE | E200: m³ | F200: =(F197+F198+F202)-F203 -> 42.05 | G200: 0.98 | H200: 1.24 | I200: 52.14 | K200: -0.26
A201: 8.1.5 | B201: 72856 | C201: 72856 | D201: MOMENTO DE TRANSPORTE DE SOLO , EM CAMINHÃO BASCULHANTE EM BOTA FORA | E201: m³ x Km | F201: =F200*5 -> 210.25 | G201: 1.22 | H201: 1.54 | I201: 323.79 | K201: -0.32
A202: 8.1.6 | B202: 73692 | C202: 73692 | D202: LASTRO DE AREIA MEDIA | E202: m³ | F202: 68.47 | G202: 77.01 | H202: 97.37 | I202: 6666.92 | K202: -20.36
A203: 8.1.7 | B203: SERVIÇO 74015/001 | C203: SERVIÇO 74015/001 | D203: EXEC. DE ATERRO EM VALAS/POCOS/CAVAS DE FUNDACAO C/ SOLO PROVENIENTE DAS ESCAVACOES, INCL. LANCAM., ESPALHAM., COMPACT. C/ PLACA VIBRAT., SOQUETE PNEUMATICO | E203: m³ | F203: 102 | G203: 14.07 | H203: 17.79 | I203: 1814.58 | K203: -3.72
A204: 8.2 | C204: Assentamento das tubulações | K204: 0
... 142 more rows

Sheet Sistema 3
A4: SISTEMA DE ABASTECIMENTO D'ÁGUA - REMANSO - BA
A5: REPLANILHAMENTO DA PLANILHA DO SISTEMA 03
A7: ITEM | C7: ITEM (SINAPI FEV/14 - C/DESONERAÇÃO) | D7: DESCRIÇÃO DE SERVIÇOS | E7: Unid. | F7: Quant. | G7: P.UNIT. | H7: P.UNIT.C /BDI | I7: Total | J7: VALOR
C8: SISTEMA 03 | I8: =(SUM(I9:I346)/2) -> 684489.93 | K8: BDI
C9: SERVIÇOS | I9: =SUM(I10:I265) -> 478817.87 | K9: 0.2644 | L9: 0.235
A10: 1 | C10: UNIDADE DO SISTEMA: CAPTAÇÃO FLUTUANTE | K10: 0.168 | L10: 0.18
A11: 1.0 | C11: OBRAS CIVIS
A12: 1.1 | C12: Transporte de equipamentos, tubos e conexões
A13: 1.1.1 | B13: COMPOSIÇÃO | C13: COMPOSIÇÃO | D13: CARGA E DESCARGA DE TUBO DE FERRO, FOFO DUCTIL OU AÇO CARBONO PARA Ø ATÉ 300MM | E13: t | F13: 0.36 | G13: =Composições!H208 -> 29.759 | H13: =ROUND(G13*(1+$K$9),2) -> 37.63 | I13: =ROUND(H13*F13,2) -> 13.55
A14: 1.2 | C14: Execução de blocos de ancoragem
A15: 1.2.1 | B15: 74076/001 | C15: 74076/001 | D15: FORMA PINHO 3A P/CONCRETO EM FUNDAÇÃO REAPROV 3 VEZES - CORTE/MONTAGEM /ESCORAMENTO/DESFORMA, NÃO INCLUÍDO DEMOLDANTE | E15: m² | F15: 39.05 | G15: 38.06 | H15: =ROUND(G15*(1+$K$9),2) -> 48.12 | I15: =ROUND(H15*F15,2) -> 1879.09
A16: 1.2.2 | B16: COMPOSIÇÃO | C16: COMPOSIÇÃO | D16: CONCRETO FCK 15 MPA (1:2:5:3),INCLUIDO PREPARO MECANICO, LANÇAMENTO E ADENSAMENTO. | E16: m³ | F16: 4.56 | G16: =Composições!H139 -> 507.1478 | H16: =ROUND(G16*(1+$K$9),2) -> 641.24 | I16: =ROUND(H16*F16,2) -> 2924.05
A17: 1.2.3 | B17: 74254/002 | C17: 74254/002 | D17: ARMAÇÃO AÇO CA-50, DIAMETRO 6.3 (1/4) Á 12,5mm (1/2) - FORNECIMENTO E CORTE (Kg PERDA DE 10%) / DOBRA / COLOCAÇÃO | E17: Kg | F17: 480 | G17: 6.05 | H17: 7.65 | I17: 3672
A18: 1.3 | C18: Assentamento, montagem e instalações
A19: 1.3.1 | B19: COMPOSIÇÃO | C19: COMPOSIÇÃO | D19: ASSENTAMENTO DE MANGOTE FLEXÍVEL PARA CAPTAÇÃO FLUTUANTE Ø 100 MM | E19: m | F19: 15 | G19: =Composições!H111 -> 38.7 | H19: =ROUND(G19*(1+$K$9),2) -> 48.93 | I19: =ROUND(H19*F19,2) -> 733.95
A20: 1.4 | C20: Instalação elétrica
A21: 1.4.1 | B21: Composição | C21: Composição | D21: FORNECIMENTO E INSTALAÇÃO DOS ELETRODUTOS, CABOS, QUADRO, PONTOS DE FORÇA DOS MOTORES, TOMADA, INTERRUPTOR, LUMINÁRIAS DA CAPTAÇÃO | E21: und | F21: 1 | G21: ='Composição eletrica'!G248 -> 8826.16 | H21: =G21 -> 8826.16 | I21: =ROUND(H21*F21,2) -> 8826.16
A22: 1.4.2 | B22: Composição | C22: Composição | D22: FORNECIMENTO E INSTALAÇÃO DA SUBESTAÇÃO ABAIXADORA DE 30 KVA E INTERLIGAÇÃO (CIRCUITO ALIMENTADOR) DA SE AO QGBT DA ETA/CAPTAÇÃO | E22: und | F22: 1 | G22: ='Composição eletrica'!G136 -> 18377.5 | H22: =G22 -> 18377.5 | I22: 18377.5
A23: 1.4.3 | B23: Composição | C23: Composição | D23: FORNECIMENTO E INSTALAÇÃO PARA A EXTENSÃO DE REDE ELÉTRICA DE MÉDIA TENSÃO, 13,8KV, TRIFÁSICO | E23: km | F23: 0.2 | G23: ='Composição eletrica'!G307 -> 70593.22 | H23: =G23 -> 70593.22 | I23: 14118.64
A24: 1.4.4 | B24: 73836/002 | C24: 73836/002 | D24: INSTALAÇÃO DE CONJUNTO MOTOR-BOMBA HORIZONTAL DE 12,5 A 25CV | E24: und | F24: 2 | G24: 298.41 | H24: =G24 -> 298.41 | I24: 596.82
A25: 1.4.5 | B25: Composição | C25: Composição | D25: INSTALAÇÃO/MONTAGEM ELÉTRICA E MECÂNICA DA CAPTAÇÃO FLUTUANTE | E25: und | F25: 1 | G25: ='Composição eletrica'!G355 -> 434.6 | H25: =G25 -> 434.6 | I25: 434.6
A26: 1.4.6 | B26: COMPOSIÇÃO | C26: COMPOSIÇÃO | D26: INSTALAÇÃO DE CABO EPROTENAX 4 X 50 MM. | E26: m | F26: 4100 | G26: =Composições!H253 -> 7.94 | H26: =ROUND(G26*(1+$K$9),2) -> 10.04 | I26: 41164
A27: 1.4.7 | B27: COMPOSIÇÃO | C27: COMPOSIÇÃO | D27: INSTALAÇÃO DE ELETRODUTO PVC 4", INCLUSIVE ESCAVAÇÃO E REATERRO | E27: m | F27: 200 | G27: =Composições!H264 -> 22.63 | H27: 28.61 | I27: 5722
A28: 1.5 | C28: Pintura
A29: 1.5.1 | B29: 74064/001 | C29: 74064/001 | D29: FUNDO ANTICORROSIVO A BASE DE OXIDO DE FERRO (ZARÇÃO)-DUAS DEMÃOS | E29: m² | F29: 21.18 | G29: 10.18 | H29: =ROUND(G29*(1+$K$9),2) -> 12.87 | I29: =ROUND(H29*F29,2) -> 272.59
A30: 1.5.2 | B30: 73924/002 | C30: 73924/002 | D30: PINTURA ESMALTE EM ESQUADRIA DE FERRO - 2 DEMÃOS | E30: m² | F30: 21.18 | G30: 13.2 | H30: =ROUND(G30*(1+$K$9),2) -> 16.69 | I30: =ROUND(H30*F30,2) -> 353.49
A31: 1.6 | C31: Diversos
A32: 1.6.1 | B32: COMPOSIÇÃO | C32: COMPOSIÇÃO | D32: CORRENTE EM AÇO GALVANIZADO | E32: m | F32: 48 | G32: =Composições!H595 -> 19.98797737 | H32: =ROUND(G32*(1+$K$9),2) -> 25.27 | I32: =ROUND(H32*F32,2) -> 1212.96
A33: 2 | C33: UNIDADE DO SISTEMA: CONSTRUÇÃO DO ABRIGO PARA COMANDO DA BOMBA
A34: 2.0 | C34: OBRAS CIVIS
A35: 2.1 | C35: Esquadrias
A36: 2.1.1 | B36: 85334 | C36: 85334 | D36: RETIRADA DE ESQUARIA METALICA | E36: m² | F36: 1.68 | G36: 6.3 | H36: =ROUND(G36*(1+$K$9),2) -> 7.97 | I36: =ROUND(H36*F36,2) -> 13.39
A37: 2.1.2 | B37: COMPOSIÇÃO | C37: COMPOSIÇÃO | D37: ASSENTAMENTO DE ESQUADRIA METALICA | E37: m² | F37: 1.68 | G37: =Composições!H274 -> 27.95 | H37: =ROUND(G37*(1+$K$9),2) -> 35.34 | I37: =ROUND(H37*F37,2) -> 59.37
A38: 2.2 | C38: Pintura
A39: 2.2.1 | B39: COMPOSIÇÃO | C39: COMPOSIÇÃO | D39: PINTURA DA LOGOMARCA DA CODEVASF | E39: un | F39: 2 | G39: =Composições!H347 -> 188.312 | H39: =ROUND(G39*(1+$K$9),2) -> 238.1 | I39: =ROUND(H39*F39,2) -> 476.2
A40: 2.2.2 | B40: 73924/002 | C40: 73924/002 | D40: PINTURA ESMALTE EM ESQUADRIA DE FERRO - 2 DEMÃOS | E40: m² | F40: 3.36 | G40: 13.2 | H40: =ROUND(G40*(1+$K$9),2) -> 16.69 | I40: =ROUND(H40*F40,2) -> 56.08
A41: 2.2.3 | B41: 73954/003 | C41: 73954/003 | D41: PINTURA LATEX ACRILICA - 1 DEMÃOS | E41: m² | F41: 59.05 | G41: 13.27 | H41: =ROUND(G41*(1+$K$9),2) -> 16.78 | I41: =ROUND(H41*F41,2) -> 990.86
A42: 2.3 | C42: Urbanização
A43: 2.3.1 | B43: 74084/001 | C43: 74084/001 | D43: PORTA CADEADO ZICADO OXIDADO PRETO COMCADEADO DE AÇO GRAFITADO OXIDADO ENVERNIZADO 45MM | E43: un | F43: 1 | G43: 31.5 | H43: =ROUND(G43*(1+$K$9),2) -> 39.83 | I43: =ROUND(H43*F43,2) -> 39.83
A44: 2.3.2 | B44: 73924/002 | C44: 73924/002 | D44: PINTURA ESMALTE EM ESQUADRIA DE FERRO - 2 DEMÃOS | E44: m² | F44: 4 | G44: 13.2 | H44: =ROUND(G44*(1+$K$9),2) -> 16.69 | I44: =ROUND(H44*F44,2) -> 66.76
A45: 2.4 | C45: Serviços finais
A46: 2.4.1 | B46: 9537 | C46: 9537 | D46: LIMPEZA FINAL DA OBRA | E46: m² | F46: 5.29 | G46: 1 | H46: =ROUND(G46*(1+$K$9),2) -> 1.26 | I46: =ROUND(H46*F46,2) -> 6.67
A48: 3 | C48: UNIDADE DO SISTEMA: ADUTORA DE ÁGUA BRUTA - FLUTUANTE/ ETA
A49: 3.0 | C49: OBRAS CIVIS
A50: 3.1 | C50: Serviços Preliminares
A51: 3.1.1 | B51: 73679 | C51: 73679 | D51: LOCAÇÃO DA ADUTORA | E51: m | F51: 584 | G51: 0.56 | H51: =ROUND(G51*(1+$K$9),2) -> 0.71 | I51: =ROUND(H51*F51,2) -> 414.64
A52: 3.1.2 | B52: COMPOSIÇÃO | C52: COMPOSIÇÃO | D52: ACOMPANHAMENTO TOPOGRÁFICO | E52: dia | F52: 1.5 | G52: =Composições!H284 -> 205.68 | H52: =ROUND(G52*(1+$K$9),2) -> 260.06 | I52: =ROUND(H52*F52,2) -> 390.09
A53: 3.1.3 | B53: COMPOSIÇÃO | C53: COMPOSIÇÃO | D53: SINALIZAÇÃO ABERTA SEM ILUMINAÇÃO, MONTANTES DE H=1,00M E TELA EM PVC, INCLUINDO FORNECIMNTO, TRANSPORTE, INSTALAÇÃO E REMOÇÃO PARA OUTRO LOCAL DA OBRA | E53: m | F53: 380 | G53: =Composições!H295 -> 23.22 | H53: =ROUND(G53*(1+$K$9),2) -> 29.36 | I53: =ROUND(H53*F53,2) -> 11156.8
A54: 3.2 | C54: Movimento de terra
A55: 3.2.1 | B55: 73965/010 | C55: 73965/010 | D55: ESCAVAÇÃO MANUAL DE VALAS EM SOLO DE 1ª CAT. EXEC. COM PROFUNDIDADE ATÉ 1,5M EXCLUINDO ESGOTAMENTO / ESCORAMENTO | E55: m³ | F55: 38.6 | G55: 22.07 | H55: =ROUND(G55*(1+$K$9),2) -> 27.91 | I55: =ROUND(H55*F55,2) -> 1077.33
A56: 3.2.2 | B56: 73965/001 | C56: 73965/001 | D56: ESCAVAÇÃO MANUAL DE VALAS , A FRIO EM MATERIAL DE 2ª CATEGORIA, COM PROFUNDIDADE ATÉ 1,5M | E56: m³ | F56: =96.4-F55 -> 57.8 | G56: 47.3 | H56: 59.81 | I56: 3457.02
A57: 3.2.3 | B57: 73962/013 | C57: 73962/013 | D57: ESCAVACAO DE VALA NAO ESCORADA EM MATERIAL 1A CATEGORIA , PROFUNDIDADE ATE 1,5 M COM ESCAVADEIRA HIDRAULICA 105 HP(CAPACIDADE DE 0,78M3), SEM ESGOTAMENTO | E57: m³ | F57: 170.4 | G57: 3.59 | H57: 4.54 | I57: 773.62
A58: 3.2.4 | B58: SERVIÇO 74015/001 | C58: SERVIÇO 74015/001 | D58: EXEC. DE ATERRO EM VALAS/POCOS/CAVAS DE FUNDACAO C/ SOLO PROVENIENTE DAS ESCAVACOES, INCL. LANCAM., ESPALHAM., COMPACT. C/ PLACA VIBRAT., SOQUETE PNEUMATICO | E58: m³ | F58: =152.9+24+37.2 -> 214.1 | G58: 14.97 | H58: 18.93 | I58: 4052.91
A59: 3.2.5 | B59: 74010/001 | C59: 74010/001 | D59: CARGA E DESCARGA MECANIZADA DE MATERIAL DE 1ª E 2ª CATEGORIA EM CAMINHÃO BASCULANTE | E59: m³ | F59: =(F55+F56+F57)-F58 -> 52.7 | G59: 0.98 | H59: 1.24 | I59: 65.35
A60: 3.2.6 | B60: 72855 | C60: 72855 | D60: TRANSPORTE LOCAL COM CAMINHÃO BASCULHANTE 6M³, EM RODOVIA EM LEITO NATURAL DMT 800 A 1.000M | E60: m³ | F60: =F59 -> 52.7 | G60: 2.79 | H60: 3.53 | I60: 186.03
A61: 3.3 | C61: Assentamento e Envelopamento das tubulações
A62: 3.3.1 | B62: COMPOSIÇÃO | C62: COMPOSIÇÃO | D62: CARGA E DESCARGA DE TUBULAÇÃO EM POLIETILENO PARA Ø ATÉ 160MM | E62: m | F62: 584 | G62: =Composições!H304 -> 1.4778816 | H62: =ROUND(G62*(1+$K$9),2) -> 1.87 | I62: =ROUND(H62*F62,2) -> 1092.08
A63: 3.3.2 | B63: COMPOSIÇÃO | C63: COMPOSIÇÃO | D63: MOMENTO DE TRANSPORTE DE TUBULAÇÃO, PEÇAS E CONEXÕES EM POLIETILENO DE ALTA DENSIDADE, PEAD, PE-80 ATÉ 160 MM | E63: m | F63: 584 | G63: =Composições!H313 -> 0.9462 | H63: =ROUND(G63*(1+$K$9),2) -> 1.2 | I63: =ROUND(H63*F63,2) -> 700.8
A64: 3.3.3 | B64: COMPOSIÇÃO | C64: COMPOSIÇÃO | D64: ASSENTAMENTO DE TUBO DE POLIETILENO PEAD PE-80 PN 12,5 DN 160 MM | E64: m | F64: 584 | G64: =Composições!H559 -> 1.25 | H64: 1.58 | I64: 922.72
A65: 3.3.4 | B65: 73884/003 | C65: 73884/003 | D65: INSTALAÇÃO DE VÁLVULAS OU REGISTRO COM JUNTA ELÁSTICA DN 100 | E65: un | F65: 8 | G65: 48.62 | H65: 61.48 | I65: 491.84
A66: 3.3.5 | B66: COMPOSIÇÃO | C66: COMPOSIÇÃO | D66: RETIRADA DE TUBO DE POLIETILENO PEAD PE-80 PN 12,5 DN 160 MM | E66: m | F66: 284 | G66: =Composições!H567 -> 1.25 | H66: 1.58 | I66: 448.72
A67: 3.3.6 | B67: COMPOSIÇÃO | C67: COMPOSIÇÃO | D67: EXECUÇÃO DE ENVELOPAMENTO DE TUBULAÇÃO EM CONCRETO SIMPLES,INCLUIDO PREPARO MECANICO, LANÇAMENTO E ADENSAMENTO. | E67: m³ | F67: 15 | G67: =Composições!H152 -> 687.76 | H67: 869.6 | I67: 13044
A68: 3.3.7 | B68: COMPOSIÇÃO | C68: COMPOSIÇÃO | D68: ASSENTAMENTO DE CONEXÃO EM PEAD PE-80 EM GERAL | E68: un | F68: =6+8 -> 14 | G68: =Composições!H164 -> 91.81 | H68: 116.08 | I68: 1625.12
A69: 3.4 | C69: Caixas para válvulas, ventosas e energia
A70: 3.4.1 | B70: COMPOSIÇÃO | C70: COMPOSIÇÃO | D70: CONSTRUÇÃO DE CAIXA DE ALVENARIA COM TAMPA METÁLICA E PORTA CADEADO, COM FUNDO DRENANTE, FORRADO DE BRITA (5,0 CM) PARA ABRIGAR OS REGISTROS DE GAVETA, COM DIMENSÕES 1,0 X 1,0 X 1,0. | E70: un | F70: 8 | G70: =Composições!H464 -> 519.30428 | H70: =ROUND(G70*(1+$K$9),2) -> 656.61 | I70: =ROUND(H70*F70,2) -> 5252.88
A71: 3.4.2 | B71: 74166/001 | C71: 74166/001 | D71: CAIXA PRE-MOLDADA DE D=60CM PARA REDE ELETRICA | E71: un | F71: 82 | G71: 123.18 | H71: =ROUND(G71*(1+$K$9),2) -> 155.75 | I71: =ROUND(H71*F71,2) -> 12771.5
A72: 3.5 | C72: Bloco de Ancoragem e Descarga
A73: 3.5.1 | B73: 74007/002 | C73: 74007/002 | D73: FORMA COMUM DE MADEIRA | E73: m² | F73: 11.2 | G73: 55 | H73: =ROUND(G73*(1+$K$9),2) -> 69.54 | I73: =ROUND(H73*F73,2) -> 778.85
A74: 3.5.2 | B74: COMPOSIÇÃO | C74: COMPOSIÇÃO | D74: CONCRETO FCK 15 MPA (1:2:5:3),INCLUIDO PREPARO MECANICO, LANÇAMENTO E ADENSAMENTO. | E74: m³ | F74: 0.88 | G74: =Composições!H139 -> 507.1478 | H74: =ROUND(G74*(1+$K$9),2) -> 641.24 | I74: =ROUND(H74*F74,2) -> 564.29
A75: 3.6 | C75: Serviços Diversos
A76: 3.6.1 | B76: 73678 | C76: 73678 | D76: CADASTRO DA ADUTORA | E76: m | F76: 584 | G76: 1.72 | H76: =ROUND(G76*(1+$K$9),2) -> 2.17 | I76: =ROUND(H76*F76,2) -> 1267.28
A77: 3.6.2 | B77: COMPOSIÇÃO | C77: COMPOSIÇÃO | D77: TESTE HIDROSTÁTICO EM REDE DE ÁGUA/ADUTORA | E77: m | F77: 4632 | G77: =Composições!H474 -> 0.225347 | H77: =ROUND(G77*(1+$K$9),2) -> 0.28 | I77: =ROUND(H77*F77,2) -> 1296.96
A79: 4 | C79: UNIDADE DO SISTEMA: ADUTORAS DE ÁGUA TRATADA
A80: 4.0 | C80: OBRAS CIVIS
A81: 4.1 | C81: Movimento de terra
A82: 4.1.1 | B82: 73965/010 | C82: 73965/010 | D82: ESCAVAÇÃO MANUAL DE VALAS EM SOLO DE 1ª CAT. EXEC. COM PROFUNDIDADE ATÉ 1,5M EXCLUINDO ESGOTAMENTO / ESCORAMENTO | E82: m³ | F82: =17.6+281 -> 298.6 | G82: 22.07 | H82: =ROUND(G82*(1+$K$9),2) -> 27.91 | I82: =ROUND(H82*F82,2) -> 8333.93
A83: 4.1.2 | B83: 73965/001 | C83: 73965/001 | D83: ESCAVAÇÃO MANUAL DE VALAS , A FRIO EM MATERIAL DE 2ª CATEGORIA, COM PROFUNDIDADE ATÉ 1,5M | E83: m³ | F83: 70.4 | G83: 47.3 | H83: 59.81 | I83: 4210.62
A84: 4.1.3 | B84: SERVIÇO 74015/001 | C84: SERVIÇO 74015/001 | D84: EXEC. DE ATERRO EM VALAS/POCOS/CAVAS DE FUNDACAO C/ SOLO PROVENIENTE DAS ESCAVACOES, INCL. LANCAM., ESPALHAM., COMPACT. C/ PLACA VIBRAT., SOQUETE PNEUMATICO | E84: m³ | F84: =66+281 -> 347 | G84: 14.97 | H84: 18.93 | I84: 6568.71
A85: 4.1.4 | B85: 74010/001 | C85: 74010/001 | D85: CARGA E DESCARGA MECANIZADA DE MATERIAL DE 1ª E 2ª CATEGORIA EM CAMINHÃO BASCULANTE | E85: m³ | F85: 22 | G85: 0.98 | H85: 1.24 | I85: 27.28
A86: 4.1.5 | B86: 72855 | C86: 72855 | D86: TRANSPORTE LOCAL COM CAMINHÃO BASCULHANTE 6M³, EM RODOVIA EM LEITO NATURAL DMT 800 A 1.000M | E86: m³ | F86: =F85 -> 22 | G86: 2.79 | H86: 3.53 | I86: 77.66
A87: 4.2 | C87: Assentamento e Envelopamento das tubulações
A88: 4.2.1 | B88: 73884/003 | C88: 73884/003 | D88: INSTALAÇÃO DE VÁLVULAS OU REGISTRO COM JUNTA ELÁSTICA DN 100 | E88: un | F88: 22 | G88: 48.62 | H88: =ROUND(G88*(1+$K$9),2) -> 61.48 | I88: =ROUND(H88*F88,2) -> 1352.56
A89: 4.2.2 | B89: COMPOSIÇÃO | C89: COMPOSIÇÃO | D89: EXECUÇÃO DE ENVELOPAMENTO DE TUBULAÇÃO EM CONCRETO SIMPLES,INCLUIDO PREPARO MECANICO, LANÇAMENTO E ADENSAMENTO. | E89: m³ | F89: 2.35 | G89: =Composições!H152 -> 687.76 | H89: =ROUND(G89*(1+$K$9),2) -> 869.6 | I89: =ROUND(H89*F89,2) -> 2043.56
A90: 4.2.3 | B90: COMPOSIÇÃO | C90: COMPOSIÇÃO | D90: ASSENTAMENTO DE CONEXÃO EM PEAD PE-80 EM GERAL | E90: un | F90: =22+10+281 -> 313 | G90: =Composições!H164 -> 91.81 | H90: =ROUND(G90*(1+$K$9),2) -> 116.08 | I90: =ROUND(H90*F90,2) -> 36333.04
A91: 4.3 | C91: Caixas para válvulas e ventosas
A92: 4.3.1 | B92: COMPOSIÇÃO | C92: COMPOSIÇÃO | D92: CONSTRUÇÃO DE CAIXA DE ALVENARIA COM TAMPA METÁLICA E PORTA CADEADO, COM FUNDO DRENANTE, FORRADO DE BRITA (5,0 CM) PARA ABRIGAR OS REGISTROS DE GAVETA, COM DIMENSÕES 1,0 X 1,0 X 1,0. | E92: un | F92: 22 | G92: =Composições!H464 -> 519.30428 | H92: =ROUND(G92*(1+$K$9),2) -> 656.61 | I92: =ROUND(H92*F92,2) -> 14445.42
A93: 4.4 | C93: Serviços Diversos
A94: 4.4.1 | B94: COMPOSIÇÃO | C94: COMPOSIÇÃO | D94: TESTE HIDROSTÁTICO EM REDE DE ÁGUA/ADUTORA | E94: m | F94: 12427.01 | G94: =Composições!H474 -> 0.225347 | H94: =ROUND(G94*(1+$K$9),2) -> 0.28 | I94: =ROUND(H94*F94,2) -> 3479.56
A96: 5 | C96: UNIDADE DO SISTEMA: SUB-ADUTORAS DE ÁGUA TRATADA
A97: 5.0 | C97: OBRAS CIVIS
A98: 5.1 | C98: Serviços Preliminares
A99: 5.1.1 | B99: 73679 | C99: 73679 | D99: LOCAÇÃO DA ADUTORA | E99: m | F99: 77.2 | G99: 0.56 | H99: =ROUND(G99*(1+$K$9),2) -> 0.71 | I99: =ROUND(H99*F99,2) -> 54.81
A100: 5.1.2 | B100: COMPOSIÇÃO | C100: COMPOSIÇÃO | D100: ACOMPANHAMENTO TOPOGRÁFICO | E100: dia | F100: 1 | G100: =Composições!H284 -> 205.68 | H100: =ROUND(G100*(1+$K$9),2) -> 260.06 | I100: =ROUND(H100*F100,2) -> 260.06
A101: 5.1.3 | B101: COMPOSIÇÃO | C101: COMPOSIÇÃO | D101: SINALIZAÇÃO ABERTA SEM ILUMINAÇÃO, MONTANTES DE H=1,00M E TELA EM PVC, INCLUINDO FORNECIMNTO, TRANSPORTE, INSTALAÇÃO E REMOÇÃO PARA OUTRO LOCAL DA OBRA | E101: m | F101: 65 | G101: =Composições!H295 -> 23.22 | H101: =ROUND(G101*(1+$K$9),2) -> 29.36 | I101: =ROUND(H101*F101,2) -> 1908.4
A102: 5.2 | C102: Movimento de terra
A103: 5.2.1 | B103: 73965/010 | C103: 73965/010 | D103: ESCAVAÇÃO MANUAL DE VALAS EM SOLO DE 1ª CAT. EXEC. COM PROFUNDIDADE ATÉ 1,5M EXCLUINDO ESGOTAMENTO / ESCORAMENTO | E103: m³ | F103: 13.6 | G103: 22.07 | H103: =ROUND(G103*(1+$K$9),2) -> 27.91 | I103: =ROUND(H103*F103,2) -> 379.58
A104: 5.2.2 | B104: 72915 | C104: 72915 | D104: ESCAVAÇÃO MECANIZADA DE MATERIAL DE 2ª CATEGORIA | E104: m³ | F104: 54.4 | G104: 9.44 | H104: 11.94 | I104: 649.54
A105: 5.2.3 | B105: SERVIÇO 74015/001 | C105: SERVIÇO 74015/001 | D105: EXEC. DE ATERRO EM VALAS/POCOS/CAVAS DE FUNDACAO C/ SOLO PROVENIENTE DAS ESCAVACOES, INCL. LANCAM., ESPALHAM., COMPACT. C/ PLACA VIBRAT., SOQUETE PNEUMATICO | E105: m³ | F105: 46.3 | G105: 14.97 | H105: 18.93 | I105: 876.46
A106: 5.2.4 | B106: 73904/001 | C106: 73904/001 | D106: EXECUÇÃO DE ATERRO EM VALAS, POÇOS, CAVAS DE FUNDAÇÃO COM AQUISIÇÃO DE MATERIAL, INC. LANÇ., ESPAL., COMPAC. MANUAL | E106: m³ | F106: 8 | G106: 60.17 | H106: 76.08 | I106: 608.64
A107: 5.2.5 | B107: 74010/001 | C107: 74010/001 | D107: CARGA E DESCARGA MECANIZADA DE MATERIAL DE 2ª E 3ª CATEGORIA EM CAMINHÃO BASCULANTE | E107: m³ | F107: 25 | G107: 0.98 | H107: 1.24 | I107: 31
A108: 5.2.6 | B108: 72855 | C108: 72855 | D108: TRANSPORTE LOCAL COM CAMINHÃO BASCULHANTE 6M³, EM RODOVIA EM LEITO NATURAL DMT 800 A 1.000M | E108: m³ | F108: 25 | G108: 2.79 | H108: 3.53 | I108: 88.25
A109: 5.3 | C109: Assentamento e Envelopamento das tubulações
A110: 5.3.1 | B110: COMPOSIÇÃO | C110: COMPOSIÇÃO | D110: CARGA E DESCARGA DE TUBULAÇÃO EM PVC RÍGIDO PARA Ø ATÉ 350MM | E110: m | F110: 77.2 | G110: =Composições!H181 -> 0.73044 | H110: =ROUND(G110*(1+$K$9),2) -> 0.92 | I110: =ROUND(H110*F110,2) -> 71.02
A111: 5.3.2 | B111: COMPOSIÇÃO | C111: COMPOSIÇÃO | D111: MOMENTO DE TRANSPORTE DE TUBULAÇÃO, PEÇAS E CONEXÕES EM PVC RÍGIDO DN ATÉ 350 MM | E111: m | F111: 77.2 | G111: =Composições!H190 -> 1.2174 | H111: 1.54 | I111: 118.89
A112: 5.3.3 | B112: 73888/001 | C112: 73888/001 | D112: ASSENTAMENTO DE TUBOS E CONEXÕES EM PVC RÍG. PBA, PB JE P/ ÁGUA Ø 50MM | E112: m | F112: 77.2 | G112: 0.71 | H112: 0.9 | I112: 69.48
A113: 5.3.4 | B113: 73884/003 | C113: 73884/003 | D113: INSTALAÇÃO DE VÁLVULAS OU REGISTRO COM JUNTA ELÁSTICA DN 100 | E113: un | F113: 17 | G113: 48.62 | H113: 61.48 | I113: 1045.16
A114: 5.3.5 | B114: COMPOSIÇÃO | C114: COMPOSIÇÃO | D114: EXECUÇÃO DE ENVELOPAMENTO DE TUBULAÇÃO EM CONCRETO SIMPLES,INCLUIDO PREPARO MECANICO, LANÇAMENTO E ADENSAMENTO. | E114: m³ | F114: 5.16 | G114: =Composições!H152 -> 687.76 | H114: 869.6 | I114: 4487.14
A115: 5.4 | C115: Caixas para válvulas e ventosas
A116: 5.4.1 | B116: COMPOSIÇÃO | C116: COMPOSIÇÃO | D116: CONSTRUÇÃO DE CAIXA DE ALVENARIA COM TAMPA METÁLICA E PORTA CADEADO, COM FUNDO DRENANTE, FORRADO DE BRITA (5,0 CM) PARA ABRIGAR OS REGISTROS DE GAVETA, COM DIMENSÕES 1,0 X 1,0 X 1,0. | E116: un | F116: 17 | G116: =Composições!H464 -> 519.30428 | H116: =ROUND(G116*(1+$K$9),2) -> 656.61 | I116: =ROUND(H116*F116,2) -> 11162.37
A117: 5.5 | C117: Bloco de Ancoragem e Descarga
A118: 5.5.1 | B118: 74076/001 | C118: 74076/001 | D118: FORMA PINHO 3A P/CONCRETO EM FUNDAÇÃO REAPROV 3 VEZES - CORTE/MONTAGEM /ESCORAMENTO/DESFORMA, NÃO INCLUÍDO DEMOLDANTE | E118: m² | F118: 11.2 | G118: 38.6 | H118: =ROUND(G118*(1+$K$9),2) -> 48.81 | I118: =ROUND(H118*F118,2) -> 546.67
A119: 5.5.2 | B119: COMPOSIÇÃO | C119: COMPOSIÇÃO | D119: CONCRETO FCK 15 MPA (1:2:5:3),INCLUIDO PREPARO MECANICO, LANÇAMENTO E ADENSAMENTO. | E119: m³ | F119: 0.78 | G119: =Composições!H139 -> 507.1478 | H119: 641.24 | I119: 500.17
A120: 5.5.3 | B120: 74254/002 | C120: 74254/002 | D120: ARMAÇÃO AÇO CA-50, DIAMETRO 6.3 (1/4) Á 12,5mm (1/2) - FORNECIMENTO E CORTE (Kg PERDA DE 10%) / DOBRA / COLOCAÇÃO | E120: Kg | F120: 80 | G120: 6.05 | H120: 7.65 | I120: 612
A121: 5.6 | C121: TRAVESSIAS SUBTERRÂNEAS EM RODOVIAS CONFORME ESPECIFICAÇÕES TÉCNICAS DO DERBA
A122: 5.6.1 | B122: COMPOSIÇÃO | C122: composição | D122: ELABORAÇÃO DE PROJETO EXECUTIVO E DETALHAMENTO DE TRAVESSIA SUBTERRÂNEA PELO MÉTODO NÃO DESTRUTIVO CONFORME ESPECIFICAÇÕES E ORIENTAÇÕES DO DERBA | E122: und. | F122: 1 | G122: =Composições!H407 -> 237.98 | H122: =ROUND(G122*(1+$K$9),2) -> 300.9 | I122: =ROUND(H122*F122,2) -> 300.9
A123: 5.6.2 | B123: COMPOSIÇÃO | C123: composição | D123: EXECUCAO DE TRAVESSIA SUBTERRANEA PELO METODO NÃO DESTRUTIVEL - perfuração 250 mm INSERINDO TUBO - INCLUSIVE MOBILIZAÇÃO E DESMOBILIZAÇÃO (adutora de 150mm) | E123: m | F123: 20 | G123: =1146*1.1 -> 1260.6 | H123: 1510.87 | I123: 30217.4
A124: 5.6.3 | B124: COMPOSIÇÃO | C124: composição | D124: EXECUCAO DE TRAVESSIA SUBTERRANEA PELO METODO NÃO DESTRUTIVEL - perfuração 250 mm - INCLUSIVE MOBILIZAÇÃO E DESMOBILIZAÇÃO (adutora de 150 mm) | E124: m | F124: 20 | G124: 1146 | H124: 1449 | I124: 28980
A125: 5.6.4 | B125: COMPOSIÇÃO | C125: composição | D125: EXECUCAO DE POCO DE ATAQUE - ENTRADA | E125: m³ | F125: 36 | G125: =Composições!H426 -> 130.6322 | H125: 165.17 | I125: 5946.12
A126: 5.6.5 | B126: COMPOSIÇÃO | C126: composição | D126: EXECUCAO DE POCO DE ATAQUE - SAIDA | E126: m³ | F126: 36 | G126: =Composições!H426 -> 130.6322 | H126: 165.17 | I126: 5946.12
A127: 5.6.6 | B127: COMPOSIÇÃO | C127: composição | D127: ASSENTAMENTO DE BOLSA X FLANGE FF DN 150MM PN 10, INCLUINDO INSTALAÇÃO DE ANÉIS DE VEDAÇÃO | E127: und. | F127: 4 | G127: =Composições!H434 -> 5.9976 | H127: 7.58 | I127: 30.32
A128: 5.6.7 | B128: COMPOSIÇÃO | C128: composição | D128: INSTALAÇÃO DE REGISTROS DE GAVETA FLANGEADO FF 150 MM | E128: und. | F128: 4 | G128: =Composições!H443 -> 9.392 | H128: 11.88 | I128: 47.52
A129: 5.6.8 | B129: 73888/004 | C129: 73888/004 | D129: ASSENTAMENTO TUBO PVC COM JUNTA ELASTICA, DN 150 MM - (OU RPVC, OU PVC M 1,39 DEFOFO, OU PRFV P/ AGUA | E129: m | F129: 20 | G129: 1.43 | H129: 1.81 | I129: 36.2
A130: 5.6.9 | B130: COMPOSIÇÃO | C130: composição | D130: CONSTRUÇÃO DE CAIXA DE ALVENARIA COM TAMPA METÁLICA E PORTA CADEADO, COM FUNDO DRENANTE, FORRADO DE BRITA (5,0 CM) PARA ABRIGAR OS REGISTROS DE GAVETA, COM DIMENSÕES 1,0 X 1,0 X 1,0. | E130: und. | F130: 2 | G130: =Composições!H464 -> 519.30428 | H130: 656.61 | I130: 1313.22
A131: 5.7 | C131: Serviços Diversos
A132: 5.7.1 | B132: 73678 | C132: 73678 | D132: CADASTRO DA ADUTORA | E132: m | F132: 77.2 | G132: 1.72 | H132: =ROUND(G132*(1+$K$9),2) -> 2.17 | I132: =ROUND(H132*F132,2) -> 167.52
A133: 5.7.2 | B133: COMPOSIÇÃO | C133: COMPOSIÇÃO | D133: TESTE HIDROSTÁTICO EM REDE DE ÁGUA/ADUTORA | E133: m | F133: 9359.86 | G133: =Composições!H474 -> 0.225347 | H133: =ROUND(G133*(1+$K$9),2) -> 0.28 | I133: =ROUND(H133*F133,2) -> 2620.76
A135: 6 | C135: UNIDADE DO SISTEMA: ESTAÇÃO DE TRATAMENTO DE ÁGUA (Q = 13,0 l/s)
A136: 6.0 | C136: OBRAS CIVIS
A137: 6.1 | C137: SUMIDOURO 2,5 X 2,5 m
A138: 6.1.1 | C138: Serviços Preliminares
A139: 6.1.1.1 | B139: 73948/016 | C139: 73948/016 | D139: Limpeza do terreno | E139: m² | F139: 50 | G139: 1.57 | H139: =ROUND(G139*(1+$K$9),2) -> 1.99 | I139: =ROUND(H139*F139,2) -> 99.5
A140: 6.1.1.2 | B140: 73992/001 | C140: 73992/001 | D140: LOCAÇÃO DA OBRA | E140: m² | F140: 9 | G140: 8.84 | H140: =ROUND(G140*(1+$K$9),2) -> 11.18 | I140: =ROUND(H140*F140,2) -> 100.62
A141: 6.1.2 | C141: Movimento de terra
A142: 6.1.2.1 | B142: 73904/001 | C142: 73904/001 | D142: EXECUÇÃO DE ATERRO EM VALAS, POÇOS, CAVAS DE FUNDAÇÃO COM AQUISIÇÃO DE MATERIAL, INC. LANÇ., ESPAL., COMPAC. MANUAL | E142: m³ | F142: 108 | G142: 60.17 | H142: =ROUND(G142*(1+$K$9),2) -> 76.08 | I142: =ROUND(H142*F142,2) -> 8216.64
A143: 6.1.3 | C143: Fundações e Estrutura
A144: 6.1.3.1 | B144: 74076/001 | C144: 74076/001 | D144: FORMA PINHO 3A P/CONCRETO EM FUNDAÇÃO REAPROV 3 VEZES - CORTE/MONTAGEM /ESCORAMENTO/DESFORMA, NÃO INCLUÍDO DEMOLDANTE | E144: m² | F144: 4 | G144: 38.06 | H144: =ROUND(G144*(1+$K$9),2) -> 48.12 | I144: =ROUND(H144*F144,2) -> 192.48
A145: 6.1.3.2 | B145: 74254/002 | C145: 74254/002 | D145: ARMAÇÃO AÇO CA-50, DIAMETRO 6.3 (1/4) Á 12,5mm (1/2) - FORNECIMENTO E CORTE (Kg PERDA DE 10%) / DOBRA / COLOCAÇÃO | E145: Kg | F145: 35 | G145: 6.05 | H145: =ROUND(G145*(1+$K$9),2) -> 7.65 | I145: =ROUND(H145*F145,2) -> 267.75
A146: 6.1.3.3 | B146: COMPOSIÇÃO | C146: COMPOSIÇÃO | D146: CONCRETO FCK 15 MPA (1:2:5:3),INCLUIDO PREPARO MECANICO, LANÇAMENTO E ADENSAMENTO. | E146: m³ | F146: 0.41 | G146: =Composições!H139 -> 507.1478 | H146: =ROUND(G146*(1+$K$9),2) -> 641.24 | I146: =ROUND(H146*F146,2) -> 262.91
A147: 6.1.4 | C147: Vedação
A148: 6.1.4.1 | B148: 73935/002 | C148: 73935/002 | D148: ALVENARIA DE TIJOLO CERÂMICO 1 VEZ | E148: m² | F148: 8.8 | G148: 48.04 | H148: =ROUND(G148*(1+$K$9),2) -> 60.74 | I148: =ROUND(H148*F148,2) -> 534.51
A149: 6.1.5 | C149: Revestimento
A150: 6.1.5.1 | B150: 73928/001 | C150: 73928/001 | D150: CHAPISCO | E150: m² | F150: 17.6 | G150: 3.33 | H150: =ROUND(G150*(1+$K$9),2) -> 4.21 | I150: =ROUND(H150*F150,2) -> 74.1
A151: 6.1.5.2 | B151: 5976 | C151: 5976 | D151: REBOCO | E151: m² | F151: 17.6 | G151: 15.18 | H151: =ROUND(G151*(1+$K$9),2) -> 19.19 | I151: =ROUND(H151*F151,2) -> 337.74
A152: 6.1.6 | C152: Pintura
A153: 6.1.6.1 | B153: 73924/002 | C153: 73924/002 | D153: PINTURA ESMALTE EM ESQUADRIA DE FERRO - 2 DEMÃOS | E153: m² | F153: 4 | G153: 13.2 | H153: =ROUND(G153*(1+$K$9),2) -> 16.69 | I153: =ROUND(H153*F153,2) -> 66.76
A154: 6.1.7 | C154: Urbanização
A155: 6.1.7.1 | B155: 74142/004 | C155: 74142/004 | D155: CERCA COM 14 FIOS DE ARAME FARPADO 16BWG 4X4", COM ESTACAS DE CONCRETO PRÉ-MOLDADA, COM DIMENSÕES 10X10X2,45CM | E155: m | F155: 56 | G155: 33.04 | H155: =ROUND(G155*(1+$K$9),2) -> 41.78 | I155: =ROUND(H155*F155,2) -> 2339.68
A156: 6.1.7.2 | B156: 74100/001 | C156: 74100/001 | D156: PORTÃO EM TUBO DE FERRO COM VARA 1/2" COMREQUADRO, INCL. GUARNIÇÕES E FERRAGENS | E156: m² | F156: 2 | G156: 213.55 | H156: =ROUND(G156*(1+$K$9),2) -> 270.01 | I156: =ROUND(H156*F156,2) -> 540.02
A157: 6.1.8 | C157: Montagem dos Equipamentos
A158: 6.1.8.1 | B158: COMPOSIÇÃO | C158: COMPOSIÇÃO | D158: REALIZAÇÃO DE TESTES PRÉ-OPERACIONAIS E TESTE DE FUCIONAMENTE DO SISTEMA, INCLUISIVE FORNECIMENTO DOS PRODUTOS QUÍMICOS NECESSÁRIOS PARA UM MÊS DE OPERAÇÃO, E TREINAMENTO DE PESSOAL PARA OPERAÇÃO E MANUTENÇÃO DA ETA ATE 13,00 L/S | E158: un | F158: 1 | G158: =Composições!H397 -> 1307.56 | H158: =ROUND(G158*(1+$K$9),2) -> 1653.28 | I158: =ROUND(H158*F158,2) -> 1653.28
A159: 6.1.8.2 | B159: COMPOSIÇÃO | C159: COMPOSIÇÃO | D159: MONTAGEM DA ESCADA DE ACESSO AOS FLOCULADORES DA ESTAÇÃO DE TRATAMENTO. | E159: un | F159: 1 | G159: =Composições!H335 -> 379.92 | H159: =ROUND(G159*(1+$K$9),2) -> 480.37 | I159: =ROUND(H159*F159,2) -> 480.37
A161: 7 | C161: UNIDADE DO SISTEMA: ESTAÇÃO ELEVATÓRIA (30 CV) E CASA DE QUÍMICA
A162: 7.0 | C162: OBRAS CIVIS
A163: 7.1 | C163: Pisos
A164: 7.1.1 | B164: 73829/001 | C164: 73829/001 | D164: PISO EM CERAMICA ESMALTADA PEI-V | E164: m² | F164: 3.12 | G164: 43.46 | H164: =ROUND(G164*(1+$K$9),2) -> 54.95 | I164: =ROUND(H164*F164,2) -> 171.44
A165: 7.2 | C165: Revestimento
A166: 7.2.1 | B166: 73912/001 | C166: 73912/001 | D166: REVESTIMENTO CERÂMICO 20X20 PEI-IV | E166: m² | F166: 19.6 | G166: 26.4 | H166: =ROUND(G166*(1+$K$9),2) -> 33.38 | I166: =ROUND(H166*F166,2) -> 654.25
A167: 7.3 | C167: Esquadrias
A168: 7.3.1 | B168: 73933/002 | C168: 73933/002 | D168: FORNECIMENTO E ASSENTAMENTO DE PORTA EM CHAPA DE FERRO DE ABRIR COM UMA FOLHA, COLOCAÇÃO E ACABAMENTO | E168: m² | F168: 2.1 | G168: 317.09 | H168: =ROUND(G168*(1+$K$9),2) -> 400.93 | I168: =ROUND(H168*F168,2) -> 841.95
A169: 7.4 | C169: Pintura
A170: 7.4.1 | B170: COMPOSIÇÃO | C170: COMPOSIÇÃO | D170: PINTURA DA LOGOMARCA DA CODEVASF | E170: un | F170: 2 | G170: =Composições!H347 -> 188.312 | H170: =ROUND(G170*(1+$K$9),2) -> 238.1 | I170: =ROUND(H170*F170,2) -> 476.2
A171: 7.4.2 | B171: 73924/002 | C171: 73924/002 | D171: PINTURA ESMALTE EM ESQUADRIA DE FERRO - 2 DEMÃOS | E171: m² | F171: 7.56 | G171: 13.2 | H171: =ROUND(G171*(1+$K$9),2) -> 16.69 | I171: =ROUND(H171*F171,2) -> 126.18
A172: 7.4.3 | B172: 73954/003 | C172: 73954/003 | D172: PINTURA LATEX ACRILICA - 1 DEMÃOS | E172: m² | F172: 190.05 | G172: 4.2 | H172: =ROUND(G172*(1+$K$9),2) -> 5.31 | I172: =ROUND(H172*F172,2) -> 1009.17
A173: 7.5 | C173: Assentamento, montagem e instalações
A174: 7.5.1 | B174: COMPOSIÇÃO | C174: COMPOSIÇÃO | D174: MONTAGEM E INSTALAÇÃO DE BOMBAS DOSADORA, BOMBA MISTURADORAS E ENCANAMENTO ATE A ESTAÇÃO DE TRATAMENTO | E174: un | F174: 1 | G174: =Composições!H326 -> 1859.03 | H174: =ROUND(G174*(1+$K$9),2) -> 2350.56 | I174: =ROUND(H174*F174,2) -> 2350.56
A175: 7.6 | C175: Instalação elétrica
A176: 7.6.1 | B176: Composição | C176: Composição | D176: FORNECIMENTO E INSTALAÇÃO DOS ELETRODUTOS, CABOS, QUADROS, PONTOS DE FORÇA DOS MOTORES, TOMADAS, INTERRUPTORES, LUMINÁRIAS E ILUMINAÇÃO EXTERNA DA ETA | E176: und | F176: 1 | G176: ='Composição eletrica'!G71 -> 15519.46 | H176: =G176 -> 15519.46 | I176: =ROUND(H176*F176,2) -> 15519.46
A177: 7.6.2 | B177: Composição | C177: Composição | D177: FORNECIMENTO E INSTALAÇÃO DA SUBESTAÇÃO ABAIXADORA DE 30 KVA E INTERLIGAÇÃO (CIRCUITO ALIMENTADOR) DA SE AO QGBT DA ETA/CAPTAÇÃO | E177: und | F177: 1 | G177: ='Composição eletrica'!G136 -> 18377.5 | H177: =G177 -> 18377.5 | I177: =ROUND(H177*F177,2) -> 18377.5
A178: 7.6.3 | B178: Composição | C178: Composição | D178: FORNECIMENTO E INSTALAÇÃO PARA A EXTENSÃO DE REDE ELÉTRICA DE MÉDIA TENSÃO, 13,8KV, TRIFÁSICO | E178: km | F178: 0.1 | G178: ='Composição eletrica'!G307 -> 70593.22 | H178: =G178 -> 70593.22 | I178: 7059.32
A179: 7.6.4 | B179: 73836/003 | C179: 73836/003 | D179: INSTALAÇÃO DE CONJUNTO MOTOR-BOMBA HORIZONTAL DE 30 A 75CV | E179: und | F179: 2 | G179: 459.09 | H179: =G179 -> 459.09 | I179: 918.18
A180: 7.6.5 | B180: Composição | C180: Composição | D180: ELABORAÇÃO DE PROJETO EXECUTIVO DAS INSTALAÇÕES ELÉTRICAS DE MÉDIA E BAIXA TENSÃO DA ETA E CAPTAÇÃO/FLUTUANTE, COM APROVAÇÃO E EMOLUMENTOS JUNTO A CONCESSIONÁRIA | E180: und | F180: 1 | G180: ='Composição eletrica'!G330 -> 2800.6 | H180: =G180 -> 2800.6 | I180: 2800.6
A181: 7.7 | C181: Instalações hidráulicas e sanitárias
A182: 7.7.1 | B182: 72685 | C182: 72685 | D182: RALO SINFONADO DE PVC 100 X 100 MM SIMPLES - FORNECIMENTO E INSTALAÇÃO | E182: un | F182: 1 | G182: 15.25 | H182: =ROUND(G182*(1+$K$9),2) -> 19.28 | I182: =ROUND(H182*F182,2) -> 19.28
A183: 7.7.2 | B183: 6009 | C183: 6009 | D183: LAVATÓRIO LOUÇA BRANCA, SEM COLUNA PADRÃO POPULAR, COM TORNEIRA, SIFÃO, VÁLVULA E ENGATE PLÁSTICO | E183: un | F183: 1 | G183: 126.1 | H183: 159.44 | I183: 159.44
A184: 7.7.3 | B184: 85224 | C184: 85224 | D184: VASO SANITÁRIO BRANCO COM CAIXA ACOPLADA,PADRÃO MÉDIO, INCLUINDO ENGATE | E184: un | F184: 1 | G184: 282.93 | H184: 357.74 | I184: 357.74
A185: 7.7.4 | B185: 6004 | C185: 6004 | D185: PAPELEIRA DE LOUÇA BRANCA - FORNECIMENTO E INSTALAÇÃO | E185: un | F185: 1 | G185: 44 | H185: 55.63 | I185: 55.63
A186: 7.7.5 | B186: 6007 | C186: 6007 | D186: SABONETEIRA DE LOUÇA BRANCA 7,5 X 15 CM - FORNECIMENTO E INSTALAÇÃO | E186: un | F186: 1 | G186: 36.14 | H186: 45.7 | I186: 45.7
A187: 7.7.6 | B187: 72671 | C187: 72671 | D187: NIPLE DE PVC ROSCÁVEL ÁGUA FRIA 1/2"- FORNECIMENTO E INSTALAÇÃO | E187: un | F187: 1 | G187: 2.7 | H187: 3.41 | I187: 3.41
A188: 7.7.7 | B188: 68061 | C188: 68061 | D188: CHUVEIRO PLÁSTICO BRANCO SIMPLES - FORNECIMENTO E INSTALAÇÃO | E188: un | F188: 1 | G188: 10.78 | H188: 13.63 | I188: 13.63
A189: 7.8 | C189: Serviços finais
A190: 7.8.1 | B190: 9537 | C190: 9537 | D190: LIMPEZA FINAL DA OBRA | E190: m² | F190: 38.69 | G190: 1 | H190: =ROUND(G190*(1+$K$9),2) -> 1.26 | I190: =ROUND(H190*F190,2) -> 48.75
A191: 8 | C191: UNIDADE DO SISTEMA: DESCARGA DE LAVAGEM DOS FILTROS
A192: 8.0 | C192: OBRAS CIVIS
A193: 8.1 | C193: Movimento de terra
A194: 8.1.1 | B194: 73962/013 | C194: 73962/013 | D194: ESCAVACAO DE VALA NAO ESCORADA EM MATERIAL 1A CATEGORIA , PROFUNDIDADE ATE 1,5 M COM ESCAVADEIRA HIDRAULICA 105 HP(CAPACIDADE DE 0,78M3), SEM ESGOTAMENTO | E194: m³ | F194: 288.5 | G194: 3.59 | H194: =ROUND(G194*(1+$K$9),2) -> 4.54 | I194: =ROUND(H194*F194,2) -> 1309.79
A195: 8.1.2 | B195: 72915 | C195: 72915 | D195: ESCAVAÇÃO MECANIZADA DE MATERIAL DE 2ª CATEGORIA | E195: m³ | F195: =443.4-F194 -> 154.9 | G195: 9.44 | H195: =ROUND(G195*(1+$K$9),2) -> 11.94 | I195: =ROUND(H195*F195,2) -> 1849.51
A196: 8.1.3 | B196: 74010/001 | C196: 74010/001 | D196: CARGA E DESCARGA MECANIZADA DE MATERIAL DE 1ª E 2ª CATEGORIA EM CAMINHÃO BASCULANTE | E196: m³ | F196: =(F194+F195+F198)-F199 -> 110.95 | G196: 0.98 | H196: =ROUND(G196*(1+$K$9),2) -> 1.24 | I196: =ROUND(H196*F196,2) -> 137.58
A197: 8.1.4 | B197: 72856 | C197: 72856 | D197: MOMENTO DE TRANSPORTE DE SOLO , EM CAMINHÃO BASCULHANTE EM BOTA FORA | E197: m³ x Km | F197: =F196*5 -> 554.75 | G197: 1.22 | H197: =ROUND(G197*(1+$K$9),2) -> 1.54 | I197: =ROUND(H197*F197,2) -> 854.32
A198: 8.1.5 | B198: 73692 | C198: 73692 | D198: LASTRO DE AREIA MEDIA | E198: m³ | F198: 64.74 | G198: 77.01 | H198: =ROUND(G198*(1+$K$9),2) -> 97.37 | I198: =ROUND(H198*F198,2) -> 6303.73
A199: 8.1.5 | B199: SERVIÇO 74015/001 | C199: SERVIÇO 74015/001 | D199: EXEC. DE ATERRO EM VALAS/POCOS/CAVAS DE FUNDACAO C/ SOLO PROVENIENTE DAS ESCAVACOES, INCL. LANCAM., ESPALHAM., COMPACT. C/ PLACA VIBRAT., SOQUETE PNEUMATICO | E199: m³ | F199: 397.19 | G199: 14.97 | H199: =ROUND(G199*(1+$K$9),2) -> 18.93 | I199: =ROUND(H199*F199,2) -> 7518.81
A200: 8.2 | C200: Assentamento das tubulações
A201: 8.2.1 | B201: COMPOSIÇÃO | C201: COMPOSIÇÃO | D201: CARGA E DESCARGA DE TUBOS PVC RIG. / RPVC, DN ATE 350 MM | E201: m | F201: 719.14 | G201: =Composições!H181 -> 0.73044 | H201: =ROUND(G201*(1+$K$9),2) -> 0.92 | I201: =ROUND(H201*F201,2) -> 661.61
A202: 8.2.2 | B202: COMPOSIÇÃO | C202: COMPOSIÇÃO | D202: MOMENTO DE TRANSPORTE DE TUBULAÇÃO, PEÇAS E CONEXÕES EM PVC RÍGIDO DN ATÉ 350 MM | E202: m | F202: 719.14 | G202: =Composições!H190 -> 1.2174 | H202: =ROUND(G202*(1+$K$9),2) -> 1.54 | I202: =ROUND(H202*F202,2) -> 1107.48
A203: 8.2.3 | B203: 73840/003 | C203: 73840/003 | D203: ASSENTAMENTO DE TUBOS PVC ESGOTO DE DRENAGEM PERFURADOS E CORRUGADO DN 150 MM | E203: m | F203: 719.14 | G203: 1.8 | H203: =ROUND(G203*(1+$K$9),2) -> 2.28 | I203: =ROUND(H203*F203,2) -> 1639.64
A204: 9 | C204: UNIDADE DO SISTEMA: LEITO DE SECAGEM ( 8 m x 8 m)
A205: 9.0 | C205: OBRAS CIVIS
A206: 9.1 | C206: Pintura
A207: 9.1.1 | B207: 73657 | C207: 73999/001 | D207: PINTURA A CAL - 3 DEMÃOS | E207: m² | F207: 36.31 | G207: 4.22 | H207: =ROUND(G207*(1+$K$9),2) -> 5.34 | I207: =ROUND(H207*F207,2) -> 193.9
A208: 9.2 | C208: Serviços finais
A209: 9.2.1 | B209: 9537 | C209: 9537 | D209: LIMPEZA FINAL DA OBRA | E209: m² | F209: 70.42 | G209: =G190 -> 1 | H209: =ROUND(G209*(1+$K$9),2) -> 1.26 | I209: =ROUND(H209*F209,2) -> 88.73
... 139 more rows

Sheet Composições
C2: Companhia de Desenvolvimento dos Vales do São Francisco e do Parnaíba | I2: BDI MATERIAIS | J2: 0.2644
I3: BDI SERVIÇOS | J3: 0.168
C4: Ministério da Integração Nacional.
G7: DATABASE: FEV/14 | I7: BDI (26,44%)
A8: COMPOSIÇÕES DE CUSTOS UNITÁRIOS DOS SERVIÇOS - REMANSO RURAL
A11: ADMINISTRAÇÃO LOCAL E MANUTENÇÃO DE CANTEIRO DE OBRAS | H11: UND. MÊS
A12: Item | B12: Cód. SINAPI | C12: Descrição | D12: Unidade | E12: Quantidade | G12: Custo Unit. | H12: Custo Total
A13: 1.0 | B13: 2706 | C13: Engenheiro Civil - produção | D13: H | E13: 1200 | G13: 56.76 | H13: =ROUND(E13*G13,2) -> 68112
A14: 1.1 | B14: 10508 | C14: Vigia Noturno | D14: H | E14: 2304 | G14: 8.31 | H14: 19146.24
A15: 1.2 | C15: Comunicação (internet, telefone, rádios) | D15: mês | E15: 6 | G15: 500 | H15: 3000
A16: 1.3 | C16: Aluguel casa | D16: mês | E16: 6 | G16: 700 | H16: 4200
A17: 1.4 | C17: PCMAT, PCMSO, PPRD | D17: mês | E17: 6 | G17: 50 | H17: 300
A18: 1.5 | C18: Epi´s | D18: mês | E18: 6 | G18: 563.151 | H18: 3378.91
A19: 1.6 | C19: Equipamentos de informática | D19: mês | E19: 6 | G19: 100 | H19: 600
A20: 1.7 | C20: Moveis e utensílios | D20: mês | E20: 6 | G20: 150 | H20: 900
A21: 1.8 | C21: Material de escritório/ limpeza | D21: mês | E21: 6 | G21: 150 | H21: 900
C22: Servente (Limpeza) | D22: H | E22: 1056 | G22: 7 | H22: 7392
A23: 1.10 | C23: Agua/ energia | D23: mês | E23: 6 | G23: 800 | H23: 4800
A24: 1.11 | B24: 002350 | C24: Auxiliar de Escritório | D24: H | E24: 1056 | G24: 9.84 | H24: 10391.04
G26: Total | H26: =SUM(H13:H25) -> 123120.19
G27: =$I$7 -> BDI (26,44%) | H27: =H26*$J$2 -> 32552.97824
G28: Total geral | H28: =H26+H27 -> 155673.1682
A30: VEÍCULO TIPO COMERCIAL LEVE 1.4 FLEX (85cv),com Arcondicionado, direção Hidraulica e travas elétricas para apoio a fiscalização, incluindo despesas com combustível, oléos, manutenção, licenciamento, seguros e impostos. | H30: UND. MÊS
A31: Item | B31: Cód. SINAPI | C31: Descrição | D31: Unidade | E31: Quantidade | G31: Custo Unit. | H31: Custo Total
A32: A | B32: Depreciação mensal do equipamento
A33: A1 | B33: Preço de Aquisição | C33: und | D33: 1 | E33: 43500 | G33: 43852.52002
A34: A2 | B34: Tempo previsto de vida útil (meses) | C34: mês | D34: 36 | E34: - | G34: 36
A35: A3 | B35: Previsão de recup. Na venda do bem usado | C35: % | D35: 0.4 | E35: - | G35: =D35 -> 0.4
A36: Subtotal | B36: Custo mensal [A1-(A3xA1)]/A2 | G36: =(G33-(G35*G33))/G34 -> 730.8753337 | H36: =G36 -> 730.8753337
A37: B | B37: Juros pelo Capital empregado
A38: B1 | B38: Taxa mensal de Juros | C38: % | D38: 0.05 | E38: - | G38: 0.05
A39: B2 | B39: Custo mensal [A1-(A3xA1)]/A2 | C39: mês | D39: 1 | E39: =H36 -> 730.8753337 | G39: =E39 -> 730.8753337
A40: Subtotal | B40: Incidência mensal (C1xA4) | G40: =G39*G38 -> 36.54376668 | H40: =G40 -> 36.54376668
A41: C | B41: Conservação e manutenção
A42: C1 | B42: C1 Taxa de gastos s/a deprec. Inc. seguros (%) 100% | C42: % | D42: 100 | E42: - | G42: 1
A43: C2 | B43: Custo mensal [A1-(A3xA1)]/A2 | C43: mês | D43: 1 | E43: =G36 -> 730.8753337 | G43: =E43 -> 730.8753337
A44: Subtotal | B44: C2 Incidência mensal (C1xA4) | H44: =G43*G42 -> 730.8753337
A45: D | B45: Combustível
A46: D1 | B46: Média mensal de quilômetro por veículo | C46: Km | D46: 1 | E46: =4000 -> 4000 | G46: =E46*D46 -> 4000
A47: cotação | B47: Preço do litro de combustível | C47: L | D47: 1 | E47: 3.22 | G47: 3.32230398
A48: D3 | B48: Quilômetros rodados com um litro combustivel | C48: Km | D48: 1 | E48: 10 | G48: =E48*D48 -> 10
A49: Subtotal | B49: Combustivel (D1/D3)*D2 | H49: =G46/G48*G47 -> 1328.921592
A50: E | B50: Lubrificantes
A51: E1 | B51: Quilometragem do Contrato | C51: km | D51: 36000 | E51: - | G51: =D51 -> 36000
A52: Cotação | B52: Franquia por troca de óleo (km) | C52: Km | D52: 5000 | E52: - | G52: =D52 -> 5000
A53: Cotação | B53: Preço do litro de óleo | C53: L | D53: 1 | E53: 35 | G53: 36.11199979
A54: E4 | B54: Quantidade de litros de óleo por troca | C54: L | D54: 3.5 | E54: - | G54: =D54 -> 3.5
A55: E5 | B55: Quantidade de dias do Contrato | C55: dias | D55: 270 | E55: - | G55: =D55 -> 270
A56: E6 | B56: Lubrificantes E = (E1*E3*E4*30)/E2*E5 | H56: =(G51*G53*G54*30)/(G52*G55) -> 101.1135994
A57: F | B57: Pneus
A58: F1 | B58: Quilometragem do Contrato | C58: Km | D58: =D51 -> 36000 | E58: - | G58: 36000
A59: F2 | B59: Vida do Pneu em quilômetros | C59: km | D59: 45000 | E59: - | G59: 45000
A60: F3 | B60: Quantidade de pneus | C60: und | D60: 5 | E60: - | G60: 5
A61: F4 | B61: Preço do Pneu | C61: und | D61: 1 | E61: 358.3 | G61: =E61 -> 358.3
A62: F5 | B62: Quantidade de dias do contrato | C62: dias | D62: 270 | E62: - | G62: 270
A63: Subtotal | B63: Pneus = (F1*F3*F4*30)/(F2*F5) | H63: =(G58*G60*G61*30)/(G59*G62) -> 159.2444444
A64: G | B64: Custo Direto p/ km Rodado
G66: Total | H66: =H63+H56+H49+H44+H36+H40 -> 3087.57407
G67: =$I$7 -> BDI (26,44%) | H67: =H66*$J$2 -> 816.3545841
G68: Total geral | H68: =H66+H67 -> 3903.928654
A71: MOBILIZAÇÃO DE EQUIPAMENTOS E PESSOAS | H71: UND: unid.
A72: Item | B72: Cód. SINAPI | C72: Descrição | D72: Unidade | E72: Quantidade | G72: Custo Unit. | H72: Custo Total
A73: 1.0 | B73: INSUMOS - 1133 | C73: CAMINHÃO BASCULANTE 5,0M3/11T DIESEL TIPO MERCEDES 142HP LK-1214 OU EQUIV (INCL MANUT/OPERACAO) | D73: H | E73: 28 | G73: 54 | H73: =ROUND(E73*G73,2) -> 1512
A74: 1.1 | B74: INSUMO-3366 | C74: GUINDASTE TIPO MUNCK CAP * 5T * MONTADO EM CAMINHAO CARROCERIA ( LOCAÇÃO COM OPERADOR,COMBUSTIVEL E MANUTENÇÃO). | D74: H | E74: 28 | G74: 54.56 | H74: 1527.68
A75: 1.2 | B75: INSUMOS - 1140 | C75: CAMINHAO FORD F-4000 OU EQUIV C/ CARROCERIA MADEIRA FIXA - CAP CARGA ATE 5,0T (INCL H 37,82 MANUT/OPERACAO) | D75: h | E75: 24 | G75: 40.53 | H75: 972.72
A76: 1.3 | B76: INSUMOS - 1143 | C76: CAMINHAO TRUCADO (3 EIXOS) C/ CARROCERIA MADEIRA FIXA CAP. CARGA *10 A 12T* (INCL MANUT/OPERACAO) | D76: h | E76: 14 | G76: 67.5 | H76: 945
A77: 1.4 | B77: INSUMOS - 6044 | C77: RETROESCAVADEIRA C/ CARREGADEIRA SOBRE PNEUS 75HP C/CONVERSOR DE TORQUE (INCL. MANUTENCAO/OPERACAO E COMBUSTÍVEL) | D77: H | E77: 14 | G77: 70.34 | H77: 984.76
A78: 1.5 | B78: Ct. | C78: Passagem de ônibus | D78: und. | E78: 10 | G78: 170 | H78: 1700
G79: Total | H79: =SUM(H73:H78) -> 7642.16
G80: =$I$7 -> BDI (26,44%) | H80: =H79*$J$2 -> 2020.587104
G81: Total geral | H81: =H79+H80 -> 9662.747104
A83: DESMOBILIZAÇÃO DE EQUIPAMENTOS E PESSOAS | H83: UND: unid.
A84: Item | B84: Cód. SINAPI | C84: Descrição | D84: Unidade | E84: Quantidade | G84: Custo Unit. | H84: Custo Total
A85: 1.0 | B85: INSUMOS - 1133 | C85: CAMINHÃO BASCULANTE 5,0M3/11T DIESEL TIPO MERCEDES 142HP LK-1214 OU EQUIV (INCL MANUT/OPERACAO) | D85: H | E85: 28 | G85: 54 | H85: =ROUND(E85*G85,2) -> 1512
A86: 1.1 | B86: SERVIÇOS - 73535 | C86: CAMINHAO C/GUINCHO 6T, MOTOR DIESEL 136HP, M. BENZ MOD L1214 MUNCK MOD, M 640/18, OU SIMILAR | D86: H | E86: 28 | G86: 54.56 | H86: 1527.68
A87: 1.2 | B87: INSUMOS - 1140 | C87: CAMINHAO FORD F-4000 OU EQUIV C/ CARROCERIA MADEIRA FIXA - CAP CARGA ATE 5,0T (INCL H 37,82 MANUT/OPERACAO) | D87: h | E87: 24 | G87: 40.53 | H87: 972.72
A88: 1.3 | B88: INSUMOS - 1143 | C88: CAMINHAO TRUCADO (3 EIXOS) C/ CARROCERIA MADEIRA FIXA CAP. CARGA *10 A 12T* (INCL MANUT/OPERACAO) | D88: h | E88: 14 | G88: 67.5 | H88: 945
A89: 1.4 | B89: INSUMOS - 6044 | C89: RETROESCAVADEIRA C/ CARREGADEIRA SOBRE PNEUS 75HP C/CONVERSOR DE TORQUE (INCL. MANUTENCAO/OPERACAO E COMBUSTÍVEL) | D89: H | E89: 14 | G89: 70.34 | H89: 984.76
A90: 1.5 | B90: Ct. | C90: Passagem de ônibus | D90: und. | E90: 10 | G90: 170 | H90: 1700
G91: Total | H91: =SUM(H85:H90) -> 7642.16
G92: =$I$7 -> BDI (26,44%) | H92: =H91*$J$2 -> 2020.587104
G93: Total geral | H93: =H91+H92 -> 9662.747104
A95: CARGA, TRANSPORTE E DESCARGA DE MATERIAIS ORIUNDOS DO REMANESCENTE DE OBRA DO CONTRATO ANTERIOR | H95: UND: unid.
A96: Item | B96: Cód. SINAPI | C96: Descrição | D96: Unidade | E96: Quantidade | G96: Custo Unit. | H96: Custo Total
A97: 1.0 | B97: INSUMOS - 4083 | C97: Encarregado | D97: h | E97: 8 | G97: 16.24 | H97: =ROUND(E97*G97,2) -> 129.92
A98: 1.1 | B98: INSUMOS - 6111 | C98: Servente | D98: h | E98: 48 | G98: 6.31 | H98: =ROUND(E98*G98,2) -> 302.88
A99: 1.2 | B99: INSUMOS - 1140 | C99: CAMINHAO FORD F-4000 OU EQUIV C/ CARROCERIA MADEIRA FIXA - CAP CARGA ATE 5,0T (INCL H 37,82 MANUT/OPERACAO) | D99: h | E99: 8 | G99: 40.53 | H99: =ROUND(E99*G99,2) -> 324.24
A100: 1.3 | B100: INSUMOS - 1143 | C100: CAMINHAO TRUCADO (3 EIXOS) C/ CARROCERIA MADEIRA FIXA CAP. CARGA *10 A 12T* (INCL MANUT/OPERACAO) | D100: H | E100: 8 | G100: 67.5 | H100: =ROUND(E100*G100,2) -> 540
G101: Total | H101: =SUM(H97:H100) -> 1297.04
G102: =$I$7 -> BDI (26,44%) | H102: =H101*$J$2 -> 342.937376
G103: Total geral | H103: =H101+H102 -> 1639.977376
A105: Assentamento de mangote flexível para captação flutuante Ø 100 mm | H105: UND: m
A106: Item | B106: Cód. SINAPI | C106: Descrição | D106: Unidade | E106: Quantidade | G106: Custo Unit. | H106: Custo Total
A107: 1.0 | B107: 4083 | C107: Encarregado | D107: h | E107: 0.3 | G107: 16.24 | H107: =ROUND(E107*G107,2) -> 4.87
A108: 1.1 | B108: 2696 | C108: Encanador | D108: h | E108: 0.7 | G108: 10.35 | H108: =ROUND(E108*G108,2) -> 7.25
A109: 1.2 | B109: 6115 | C109: Ajudante | D109: h | E109: 1 | G109: 6.31 | H109: =ROUND(E109*G109,2) -> 6.31
A110: 1.3 | B110: 001140 | C110: CAMINHAO FORD F-4000 OU EQUIV C/ CARROCERIA MADEIRA FIXA - CAP CARGA ATE 5,0T (INCL H 37,82 MANUT/OPERACAO) | D110: h | E110: 0.5 | G110: 40.53 | H110: =ROUND(E110*G110,2) -> 20.27
G111: Total | H111: =SUM(H107:H110) -> 38.7
G112: =$I$7 -> BDI (26,44%) | H112: =H111*$J$2 -> 10.23228
G113: Total | H113: =H112+H111 -> 48.93228
A115: AREIA GROSSA - DMT ate 25 Km | H115: UND: m³
A116: Item | B116: Cód. SINAPI 09/2013 | C116: Descrição | D116: Unidade | E116: Quantidade | G116: Custo Unit. | H116: Custo Total
A117: 1.0 | B117: SINAPI 000367 | C117: AREIA GROSSA - POSTO JAZIDA / FORNECIMENTO (SEM FRETE) | D117: M3 | E117: 1 | G117: 55 | H117: =ROUND(E117*G117,2) -> 55
A118: 1.1 | B118: SERVIÇO 72887 | C118: Transporte comercial com caminhão basculhante 6 m³, rodovia pavimentada, DMT ate 25 Km | D118: m³x Km | E118: 25 | G118: 0.73 | H118: 18.25
G120: Total geral (Sem BDI) | H120: =SUM(H117:H119) -> 73.25
A122: PEDRA BRITADA N. 1 OU 19 MM - DMT ate 210 Km | H122: UND: m³
A123: Item | B123: Cód. SINAPI 09/2013 | C123: Descrição | D123: Unidade | E123: Quantidade | G123: Custo Unit. | H123: Custo Total
A124: 1.0 | B124: SINAPI 004729 | C124: Pedra britada nº 1 ou 19 mm posto pedreira/fornecedor (SEM FRETE) | D124: m³ | E124: 1 | G124: 75 | H124: =E124*G124 -> 75
A125: 1.1 | B125: SERVIÇO-72887 | C125: Transporte comercial com caminhão basculhante 6 m³, rodovia pavimentada, DMT ate 210Km | D125: m³x Km | E125: 210 | G125: 0.73 | H125: =ROUND(E125*G125,2) -> 153.3
G126: Total geral (Sem BDI) | H126: =SUM(H124:H125) -> 228.3
A128: CONCRETO FCK 15 MPA (1:2:5:3),INCLUIDO PREPARO MECANICO, LANÇAMENTO E ADENSAMENTO. | H128: UND: m³
A129: Item | B129: Cód. SINAPI 09/2013 | C129: Descrição | D129: Unidade | E129: Quantidade | G129: Custo Unit. | H129: Custo Total
A130: 1.0 | B130: COMPOSIÇÃO | C130: AREIA GROSSA - DMT ATÉ 25Km | D130: M3 | E130: 0.7 | G130: =H120 -> 73.25 | H130: =ROUND(E130*G130,2) -> 51.28
A131: 1.1 | B131: INSUMO - 11652 | C131: VIBRADOR DE IMERSÃO,DIAMETRO DE 25MM,COM MOTOR A GASOLINA DE 3,5 HP | D131: Unid. | E131: 1.98e-05 | G131: 1976.78 | H131: 0.04
A132: 1.2 | B132: INSUMO - 4750 | C132: PEDREIRO | D132: H | E132: 4 | G132: 10.35 | H132: 41.4
A133: 1.3 | B133: INSUMO - 4222 | C133: GASOLINA COMUM | D133: L | E133: 0.0688 | G133: 3.05 | H133: 0.21
A134: 1.4 | B134: INSUMO - 10537 | C134: BETONEIRA 320 LITROS,SEM CARREGADOR,MOTOR A DIESEL DE 5,5 HP | D134: Unid. | E134: 0.0001916 | G134: 7680.29 | H134: =ROUND(E134*G134,2) -> 1.47
A135: 1.5 | B135: INSUMO - 6111 | C135: SERVENTE | D135: H | E135: 9 | G135: 6.31 | H135: =ROUND(E135*G135,2) -> 56.79
A136: 1.6 | B136: INSUMO - 1379 | C136: CIMENTO PORTLAND COMPOSTO CP II - 32 | D136: KG | E136: 325 | G136: 0.55 | H136: 178.75
A137: 1.7 | B137: INSUMO - 4221 | C137: OLEO DIESEL COMBUSTIVEL COMUM | D137: L | E137: 0.9648 | G137: 2.42 | H137: =ROUND(E137*G137,2) -> 2.33
A138: 1.1 | B138: COMPOSIÇÃO | C138: PEDRA BRITADA N. 1 OU 19 MM - DMT ate 210 Km | D138: m³ | E138: 0.766 | G138: =H126 -> 228.3 | H138: =E138*G138 -> 174.8778
G139: Total | H139: =SUM(H130:H138) -> 507.1478
G140: =$I$7 -> BDI (26,44%) | H140: =H139*$J$2 -> 134.0898783
G141: Total geral | H141: =H139+H140 -> 641.2376783
A143: EXECUÇÃO DE ENVELOPAMENTO DE TUBULAÇÃO EM CONCRETO SIMPLES,INCLUIDO PREPARO MECANICO, LANÇAMENTO E ADENSAMENTO. | H143: UND: m³
A144: Item | B144: Cód. SINAPI 09/2013 | C144: Descrição | D144: Unidade | E144: Quantidade | G144: Custo Unit. | H144: Custo Total
A145: 1.0 | B145: INSUMO - 6111 | C145: SERVENTE | D145: H | E145: 10.86 | G145: 6.31 | H145: =ROUND(E145*G145,2) -> 68.53
A146: 1.1 | B146: INSUMO - 4750 | C146: PEDREIRO | D146: H | E146: 2.14 | G146: 10.35 | H146: =ROUND(E146*G146,2) -> 22.15
A147: 1.3
A148: 1.4 | B148: COMPOSIÇÃO | C148: AREIA GROSSA - DMT ATÉ 25Km | D148: M3 | E148: 0.742 | G148: =H120 -> 73.25 | H148: =ROUND(E148*G148,2) -> 54.35
A149: 1.6 | B149: INSUMO - 1379 | C149: CIMENTO PORTLAND COMPOSTO CP II - 32 | D149: KG | E149: 274.7405691 | G149: 0.55 | H149: =ROUND(E149*G149,2) -> 151.11
A150: 1.7 | B150: COMPOSIÇÃO | C150: PEDRA BRITADA N. 1 OU 19 MM - DMT ate 210 Km | D150: m³ | E150: 0.85 | G150: =H126 -> 228.3 | H150: 194.06
A151: 1.1 | B151: SERVIÇO 5970 | C151: FORMA TABUA PARA CONCRETO EM FUNDACAO, C/ REAPROVEITAMENTO 2X. | D151: m² | E151: 4 | G151: 49.39 | H151: 197.56
G152: Total | H152: =SUM(H145:H151) -> 687.76
G153: =$I$7 -> BDI (26,44%) | H153: =H152*$J$2 -> 181.843744
G154: Total geral | H154: =H152+H153 -> 869.603744
A156: Assentamento de conexão em PEAD PE-80 em geral | H156: UND: unid
A157: Item | B157: Cód. SINAPI | C157: Descrição | D157: Unidade | E157: Quantidade | G157: Custo Unit. | H157: Custo Total
A158: 1.0 | B158: 1160 | C158: VEICULO COMERCIAL LEVE - CAPACIDADE DE CARGA ATE 700 KG COM MOTOR A GASOLINA TIPO VW-SAVEIRO OU SIMILAR | D158: h | E158: 0.6 | G158: 8.42 | H158: =ROUND(E158*G158,2) -> 5.05
A159: 1.1 | B159: cotação | C159: Máquina de solda de Eletrofusão em PEAD | D159: h | E159: 0.6 | G159: 84.56 | H159: 50.74
A160: 1.2 | B160: 3331 | C160: GRUPO DE SOLDAGEM C/ GERADOR A DIESEL 33HP P/ SOLDA ELETRICA, SOBRE RODAS, TIPO BAMBOZZI MOD. 0-375 A | D160: h | E160: 0.8 | G160: 9.72 | H160: 7.78
A161: 1.5 | B161: 6160 | C161: Soldador | D161: h | E161: 0.6 | G161: 10.35 | H161: 6.21
A162: 1.7 | B162: 242 | C162: AJUDANTE ESPECIALIZADO | D162: h | E162: 1.8 | G162: 6.86 | H162: 12.35
A163: 1.1 | B163: 4221 | C163: OLEO DIESEL COMBUSTIVEL COMUM | D163: L | E163: 4 | G163: 2.42 | H163: 9.68
G164: Total | H164: =SUM(H158:H163) -> 91.81
G165: =$I$7 -> BDI (26,44%) | H165: =H164*$J$2 -> 24.274564
G166: Total geral | H166: =H164+H165 -> 116.084564
A168: Retirada de tubos e conexões em PVC ríg. PBA, PB JE p/ água Ø 75mm | H168: UND: m
B169: Código | C169: Mão-de-obra | D169: Unidade | E169: Quantidade | G169: P. Unitário | H169: P. Total
A170: 1.0 | B170: 6115 | C170: Ajudante | D170: h | E170: 0.08 | G170: 6.31 | H170: =ROUND((E170*G170),2) -> 0.5
A171: 1.1 | B171: 2699 | C171: Assentador de Tubo | D171: h | E171: 0.04 | G171: 11.25 | H171: =ROUND((E171*G171),2) -> 0.45
G172: Total | H172: =SUM(H170:H171) -> 0.95
G173: =$I$7 -> BDI (26,44%) | H173: =ROUND(0.235*H172,2) -> 0.22
G174: Total geral | H174: =H172+H173 -> 1.17
A176: CARGA E DESCARGA DE TUBOS PVC RIG. / RPVC, DN ATE 350 MM | H176: UND: T
A177: Item | B177: Cód. SINAPI | C177: Descrição | D177: Unidade | E177: Quantidade | G177: Custo Unit. | H177: Custo Total
B178: UND: T | C178: EQUIPAMENTOS
A179: 1.0 | B179: INSUMO-3366 | C179: GUINDASTE TIPO MUNCK CAP * 5T * MONTADO EM CAMINHAO CARROCERIA ( LOCAÇÃO COM OPERADOR,COMBUSTIVEL E MANUTENÇÃO). | D179: H | E179: 0.012 | G179: 54.56 | H179: =E179*G179 -> 0.65472
A180: 1.1 | B180: 6111 | C180: Servente | D180: H | E180: 0.012 | G180: 6.31 | H180: =E180*G180 -> 0.07572
G181: Total | H181: =SUM(H179:H180) -> 0.73044
G182: =$I$7 -> BDI (26,44%) | H182: =H181*$J$2 -> 0.193128336
G183: Total geral | H183: =H181+H182 -> 0.923568336
A185: Momento de transporte de tubulação, peças e conexões em PVC rígido DN até 350 mm | H185: UND: T
A186: Item | B186: Cód. SINAPI | C186: Descrição | D186: Unidade | E186: Quantidade | G186: Custo Unit. | H186: Custo Total
B187: UND: T | C187: EQUIPAMENTOS
A188: 1.0 | B188: INSUMO-3366 | C188: GUINDASTE TIPO MUNCK CAP * 5T * MONTADO EM CAMINHAO CARROCERIA ( LOCAÇÃO COM OPERADOR,COMBUSTIVEL E MANUTENÇÃO). | D188: H | E188: 0.02 | G188: 54.56 | H188: =E188*G188 -> 1.0912
A189: 1.1 | B189: 6111 | C189: Servente | D189: H | E189: 0.02 | G189: 6.31 | H189: =E189*G189 -> 0.1262
G190: Total | H190: =SUM(H188:H189) -> 1.2174
G191: =$I$7 -> BDI (26,44%) | H191: =H190*$J$2 -> 0.32188056
G192: Total geral | H192: =H190+H191 -> 1.53928056
A194: Retirada de tubos e conexões em PVC ríg. PBA, PB JE p/ água Ø 50mm | H194: UND: m
B195: Código | C195: Mão-de-obra | D195: Unidade | E195: Quantidade | G195: P. Unitário | H195: P. Total
A196: 1.0 | B196: 6115 | C196: Ajudante | D196: h | E196: 0.06 | G196: 6.31 | H196: =ROUND((E196*G196),2) -> 0.38
A197: 1.1 | B197: 2699 | C197: Assentador de Tubo | D197: h | E197: 0.03 | G197: 11.25 | H197: =ROUND((E197*G197),2) -> 0.34
G198: Total | H198: =SUM(H196:H197) -> 0.72
G199: =$I$7 -> BDI (26,44%) | H199: =H198*$J$2 -> 0.190368
G200: Total geral | H200: =H198+H199 -> 0.910368
A202: CARGA E DESCARGA DE TUBO DE FO.FO. DUCTIL OU ACO CARBONO, P/DN ATE 300MM. | H202: UND: TON.
A203: Item | B203: Cód. SINAPI | C203: Descrição | D203: Unidade | E203: Quantidade | G203: Custo Unit. | H203: Custo Total
C204: EQUIPAMENTOS
A205: 1.0 | B205: INSUMO-3366 | C205: GUINDASTE TIPO MUNCK CAP * 5T * MONTADO EM CAMINHAO CARROCERIA ( LOCAÇÃO COM OPERADOR,COMBUSTIVEL E MANUTENÇÃO). | D205: H | E205: 0.15 | G205: 54.56 | H205: =E205*G205 -> 8.184
A206: 1.1 | B206: 4221 | C206: Óleo Diesel | D206: l | E206: 0.05 | G206: 2.42 | H206: =E206*G206 -> 0.121
A207: 1.2 | B207: 6111 | C207: Servente | D207: H | E207: 3.4 | G207: 6.31 | H207: =E207*G207 -> 21.454
G208: Total | H208: =SUM(H205:H207) -> 29.759
G209: =$I$7 -> BDI (26,44%) | H209: =H208*$J$2 -> 7.8682796
G210: Total geral | H210: =H208+H209 -> 37.6272796
A212: ESCAV. DE VALAS, POÇOS E CAVAS - ESGOTO - EM ROCHA SA, COM ESCAVADEIRA HIDRAULICA E ROMPEDOR HIDRAULICO, ENTRE 0 E 2 METROS DE PROFUNDIDADE, PRODUÇÃO HORÁRIA 4 M3 | H212: UND: m³
A213: Item | B213: Cód. SINAPI | C213: Descrição | D213: Unidade | E213: Quantidade | G213: Custo Unit. | H213: Custo Total
A214: 1.0 | B214: SERVIÇO 74032/001 | C214: ESCAVADEIRA HIDRAULICA SOBRE ESTEIRA 146 A 169HP CAP. 2M3 TIPO KOMATSU PC 300- SERIE C OU EQUIVALENTE (INCL MANUTENCAO/OPERACAO) | D214: H | E214: 0.3 | G214: 138.52 | H214: =E214*G214 -> 41.556
B215: INSUM0 6044 | C215: RETROESCAVADEIRA C/ CARREGADEIRA SOBRE PNEUS 75HP C/CONVERSOR DE TORQUE (INCL H 70,56 MANUTENCAO/OPERACAO E COMBUSTÍVEL) | D215: H | E215: 0.19 | G215: 70.34 | H215: =E215*G215 -> 13.3646
A216: 1.1 | B216: cotação | C216: ROMPEDOR HIDRÁULICO | D216: H | E216: 0.303 | G216: 115.34 | H216: 34.94802
A217: 1.2 | B217: INSUMO 4221 | C217: COMBUSTÍVEL (ESCAVADEIRA HIDRÁULICA) | D217: L | E217: 5.15 | G217: 2.42 | H217: 12.463
A218: 1.8 | B218: cotação | C218: PONTEIRA | D218: UNID | E218: 0.0025 | G218: 5201.95 | H218: 13.004875
A219: 1.10 | B219: 6111 | C219: Servente | D219: H | E219: 1 | G219: 6.31 | H219: =E219*G219 -> 6.31
G220: Total | H220: =SUM(H214:H219) -> 121.646495
G221: =$I$7 -> BDI (26,44%) | H221: =H220*$J$2 -> 32.16333328
G222: Total geral | H222: =H220+H221 -> 153.8098283
A225: MONTAGEM DE PEÇAS, CONEXÕES, VÁLVULAS, APARELHOS E ACESSÓRIOS DE FERRO FUNDIDO DÚCTIL OU AÇO CARBONO, JUNTA FLANGEADA OU MECÂNICA COM DIÂMETROS DE 50 A 250 mm. | H225: UND: kg
A226: Item | B226: Cód. SINAPI | C226: Descrição | D226: Unidade | E226: Quantidade | G226: Custo Unit. | H226: Custo Total
C227: EQUIPAMENTOS
... 360 more rows

Sheet Composição eletrica
C1: Companhia de Desenvolvimento dos Vales do São Francisco e do Parnaíba
F4: DATABASE: FEV.14
A6: COMPOSIÇÕES DE CUSTOS UNITÁRIOS DOS SERVIÇOS - REMANSO RURAL
B7: BDI | C7: 0.2644
A8: INSTALAÇÕES ELÉTRICAS DE REMANSO
B9: COMPOSIÇÃO DE PREÇO UNITÁRIO | D9: ITEM: | F9: 1
A11: SERVIÇO: | B11: Fornecimento e Instalação dos eletrodutos, cabos, quadros, pontos de força dos motores, tomadas, interruptores, luminárias e iluminação externa da ETA | F11: unidade : und
A12: EQUIPAMENTO
A13: CÓDIGO | B13: DESCRIÇÃO | C13: UNIDADE | D13: QUANT. | F13: P.UNIT. | G13: P.TOTAL
A15: SUB-TOTAL | G15: =SUM(G14:G14) -> 0
A16: MATERIAL
A17: CÓDIGO | B17: DESCRIÇÃO | C17: UNIDADE | D17: QUANT. | F17: P.UNIT. | G17: P.TOTAL
A18: 2678 | B18: Eletroduto PVC rígido Ø 3/4" | C18: m | D18: 97 | F18: 1.67 | G18: =D18*F18 -> 161.99
A19: 2679 | B19: Eletroduto PVC rígido Ø 1" | C19: m | D19: 6 | F19: 2.44 | G19: =D19*F19 -> 14.64
A20: 2680 | B20: Eletroduto PVC rígido Ø 1.1/2" | C20: m | D20: 15 | F20: 6.39 | G20: =D20*F20 -> 95.85
A21: 1891 | B21: Luva para eletroduto PVC Ø 3/4" | C21: und | D21: 10 | F21: 1.24 | G21: 12.4
A22: 1892 | B22: Luva para eletroduto PVC Ø 1" | C22: und | D22: 1 | F22: 1.57 | G22: 1.57
A23: 1893 | B23: Luva para eletroduto PVC Ø 1.1/2" | C23: und | D23: 3 | F23: 3.31 | G23: 9.93
A24: 2593 | B24: Condulete de alumínio, com tampa, tipo L, diâmetro Ø 3/4" | C24: und | D24: 14 | F24: 6.73 | G24: 94.22
A25: 2565 | B25: Condulete de alumínio, com tampa, tipo E, diâmetro Ø 3/4" | C25: und | D25: 6 | F25: 6.24 | G25: 37.44
A26: 2559 | B26: Condulete de alumínio, com tampa, tipo C, diâmetro Ø 3/4" | C26: und | D26: 8 | F26: 6.69 | G26: 53.52
A27: 2574 | B27: Condulete de alumínio, com tampa, tipo T, diâmetro Ø 3/4" | C27: und | D27: 4 | F27: 7.2 | G27: 28.8
A28: 2580 | B28: Condulete de alumínio, com tampa, tipo X, diâmetro Ø 3/4" | C28: und | D28: 1 | F28: 7.63 | G28: 7.63
A29: 2570 | B29: Condulete de alumínio, com tampa, tipo L, diâmetro Ø 1" | C29: und | D29: 2 | F29: 10.44 | G29: 20.88
A30: 2590 | B30: Condulete de alumínio, com tampa, tipo E, diâmetro Ø 1" | C30: und | D30: 2 | F30: 10.35 | G30: 20.7
A31: 2587 | B31: Condulete de alumínio, com tampa, tipo L, diâmetro Ø 1.1/2" | C31: und | D31: 3 | F31: 26.71 | G31: 80.13
A32: 400 | B32: Braçadeira galvanizada tipo cunha Ø 3/4" | C32: und | D32: 35 | F32: 0.56 | G32: 19.6
A33: 393 | B33: Braçadeira galvanizada tipo cunha Ø 1" | C33: und | D33: 3 | F33: 0.75 | G33: 2.25
A34: 394 | B34: Braçadeira galvanizada tipo cunha Ø 1.1/2" | C34: und | D34: 7 | F34: 0.79 | G34: 5.53
A35: 11950 | B35: Bucha de nylon S-6 com parafuso fenda galvanizado cabeça panela 4,2x32mm autoatarrachante | C35: und | D35: 45 | F35: 0.18 | G35: 8.1
A36: 7555 | B36: Interruptor simples para condulete 10A/250V, 1 tecla | C36: und | D36: 2 | F36: 5.02 | G36: 10.04
A37: 7528 | B37: Tomada para condulete 2P+T 10A/250V | C37: und | D37: 7 | F37: 5.34 | G37: 37.38
A38: 09761/ORSE | B38: Tomada para condulete 3P+T 32A/380V | C38: und | D38: 2 | F38: 20.6 | G38: 41.2
A39: 03954/ORSE | B39: Espelho/Placa para condulete com 1 espaço | C39: und | D39: 9 | F39: 1.5 | G39: 13.5
A40: 12038 | B40: QGBT - Quadro de distribuição de energia de sobrepor, em chapa metálica, para 18 disjuntores termomagnéticos, com barramento trifásico e neutro | C40: und | D40: 1 | F40: 176.05 | G40: 176.05
A41: 20009 | B41: Disjuntor monofásico 16A, 2KA (220V) | C41: und | D41: 4 | F41: 10.29 | G41: 41.16
A42: 20010 | B42: Disjuntor monofásico 20A, 2KA (220V) | C42: und | D42: 3 | F42: 10.35 | G42: 31.05
A43: 2392 | B43: Disjuntor termomagnético tripolar 50A | C43: und | D43: 1 | F43: 48.28 | G43: 48.28
A44: 2381 | B44: Disjuntor termomagnético tripolar 63A | C44: und | D44: 1 | F44: 69.53 | G44: 69.53
A45: 08029/ORSE | B45: QF_MOTORES - Quadro de força e comando dos motores, com partida suave tipo softstarter, IP 54 | C45: und | D45: 1 | F45: 5059.7 | G45: =F45*D45 -> 5059.7
A46: 1022 | B46: Cabo de cobre isolamento anti-chama 0,6/1KV 2,5mm2 | C46: m | D46: 410 | F46: 1.68 | G46: 688.8
A47: 1020 | B47: Cabo de cobre isolamento anti-chama 0,6/1KV 10mm2 | C47: m | D47: 80 | F47: 5.34 | G47: 427.2
A48: 995 | B48: Cabo de cobre isolamento anti-chama 0,6/1KV 16mm2 | C48: m | D48: 75 | F48: 8.01 | G48: 600.75
A49: 12227 | B49: Arandela de uso externo em chapa de aço, com difusor em vidro transparente | C49: und | D49: 4 | F49: 71.43 | G49: 285.72
A50: 3799 | B50: Luminária tipo calha de sobrepor, em chapa de aço, para duas lâmpadas fluorescentes tubulares 2x40W | C50: und | D50: 4 | F50: 51.92 | G50: 207.68
A51: 12294 | B51: Soquete/Bocal | C51: und | D51: 22 | F51: 1.84 | G51: 40.48
A52: 07061/ORSE | B52: Lâmpada fluorescente compacta 20W | C52: und | D52: 4 | F52: 7.1 | G52: 28.4
A53: 1300/ORSE | B53: Lâmpada fluorescente tubular 40W | C53: und | D53: 8 | F53: 4.2 | G53: 33.6
A54: 3758 | B54: Lâmpada vapor de sódio 400W | C54: und | D54: 2 | F54: 42.23 | G54: 84.46
A55: 13382 | B55: Luminária para iluminação pública fechada 400W | C55: und | D55: 2 | F55: 132.65 | G55: 265.3
A56: 2512 | B56: Braço para luminária pública | C56: und | D56: 2 | F56: 13.27 | G56: 26.54
A57: 2510 | B57: Relé fotoelétrico 500 w - 220 v | C57: und | D57: 2 | F57: 21.88 | G57: 43.76
A58: 12318 | B58: Reator para 1 lâmpada de 400W - uso externo | C58: und | D58: 2 | F58: 52.43 | G58: 104.86
A59: 73783/014 | B59: Poste em concreto, Duplo T, altura 9m, carga nominal 200Kg - fornecimento e instalação | C59: und | D59: 1 | F59: 574.03 | G59: 574.03
A60: SUB-TOTAL | G60: =ROUND(SUM(G18:G59),2) -> 9614.65
A61: MÃO DE OBRA
A62: CÓDIGO | B62: DESCRIÇÃO | C62: UNIDADE | D62: QUANT. | F62: P.UNIT. | G62: P.TOTAL
A63: 2706 | B63: Engenheiro Eletricista | C63: h | D63: 12 | F63: 56.76 | G63: =D63*F63 -> 681.12
A64: 2438 | B64: Eletrotécnico | C64: h | D64: 40 | F64: 15.88 | G64: 635.2
A65: 2436 | B65: Eletricista | C65: h | D65: 80 | F65: 10.35 | G65: 828
A66: 247 | B66: Ajudante de Eletricista | C66: h | D66: 80 | F66: 6.44 | G66: 515.2
A67: SUB-TOTAL | G67: =ROUND(SUM(G63:G66),2) -> 2659.52
B69: A) CUSTO UNITÁRIO TOTAL | G69: =ROUND(G15+G60+G67,2) -> 12274.17
B70: B) BDI (26,44%) | F70: =$C$7 -> 0.2644 | G70: =ROUND(G69*F70,2) -> 3245.29
B71: PREÇO UNITÁRIO TOTAL (A+B+C) | G71: =ROUND(SUM(G69:G70),2) -> 15519.46
B74: COMPOSIÇÃO DE PREÇO UNITÁRIO | D74: ITEM: | F74: 2
A76: SERVIÇO: | B76: Fornecimento e Instalação da Subestação abaixadora de 30 KVA e interligação (circuito alimentador) da SE ao QGBT da ETA/Captação | F76: unidade : und
A77: EQUIPAMENTO
A78: CÓDIGO | B78: DESCRIÇÃO | C78: UNIDADE | D78: QUANT. | F78: P.UNIT. | G78: P.TOTAL
A80: SUB-TOTAL | G80: =SUM(G79:G79) -> 0
A81: MATERIAL
A82: CÓDIGO | B82: DESCRIÇÃO | C82: UNIDADE | D82: QUANT. | F82: P.UNIT. | G82: P.TOTAL
A83: 11315 | B83: Tampão FoFo T-16 (7Kg) - 30x30cm (p/ caixa de inspeção) | C83: und | D83: 4 | F83: 62.39 | G83: =D83*F83 -> 249.56
A84: 3278 | B84: Caixa de inspeção em cconcreto pre moldado circular com tampa d=40cm, h=60cm | C84: und | D84: 4 | F84: 26.29 | G84: =D84*F84 -> 105.16
A85: 12732 | B85: Solda exotérmica - solda para tubo e conexões de cobre | C85: und | D85: 8 | F85: 37.34 | G85: 298.72
A86: 3380 | B86: Haste de aterramento DN 5/8 "x3000mm, em aço revestido com camada de cobre eletrolítico, com conector tipo grampo | C86: und | D86: 4 | F86: 29.13 | G86: 116.52
A87: 342 | B87: Arame galvanizado 12BWG | C87: kg | D87: 10 | F87: 8 | G87: 80
A88: 379 | B88: Arruela quadrada galvanizada D=38mm esp = 3mm furo=18mm | C88: und | D88: 8 | F88: 1.67 | G88: 13.36
A89: 418 | B89: Alça pre-formada de distribuição PLP para cabo alumínio 25mm2 | C89: und | D89: 3 | F89: 3.07 | G89: 9.21
A90: 1092 | B90: Armação vertical com haste e contra-pino em chapa de ferro galvanizado 3/16" com 2 estribos e 2 isoladores | C90: und | D90: 3 | F90: 18.63 | G90: 55.89
A91: 1595 | B91: Conector de aterramento de bronze para cabo 95mm2 a barra de até 7mm2 | C91: und | D91: 3 | F91: 13.47 | G91: 40.41
A92: 02672/ORSE | B92: Conector estribo 4/2 tipo cunha - padrão Coelba | C92: und | D92: 3 | F92: 27.1 | G92: 81.3
A93: 11837 | B93: Grampo linha viva de alumínio cabo principal (10-120mm2) derivação (10-70mm2) | C93: und | D93: 3 | F93: 27.46 | G93: 82.38
A94: 402 | B94: Gancho suspensão olhal em aço galvanizado, espessura 16mm, abertura 21mm | C94: und | D94: 3 | F94: 6.79 | G94: 20.37
A95: 421 | B95: Porca olhal aço para parafuso diâmetro de 16mm | C95: und | D95: 6 | F95: 10.48 | G95: 62.88
A96: 4337 | B96: Porca zincada quadrada 16mm | C96: und | D96: 16 | F96: 0.43 | G96: 6.88
A97: 430 | B97: Parafuso M12 (rosca máquina d=12mm)x125mm cab. quadrada - zincagem a fogo | C97: und | D97: 4 | F97: 3.73 | G97: 14.92
A98: 432 | B98: Parafuso M16 (rosca máquina d=16mm)x250mm cab. quadrada - zincagem a fogo | C98: und | D98: 4 | F98: 6.4 | G98: 25.6
A99: 11790 | B99: Parafuso M16 (rosca máquina d=16mm)x450mm cab. quadrada - zincagem a fogo | C99: und | D99: 8 | F99: 12.03 | G99: 96.24
A100: 01593/ORSE | B100: Mão francesa plana 726 mm | C100: und | D100: 4 | F100: 5.75 | G100: 23
A101: 3406 | B101: Isolador polimérico de pino 15KV | C101: und | D101: 3 | F101: 14.08 | G101: 42.24
A102: 841 | B102: Cabo de alumínio com alma de aço, bitola 4 AWG | C102: kg | D102: 2 | F102: 24.31 | G102: 48.62
A103: 03248/ORSE | B103: Cruzeta de concreto tipo T 2400mm 200 Kg | C103: und | D103: 4 | F103: 167.89 | G103: 671.56
A104: 5047 | B104: Chave fusível de distribuição 15KV/100A | C104: und | D104: 3 | F104: 201.95 | G104: 605.85
A105: 10661/ORSE | B105: Elo fusível | C105: und | D105: 3 | F105: 7.92 | G105: 23.76
A106: 03859/ORSE | B106: Para-raios polimérico 12KV / 10KA | C106: und | D106: 3 | F106: 133.7 | G106: 401.1
A107: 7576 | B107: Suporte para transformador DT 185x95mm x 5/16" | C107: und | D107: 1 | F107: 49.53 | G107: 49.53
A108: 7610 | B108: Transformador de distribuição com isolação a óleo 30KVA - 13,8KV / 380/220V | C108: und | D108: 1 | F108: 5391.6 | G108: 5391.6
A109: 73783/017 | B109: Poste em concreto, Duplo T, altura 11m, carga nominal 600Kg - fornecimento e instalação | C109: und | D109: 1 | F109: 991 | G109: =D109*F109 -> 991 | H109: ok
A110: 1062 | B110: Caixa de medição com visor, para um medidor trifásico, em chapa de aço galvanizado 18 USG - diam. 100x100cm | C110: und | D110: 1 | F110: 93.6 | G110: 93.6
A111: 1065 | B111: Caixa para TC em chapa de alumínio - diam. 100x100cm | C111: und | D111: 1 | F111: 160.83 | G111: 160.83
A112: 13843 | B112: Caixa para medição trifásica - caixa para instalação de disjuntor trifásico - diam. 100x50cm | C112: und | D112: 1 | F112: 76.39 | G112: 76.39
A113: 2381 | B113: Disjuntor termomagnético tripolar 63A | C113: und | D113: 1 | F113: 69.53 | G113: 69.53
A114: 21134 | B114: Eletroduto em ferro galvanizado Ø 2" | C114: m | D114: 6 | F114: 26.58 | G114: 159.48
A115: 2643 | B115: Luva para eletroduto em ferro galvanizado Ø 2" | C115: und | D115: 1 | F115: 3.62 | G115: 3.62
A116: 2459 | B116: Curva 90° para eletroduto em ferro galvanizado Ø 2" | C116: und | D116: 1 | F116: 9.4 | G116: 9.4
A117: 2468 | B117: Curva 135° para eletroduto em ferro galvanizado Ø 2" | C117: und | D117: 1 | F117: 11.35 | G117: 11.35
A118: 2681 | B118: Eletroduto PVC rígido Ø 2" | C118: m | D118: 15 | F118: 8.22 | G118: 123.3
A119: 1894 | B119: Luva para eletroduto PVC Ø 2" | C119: und | D119: 7 | F119: 5.33 | G119: 37.31
A120: 1876 | B120: Curva 90º para eletroduto PVC Ø 2" | C120: und | D120: 2 | F120: 7.69 | G120: 15.38
A121: 995 | B121: Cabo de cobre isolamento anti-chama 0,6/1KV 16mm2 | C121: m | D121: 100 | F121: 8.01 | G121: 801
A122: 863 | B122: Cabo de cobre nu 35mm2 | C122: m | D122: 15 | F122: 14.13 | G122: 211.95
A123: 867 | B123: Cabo de cobre nu 50mm2 | C123: m | D123: 15 | F123: 18.4 | G123: 276
A124: SUB-TOTAL | G124: =ROUND(SUM(G83:G123),2) -> 11656.8
A125: MÃO DE OBRA
A126: CÓDIGO | B126: DESCRIÇÃO | C126: UNIDADE | D126: QUANT. | F126: P.UNIT. | G126: P.TOTAL
A127: 2706 | B127: Engenheiro Eletricista | C127: h | D127: 12 | F127: 56.76 | G127: =D127*F127 -> 681.12
A128: 2438 | B128: Eletrotécnico | C128: h | D128: 40 | F128: 15.88 | G128: 635.2
A129: 2436 | B129: Eletricista | C129: h | D129: 80 | F129: 10.35 | G129: 828
A130: 247 | B130: Ajudante de Eletricista | C130: h | D130: 80 | F130: 6.44 | G130: 515.2
A131: 3366 | B131: Caminhão com munck, carga máx. 5T | C131: h | D131: 4 | F131: 54.56 | G131: 218.24
A132: SUB-TOTAL | G132: =ROUND(SUM(G127:G131),2) -> 2877.76
B134: A) CUSTO UNITÁRIO TOTAL | G134: =ROUND(G80+G124+G132,2) -> 14534.56
B135: B) BDI (26,44%) | F135: =$C$7 -> 0.2644 | G135: =ROUND(G134*F135,2) -> 3842.94
B136: PREÇO UNITÁRIO TOTAL (A+B+C) | G136: =ROUND(SUM(G134:G135),2) -> 18377.5
B139: COMPOSIÇÃO DE PREÇO UNITÁRIO | D139: ITEM: | F139: 3
A141: SERVIÇO: | B141: Fornecimento e Instalação da Subestação abaixadora de 15 KVA e interligação (circuito alimentador) da SE ao CCM da Captação | F141: unidade : und
A142: EQUIPAMENTO
A143: CÓDIGO | B143: DESCRIÇÃO | C143: UNIDADE | D143: QUANT. | F143: P.UNIT. | G143: P.TOTAL
A145: SUB-TOTAL | G145: =SUM(G144:G144) -> 0
A146: MATERIAL
A147: CÓDIGO | B147: DESCRIÇÃO | C147: UNIDADE | D147: QUANT. | F147: P.UNIT. | G147: P.TOTAL
A148: 11315 | B148: Tampão FoFo T-16 (7Kg) - 30x30cm (p/ caixa de inspeção) | C148: und | D148: 4 | F148: 62.39 | G148: =D148*F148 -> 249.56
A149: 3278 | B149: Caixa de inspeção em cconcreto pre moldado circular com tampa d=40cm, h=60cm | C149: und | D149: 4 | F149: 26.29 | G149: =D149*F149 -> 105.16
A150: 12732 | B150: Solda exotérmica - solda para tubo e conexões de cobre | C150: und | D150: 8 | F150: 37.34 | G150: 298.72
A151: 3380 | B151: Haste de aterramento DN 5/8 "x3000mm, em aço revestido com camada de cobre eletrolítico, com conector tipo grampo | C151: und | D151: 4 | F151: 29.13 | G151: 116.52
A152: 342 | B152: Arame galvanizado 12BWG | C152: kg | D152: 10 | F152: 8 | G152: 80
A153: 379 | B153: Arruela quadrada galvanizada D=38mm esp = 3mm furo=18mm | C153: und | D153: 8 | F153: 1.67 | G153: 13.36
A154: 418 | B154: Alça pre-formada de distribuição PLP para cabo alumínio 25mm2 | C154: und | D154: 3 | F154: 3.07 | G154: 9.21
A155: 1092 | B155: Armação vertical com haste e contra-pino em chapa de ferro galvanizado 3/16" com 2 estribos e 2 isoladores | C155: und | D155: 3 | F155: 18.63 | G155: 55.89
A156: 1595 | B156: Conector de aterramento de bronze para cabo 95mm2 a barra de até 7mm2 | C156: und | D156: 3 | F156: 13.47 | G156: 40.41
A157: 02672/ORSE | B157: Conector estribo 4/2 tipo cunha - padrão Coelba | C157: und | D157: 3 | F157: 27.1 | G157: 81.3
A158: 11837 | B158: Grampo linha viva de alumínio cabo principal (10-120mm2) derivação (10-70mm2) | C158: und | D158: 3 | F158: 27.46 | G158: 82.38
A159: 402 | B159: Gancho suspensão olhal em aço galvanizado, espessura 16mm, abertura 21mm | C159: und | D159: 3 | F159: 6.79 | G159: 20.37
A160: 421 | B160: Porca olhal aço para parafuso diâmetro de 16mm | C160: und | D160: 6 | F160: 10.48 | G160: 62.88
A161: 4337 | B161: Porca zincada quadrada 16mm | C161: und | D161: 16 | F161: 0.43 | G161: 6.88
A162: 430 | B162: Parafuso M12 (rosca máquina d=12mm)x125mm cab. quadrada - zincagem a fogo | C162: und | D162: 4 | F162: 3.73 | G162: 14.92
A163: 432 | B163: Parafuso M16 (rosca máquina d=16mm)x250mm cab. quadrada - zincagem a fogo | C163: und | D163: 4 | F163: 6.4 | G163: 25.6
A164: 11790 | B164: Parafuso M16 (rosca máquina d=16mm)x450mm cab. quadrada - zincagem a fogo | C164: und | D164: 8 | F164: 12.03 | G164: 96.24
A165: 01593/ORSE | B165: Mão francesa plana 726 mm | C165: und | D165: 4 | F165: 5.75 | G165: 23
A166: 3406 | B166: Isolador polimérico de pino 15KV | C166: und | D166: 3 | F166: 14.08 | G166: 42.24
A167: 841 | B167: Cabo de alumínio com alma de aço, bitola 4 AWG | C167: kg | D167: 2 | F167: 24.31 | G167: 48.62
A168: 03248/ORSE | B168: Cruzeta de concreto tipo T 2400mm 200 Kg | C168: und | D168: 4 | F168: 167.89 | G168: 671.56
A169: 5047 | B169: Chave fusível de distribuição 15KV/100A | C169: und | D169: 3 | F169: 201.95 | G169: 605.85
A170: 10661/ORSE | B170: Elo fusível | C170: und | D170: 3 | F170: 7.92 | G170: 23.76
A171: 03859/ORSE | B171: Para-raios polimérico 12KV / 10KA | C171: und | D171: 3 | F171: 133.7 | G171: 401.1
A172: 7576 | B172: Suporte para transformador DT 185x95mm x 5/16" | C172: und | D172: 1 | F172: 49.53 | G172: 49.53
A173: 12076 | B173: Transformador de distribuição com isolação a óleo 30KVA - 13,8KV / 380/220V | C173: und | D173: 1 | F173: 4460 | G173: 4460
A174: 73783/017 | B174: Poste em concreto, Duplo T, altura 11m, carga nominal 600Kg - fornecimento e instalação | C174: und | D174: 1 | F174: 991 | G174: 991
A175: 1062 | B175: Caixa de medição com visor, para um medidor trifásico, em chapa de aço galvanizado 18 USG - diam. 100x100cm | C175: und | D175: 1 | F175: 93.6 | G175: 93.6
A176: 1065 | B176: Caixa para TC em chapa de alumínio - diam. 100x100cm | C176: und | D176: 1 | F176: 160.83 | G176: 160.83
A177: 13843 | B177: Caixa para medição trifásica - caixa para instalação de disjuntor trifásico - diam. 100x50cm | C177: und | D177: 1 | F177: 76.39 | G177: 76.39
A178: 2384 | B178: Disjuntor termomagnético tripolar 32A | C178: und | D178: 1 | F178: 48.67 | G178: 48.67
A179: 21134 | B179: Eletroduto em ferro galvanizado Ø 2" | C179: m | D179: 6 | F179: 26.58 | G179: 159.48
A180: 2643 | B180: Luva para eletroduto em ferro galvanizado Ø 2" | C180: und | D180: 1 | F180: 3.62 | G180: 3.62
A181: 2459 | B181: Curva 90° para eletroduto em ferro galvanizado Ø 2" | C181: und | D181: 1 | F181: 9.4 | G181: 9.4
A182: 2468 | B182: Curva 135° para eletroduto em ferro galvanizado Ø 2" | C182: und | D182: 1 | F182: 11.35 | G182: 11.35
A183: 2681 | B183: Eletroduto PVC rígido Ø 2" | C183: m | D183: 15 | F183: 8.22 | G183: 123.3
A184: 1894 | B184: Luva para eletroduto PVC Ø 2" | C184: und | D184: 7 | F184: 5.33 | G184: 37.31
A185: 1876 | B185: Curva 90º para eletroduto PVC Ø 2" | C185: und | D185: 2 | F185: 7.69 | G185: 15.38
A186: 1020 | B186: Cabo de cobre isolamento anti-chama 0,6/1KV 10mm2 | C186: m | D186: 100 | F186: 5.34 | G186: 534
A187: 863 | B187: Cabo de cobre nu 35mm2 | C187: m | D187: 15 | F187: 14.13 | G187: 211.95
A188: 867 | B188: Cabo de cobre nu 50mm2 | C188: m | D188: 15 | F188: 18.4 | G188: 276
A189: SUB-TOTAL | G189: =ROUND(SUM(G148:G188),2) -> 10437.34
A190: MÃO DE OBRA
A191: CÓDIGO | B191: DESCRIÇÃO | C191: UNIDADE | D191: QUANT. | F191: P.UNIT. | G191: P.TOTAL
A192: 2706 | B192: Engenheiro Eletricista | C192: h | D192: 12 | F192: 56.76 | G192: =D192*F192 -> 681.12
A193: 2438 | B193: Eletrotécnico | C193: h | D193: 40 | F193: 15.88 | G193: 635.2
A194: 2436 | B194: Eletricista | C194: h | D194: 80 | F194: 10.35 | G194: 828
A195: 247 | B195: Ajudante de Eletricista | C195: h | D195: 80 | F195: 6.44 | G195: 515.2
A196: 3366 | B196: Caminhão com munck, carga máx. 5T | C196: h | D196: 4 | F196: 54.56 | G196: 218.24
A197: SUB-TOTAL | G197: =ROUND(SUM(G192:G196),2) -> 2877.76
B199: A) CUSTO UNITÁRIO TOTAL | G199: =ROUND(G145+G189+G197,2) -> 13315.1
B200: B) BDI (26,44%) | F200: =$C$7 -> 0.2644 | G200: =ROUND(G199*F200,2) -> 3520.51
B201: PREÇO UNITÁRIO TOTAL (A+B+C) | G201: =ROUND(SUM(G199:G200),2) -> 16835.61
B204: COMPOSIÇÃO DE PREÇO UNITÁRIO | D204: ITEM: | F204: 4
A206: SERVIÇO: | B206: Fornecimento e Instalação dos eletrodutos, cabos, quadro, pontos de força dos motores, tomada, interruptor, luminárias da Captação | F206: unidade : und
A207: EQUIPAMENTO
A208: CÓDIGO | B208: DESCRIÇÃO | C208: UNIDADE | D208: QUANT. | F208: P.UNIT. | G208: P.TOTAL
A210: SUB-TOTAL | G210: =SUM(G209:G209) -> 0
A211: MATERIAL
A212: CÓDIGO | B212: DESCRIÇÃO | C212: UNIDADE | D212: QUANT. | F212: P.UNIT. | G212: P.TOTAL
A213: 2678 | B213: Eletroduto PVC rígido Ø 3/4" | C213: m | D213: 15 | F213: 1.67 | G213: =D213*F213 -> 25.05
A214: 1891 | B214: Luva para eletroduto PVC Ø 3/4" | C214: und | D214: 2 | F214: 1.24 | G214: 2.48
A215: 2593 | B215: Condulete de alumínio, com tampa, tipo L, diâmetro Ø 3/4" | C215: und | D215: 2 | F215: 6.73 | G215: 13.46 | H215: ok
A216: 2565 | B216: Condulete de alumínio, com tampa, tipo E, diâmetro Ø 3/4" | C216: und | D216: 2 | F216: 6.24 | G216: 12.48
A217: 2559 | B217: Condulete de alumínio, com tampa, tipo C, diâmetro Ø 3/4" | C217: und | D217: 1 | F217: 6.69 | G217: 6.69
A218: 2574 | B218: Condulete de alumínio, com tampa, tipo T, diâmetro Ø 3/4" | C218: und | D218: 1 | F218: 7.2 | G218: 7.2
A219: 400 | B219: Braçadeira galvanizada tipo cunha Ø 3/4" | C219: und | D219: 7 | F219: 0.56 | G219: 3.92
A220: 11950 | B220: Bucha de nylon S-6 com parafuso fenda galvanizado cabeça panela 4,2x32mm autoatarrachante | C220: und | D220: 7 | F220: 0.18 | G220: 1.26
... 151 more rows

Sheet COTAÇÕES (hidden)
B1: COTAÇÃO DE PREÇOS DE MATERIAIS
A3: ÍTEM | B3: DESCRIÇÃO DE SERVIÇOS | C3: UNID. | D3: QUANT | F3: QTDADE. | G3: P. UNITÁRIO | H3: SINAPI | I3: P. UNIT FORN.1 | J3: FORNECEDOR.1 | K3: P. UNIT FORN.2 | L3: FORNECEDOR.2
A4: 4.0 | B4: FORNECIMENTO DE SUPRIMENTOS ELÉTRICOS
A5: COTAÇÃO | B5: Caixa de medição em policarbonato - tipo II - padrão coelba | C5: un | D5: 1 | E5: 0 | F5: =D5-E5 -> 1 | G5: 89.83 | H5: 000-13405
A6: COTAÇÃO | B6: Capacete de alumínio 1.1/2" | C6: un | D6: 2 | E6: 0 | F6: =D6-E6 -> 2 | G6: 6.76 | H6: 000-12895 | I6: 3.5 | J6: média tensão PP26746/2013
A7: COTAÇÃO | B7: Conector gtdu | C7: un | D7: 4 | E7: 0 | F7: 4 | G7: 5.46 | H7: 0000-2527 | I7: 10.5 | J7: média tensão PP26746/2013
A8: COTAÇÃO | B8: Fita bandit 3/4" | C8: m | D8: 6 | E8: 0 | F8: 6 | G8: 0.79 | H8: 00000-406 | I8: 0.59 | J8: arqueaçoes | K8: 0.7 | L8: média tensão PP26746/2013
A9: COTAÇÃO | B9: Cruzeta concreto armado "t" 2400mm-padrão coelba | C9: un | D9: 4 | E9: 0 | F9: 4 | I9: 96 | J9: seabra.ba@postesnordeste.com.br | K9: 126 | L9: Barbosa-Petrolina 3863-0995
A10: COTAÇÃO | B10: Manilha sapatilha aço 5000dan | C10: un | D10: 3 | E10: 0 | F10: 3 | I10: 8.9 | J10: média tensão PP26746/2013
A11: COTAÇÃO | B11: Pára-raios rd 15kv 10ka | C11: un | D11: 3 | E11: 0 | F11: 3 | G11: 261.4 | H11: 0000-4276
A12: COTAÇÃO | B12: Suporte instalação equipamento | C12: un | D12: 1 | E12: 0 | F12: 1 | G12: 80.7 | H12: 0001-0956
A13: 3.0 | B13: FORNECIMENTO DE MATERIAIS HIDRÁULICOS
A14: COTAÇÃO | B14: Te PEAD 90º Ø110 mm | C14: un | D14: 16 | E14: 1 | F14: =D14-E14 -> 15 | I14: 120.32 | J14: ECOPIPE 1107 | K14: 126 | L14: vendas2@ECOPIPE
A15: 3.0 | B15: FORNECIMENTO DOS MATERIAIS HIDRÁULICOS
A16: COTAÇÃO | B16: REDUÇÃO EXCÊNTRICA EM AÇO GALVANIZADO DN 100x80mm | C16: un | D16: 1 | E16: 0 | F16: =D16-E16 -> 1 | I16: 90 | J16: vendas2@ECOPIPE
A17: COTAÇÃO | B17: CONEXÃO FLANGEADA MANGOTE 100 PSI DN 100 | C17: un | D17: 2 | E17: 0 | F17: =D17-E17 -> 2 | I17: 430 | J17: portobras298.13-5
A18: 2.0 | B18: FORNECIMENTO DE EQUIPAMENTOS
A19: COTAÇÃO | B19: Válvula controladora de nível máximo do reservatório Ø 2" | C19: un | D19: 1 | E19: 0 | F19: =D19-E19 -> 1 | I19: 1130 | J19: ISOVAL
A20: COTAÇÃO | B20: Escada interna p/ reservatório | C20: m | D20: 1 | E20: 0 | F20: =D20-E20 -> 1 | G20: 34.83 | H20: 73665
A21: 7.0 | B21: Montagem dos Equipamentos
A22: COTAÇÃO | B22: Realização de testes pré-operacionais, com fornecimento dos produtos químicos necessários para um mês de operação, e treinamento de pessoal para operação e manutenção da ETA de 8,00 a 9,00 l/s | C22: un | D22: 1 | E22: 0 | F22: =D22-E22 -> 1
A23: COTAÇÃO | B23: Instalações elétricas da Casa de Química, inclusive fornecimento do quadro de proteção e comando dos equipamentos e fluxostato para automação da dosagem química, para Estação de Tratamento de 4,00 a 16,00 l/s. | C23: un | D23: 1 | E23: 0 | F23: =D23-E23 -> 1
A24: 1.0 | B24: FORNECIMENTO DAS TUBULAÇÕES
A25: COTAÇÃO | B25: Tubo de polietileno de alta densidade, pead, pe-80, de 160 mm x 14,6 mm, PN 12,5 | C25: m | D25: 15 | E25: 0 | F25: =D25-E25 -> 15 | G25: 129 | H25: 000-25878 | I25: 93.91 | J25: 10061946/TIGRE
A26: 2.0 | B26: FORNECIMENTO DE EQUIPAMENTOS
A27: COTAÇÃO | B27: Valvula Retencao "by pass" (Pn-25) portinhola dupla DN 150mm | C27: un | D27: 1 | E27: 0 | F27: =D27-E27 -> 1 | G27: 549 | H27: ISOVAL | I27: 603.4 | J27: Caetano-7380-6 | K27: 599.32 | L27: Cardinal 236-1.24
A28: 4.0 | B28: FORNECIMENTO DE SUPRIMENTOS ELÉTRICOS
A29: COTAÇÃO | B29: Trafo 3f 30kva 13,8kv 380/220v | C29: un | D29: 1 | E29: 0 | F29: =D29-E29 -> 1 | G29: 2950 | H29: TNT LTDA | I29: 3100 | J29: ELETRAFO | K29: 4600 | L29: ALD
A30: 3.0 | B30: FORNECIMENTO DE MATERIAIS HIDRÁULICOS
A31: COTAÇÃO | B31: Valvula controladora de vazão PN 10 DN 75 | C31: un | D31: 5 | E31: 3 | F31: =D31-E31 -> 2 | I31: 2537 | J31: ISOVAL
A32: 1.0 | B32: FORNECIMENTO DE EQUIPAMENTOS
A33: COTAÇÃO | B33: Conj. geração solução clorada de sal comum, capac. 2000 gCl/d. Inclui fonte corrente contínua alta amperagem, reator eletrolítico, saturador e bombas dosadoras de salmoura e de água de diluição e reserv. automatizado solução clorada | C33: un | D33: 1 | E33: 0 | F33: =D33-E33 -> 1
A34: 1.0 | B34: FORNECIMENTO DAS TUBULAÇÕES
A35: COTAÇÃO | B35: TUBO FOFO C/ FLANGES DN 200mm L= 0,50m | C35: un | D35: 1 | E35: 0 | F35: =D35-E35 -> 1 | I35: 1110.01 | J35: Caetano - 7682
A36: 2.0 | B36: FORNECIMENTO DE EQUIPAMENTOS
A37: COTAÇÃO | B37: Válvula de pé de fofo dúctil c/ crivo PN 10 dn 200 47 kg | C37: un | D37: 1 | E37: 0 | F37: =D37-E37 -> 1 | I37: 1388.2 | J37: Caetano - 7682 | K37: 1340 | L37: ISOVAL
A38: 3.0 | B38: FORNECIMENTO DOS MATERIAIS HIDRÁULICOS E ELÉTRICOS
A39: COTAÇÃO | B39: Fixador de cabo de descida de para raios com isolador | C39: un | D39: 8 | E39: 0 | F39: =D39-E39 -> 8 | G39: 4.04 | H39: 000-11270
A40: 3.0 | B40: FORNECIMENTO DOS MATERIAIS HIDRÁULICOS E ELÉTRICOS
A41: COTAÇÃO | B41: Aluguel de banheiros químicos para o abrigo provisório | C41: mês | D41: 10 | E41: 0 | F41: =D41-E41 -> 10 | I41: 500 | J41: jplocacoes.com
A42: COTAÇÃO | B42: Corrente em aço galvanizado | C42: m | D42: =38+10 -> 48 | E42: 0 | F42: 48 | I42: 16.06 | J42: PMÉDIO COFORJA
A43: COTAÇÃO | B43: Mangote Flexível REF CDF- HD DN 150 mm (KANAFLEX) | C43: m | D43: 15 | E43: 0 | F43: 15 | I43: 1720 | J43: ISOVAL | M43: ok
A44: COTAÇÃO | B44: Redução Concêntrica PEAD DE 110 x 75 | C44: un | D44: 3 | E44: 2 | F44: 1 | I44: 90 | J44: ECOPIPE 1107 | K44: 139 | L44: ISOVAL
A45: COTAÇÃO | B45: Bomba dosadora, do tipo diafragma a solenóide, para dosagem das soluções químicas de sulfato de alumínio e barrilha, com vazão regulável de 0 a 60 l/h, pressão de descarga de 4 bar, alimentação monofásica de 135 W, 220 V, 60 Hz. | C45: un | D45: 4 | E45: 1 | F45: 3 | I45: 3109 | J45: Emec-6117-13 | K45: 2796 | L45: EMEC-O1
A46: COTAÇÃO | B46: Compressor de ar direto, para mistura das soluções químicas, com vazão 2,3 pcm, pressão 40 psig, motor elétrico monofásico de 0,5 CV, 220 V, 60 Hz. | C46: un | D46: 4 | E46: 1 | F46: 3 | I46: 314.8 | J46: NowaK
A47: COTAÇÃO | B47: Tanque de PEAD, para preparo das soluções químicas de sulfato de alumínio e barrilha, com capacidade de 500 litros, tampa integral removível, com dispositivo de agitação por ar comprimido. | C47: un | D47: 4 | E47: 1 | F47: 3 | I47: 2970 | J47: TDO570S12-HD
A48: COTAÇÃO | B48: Conector paralelo | C48: un | D48: 3 | E48: 0 | F48: 3 | G48: 7.84 | H48: 0000-1563 | I48: R$_19,9 | J48: média tensão PP26746/2013
A49: COTAÇÃO | B49: Caixa para aterramento de 250 mm² | C49: un | D49: 4 | E49: 0 | F49: 4 | I49: 29 | J49: média tensão PP26746/2013
A50: COTAÇÃO | B50: Fivela para fita bandit 3/4" | C50: un | D50: 6 | E50: 0 | F50: 6 | I50: 1.3 | J50: média tensão PP26746/2013
A51: COTAÇÃO | B51: Suporte instalação equipamento | C51: un | D51: 1 | E51: 0 | F51: 1 | G51: 46.47 | H51: 0000-7576
A52: COTAÇÃO | B52: Manômetro de pressão (DN 100, 150, 200 mm) x DN 1 1/2" | C52: un | D52: 1 | E52: 0 | F52: 1 | G52: 110.59 | H52: 000-12898 | I52: 153 | J52: ISOVAL
A53: COTAÇÃO | B53: TÊ DE REDUÇÃO FOFO C/ FLANGES 150x50mm | C53: un | D53: 1 | E53: 0 | F53: 1 | I53: 404.61 | J53: Caetano - 7682 | K53: 478 | L53: DÚCTIL - D13-0256
B54: TOTAL | G54: 0 | I54: 0 | K54: 0
B56: PEDRA BRITADA
B57: MAQUINA DE SOLDA

Sheet PREÇOS COM REAJUSTAMENTO (hidden)
A4: COMPOSIÇÃO
A5: ÍTEM | B5: DESCRIÇÃO DE SERVIÇOS | C5: UNID. | D5: Quant. | E5: VALORES
E6: PREÇOS UNITÁRIOS
E7: P.UNIT. 2010 | F7: Atualização de preço pelo reajustamento | G7: P.UNIT. COM BDI | H7: Total
A9: COTAÇÃO
A11: COTAÇÃO | B11: Realização de testes pré-operacionais, com fornecimento dos produtos químicos necessários para um mês de operação, e treinamento de pessoal para operação e manutenção da ETA de 8,00 a 9,00 l/s | C11: un | D11: 1 | E11: 7982 | F11: =ROUND(E11*(1+F$56),2) -> 9788.83 | G11: =F11*(1+0.264) -> 12373.08112
A12: COTAÇÃO | B12: Instalações elétricas da Casa de Química, inclusive fornecimento do quadro de proteção e comando dos equipamentos e fluxostato para automação da dosagem química, para Estação de Tratamento de 4,00 a 16,00 l/s. | C12: un | D12: 1 | E12: 3276 | F12: =ROUND(E12*(1+F$56),2) -> 4017.56 | G12: =F12*(1+0.264) -> 5078.19584
B15: Período de referência dos índices:
B16: i - DEZ/2012 | D16: Mês de aniversário da Proposta
B17: o - DEZ/2009 | D17: Mês de apresentação da Proposta
A19: I. | B19: Formulário:
B20: sendo:
B21: R - Valor do reajustamento
B22: V - Valor a ser reajustado
A24: 1. | B24: AO 157956 - Terraplenagem (Coluna 38 da FGV)
B25: N1 | C25: 0.1
B26: Ti | C26: 221.327 | F26: =C25*((C26-C27)/C27) -> 0.01308233106
B27: To | C27: 195.722
A29: 2. | B29: AO 159428 - Edificações (Coluna 35 da FGV)
B30: N2 | C30: 0.3
B31: Ei | C31: 522.474 | F31: =C30*((C31-C32)/C32) -> 0.07226416752
B32: Eo | C32: 421.051
A34: 3. | B34: A1006821 - IPA-Origem-OG-DI-Prod. Ind. Transf.-Artigos de Borracha e de Material Plástico
B36: N4 | C36: 0.15
B37: MPi | C37: 133.203 | F37: =C36*((C37-C38)/C38) -> 0.03177596026
B38: MPo | C38: 109.918
A40: 4. | B40: A1006823 - IPA-Origem-OG-DI-Produtos Industrias - Indústria de Transformação-Metalurgica Básica
B43: N5 | C43: 0.3
B44: Fi | C44: 120.719 | F44: =C43*((C44-C45)/C45) -> 0.02650582858
B45: Fo | C45: 110.919
A47: 5. | B47: A1 006825 - IPA-Origem-OG-DI-Produtos Industrias - Ind. de Transformação-Máq. E Equipamentos
B50: N7 | C50: 0.3
B51: Mei | C51: 133.203 | F51: =C50*((C51-C52)/C52) -> 0.08273424705
B52: MEo | C52: 104.409
A55: Portanto:
E56: R = V * | F56: =F26+F31+F37+F44+F51 -> 0.2263625345

Sheet cronograma
A2: CRONOGRAMA FÍSICO - FINANCEIRO
A3: OBRA | C3: Execução de serviços remanescentes de Sistemas de Abastecimento de Água em comunidades rurais do município de Remanso - BA.
A5: ITEM | B5: ATIVIDADE | C5: VALOR TOTAL DO ITEM (R$) | E5: MESES | K5: SOMA (%)
E6: 1 | F6: 2 | G6: 3 | H6: 4 | I6: 5 | J6: 6
A7: 1 | B7: Serviços Preliminares
B8: ADMINISTRAÇÃO LOCAL E MANUTENÇÃO DE CANTEIRO DE OBRAS | C8: ='SERV. PRELIM.'!G8 -> 155673.17 | E8: =$C$8/6 -> 25945.52833 | F8: =$C$8/6 -> 25945.52833 | G8: =$C$8/6 -> 25945.52833 | H8: 25945.52833 | I8: 25945.52833 | J8: 25945.52833 | K8: =SUM(E9:J9) -> 1
E9: =E8/$C$8 -> 0.1666666667 | F9: =F8/$C$8 -> 0.1666666667 | G9: 0.1666666667 | H9: 0.1666666667 | I9: 0.1666666667 | J9: 0.1666666667
B10: PLACA DE IDENTIFICAÇÃO DE OBRA COM 4X3M - FORNECIMENTO E INSTALAÇÃO - MODELO CODEVASF-MI | C10: ='SERV. PRELIM.'!G9 -> 4291.2 | E10: =C10 -> 4291.2 | K10: =SUM(E11:J11) -> 1
E11: 1
B12: INSTALAÇÃO DE CANTEIRO DE OBRAS | C12: ='SERV. PRELIM.'!G10 -> 15588.6 | E12: =C12 -> 15588.6 | K12: =SUM(E13:J13) -> 1
E13: 1
B14: LIMPEZA DO TERRENO - RASPAGEM E LIMPEZA MANUAL | C14: ='SERV. PRELIM.'!G11 -> 1989 | E14: =C14 -> 1989 | K14: =SUM(E15:J15) -> 1
E15: 1
B16: MOBILIZAÇÃO DE EQUIPAMENTO E PESSOAS | C16: ='SERV. PRELIM.'!G12 -> 9662.75 | E16: =C16 -> 9662.75 | K16: =SUM(E17:J17) -> 1
E17: 1
B18: DESMOBILIZAÇÃO DE EQUIPAMENTO E PESSOAS | C18: ='SERV. PRELIM.'!G13 -> 9662.75 | J18: =C18 -> 9662.75 | K18: =SUM(E19:J19) -> 1
J19: 1
B20: CARREGO, TRANSPORTE E DESCARREGO DE MATERIAIS ORIUNDOS DO REMANESCENTE DE OBRA DO CONTRATO ANTERIOR | C20: ='SERV. PRELIM.'!G14 -> 1639.98 | E20: =C20 -> 1639.98 | K20: =SUM(E21:J21) -> 1
E21: 1
B22: ALUGUEL DE BANHEIROS QUIMICOS PARA O ABRIGO PROVISÓRIO | C22: ='SERV. PRELIM.'!G15 -> 3793.2 | E22: =C22 -> 3793.2 | K22: =SUM(E23:J23) -> 1
E23: 1
B24: VEÍCULO TIPO COMERCIAL LEVE 1.4 FLEX (85cv),C/ ARCONDICIONADO, DH, TE, PARA APOIO À FISCALIZAÇÃO, INCLUINDO DESPESAS COM COMBUSTÍVEL, ÓLEOS, MANUTENÇÃO, LICENCIAMENTO, SEGUROS E IMPOSTOS | C24: ='SERV. PRELIM.'!G16 -> 23423.58 | E24: =$C$24/6 -> 3903.93 | F24: =$C$24/6 -> 3903.93 | G24: 3903.93 | H24: 3903.93 | I24: 3903.93 | J24: 3903.93 | K24: =SUM(E25:J25) -> 1
E25: =E24/$C$24 -> 0.1666666667 | F25: =F24/$C$24 -> 0.1666666667 | G25: 0.1666666667 | H25: 0.1666666667 | I25: 0.1666666667 | J25: 0.1666666667
A26: 2 | B26: SUBSISTEMA 1
B27: SERVIÇOS | C27: ='Sistema 1'!I7 -> 336194.18 | E27: =$C$27/6 -> 56032.36333 | F27: =$C$27/6 -> 56032.36333 | G27: 56032.36333 | H27: 56032.36333 | I27: 56032.36333 | J27: 56032.36333 | K27: =SUM(E28:J28) -> 1
E28: =E27/$C$27 -> 0.1666666667 | F28: =F27/$C$27 -> 0.1666666667 | G28: 0.1666666667 | H28: 0.1666666667 | I28: 0.1666666667 | J28: 0.1666666667
B29: MATERIAIS | C29: ='Sistema 1'!I259 -> 72893.46 | E29: =$C$29/2 -> 36446.73 | F29: =$C$29/2 -> 36446.73 | K29: =SUM(E30:J30) -> 1
E30: =E29/$C$29 -> 0.5 | F30: =F29/$C$29 -> 0.5
A31: 3 | B31: SUBSISTEMA 2
B32: SERVIÇOS | C32: ='Sistema 2'!I9 -> 615197.63 | E32: =$C$32/6 -> 102532.9383 | F32: =$C$32/6 -> 102532.9383 | G32: 102532.9383 | H32: 102532.9383 | I32: 102532.9383 | J32: 102532.9383 | K32: =SUM(E33:J33) -> 1
E33: =E32/$C$32 -> 0.1666666667 | F33: =F32/$C$32 -> 0.1666666667 | G33: 0.1666666667 | H33: 0.1666666667 | I33: 0.1666666667 | J33: 0.1666666667
B34: MATERIAIS | C34: ='Sistema 2'!I271 -> 153133.68 | E34: =$C$34/2 -> 76566.84 | F34: =$C$34/2 -> 76566.84 | K34: =SUM(E35:J35) -> 1
E35: =E34/$C$34 -> 0.5 | F35: =F34/$C$34 -> 0.5
A36: 4 | B36: SUBSISTEMA 3
B37: SERVIÇOS | C37: ='Sistema 3'!I9 -> 478817.87 | E37: =$C$37/6 -> 79802.97833 | F37: =$C$37/6 -> 79802.97833 | G37: 79802.97833 | H37: 79802.97833 | I37: 79802.97833 | J37: 79802.97833 | K37: =SUM(E38:J38) -> 1
E38: =E37/$C$37 -> 0.1666666667 | F38: =F37/$C$37 -> 0.1666666667 | G38: 0.1666666667 | H38: 0.1666666667 | I38: 0.1666666667 | J38: 0.1666666667
B39: MATERIAIS | C39: ='Sistema 3'!I267 -> 205672.06 | E39: =$C$39/2 -> 102836.03 | F39: =$C$39/2 -> 102836.03 | K39: =SUM(E40:J40) -> 1
E40: =E39/$C$39 -> 0.5 | F40: =F39/$C$39 -> 0.5
A41: 5 | B41: SISTEMA DE AUTOMAÇÃO
B42: SERVIÇOS | C42: =Resumo!F12 -> 95482.62 | H42: =$C$42/3 -> 31827.54 | I42: =$C$42/3 -> 31827.54 | J42: 31827.54 | K42: =SUM(E43:J43) -> 1
H43: =H42/$C$42 -> 0.3333333333 | I43: =I42/$C$42 -> 0.3333333333 | J43: 0.3333333333
A44: TOTAIS : | C44: =SUM(C7:D43) -> 2183115.73 | E44: =E42+E39+E37+E34+E32+E29+E27+E24+E8 -> 484067.3383 | F44: 484067.3383 | G44: 268217.7383 | H44: 300045.2783 | I44: 300045.2783 | J44: 300045.2783 | K44: =(K42+K39+K37+K34+K32+K29+K27+K24+K8)/9 -> 1

Sheet Plan4 (hidden)
D2: COTAÇÃO DE MATERIAIS
C4: COTAÇÃO | D4: Bomba dosadora, do tipo diafragma a solenóide, para dosagem das soluções químicas de sulfato de alumínio e barrilha, com vazão regulável de 0 a 60 l/h, pressão de descarga de 4 bar, alimentação monofásica de 135 W, 220 V, 60 Hz. | E4: un | F4: 3
C5: COTAÇÃO | D5: CABO EPROTENAX 4 x 50 mm. | E5: m | F5: 1000
C6: COTAÇÃO | D6: Compressor de ar direto, para mistura das soluções químicas, com vazão 2,3 pcm, pressão 40 psig, motor elétrico monofásico de 0,5 CV, 220 V, 60 Hz. | E6: un | F6: 3
C7: COTAÇÃO | D7: Compressor de ar direto, para mistura das soluções químicas, com vazão 2,3 pcm, pressão 40 psig, motor elétrico monofásico de 0,5 CV, 220 V, 60 Hz. | E7: un | F7: 3
C8: COTAÇÃO | D8: Emenda ELASPEED – 1KV – L – EPD-2549 PARA CABO EPROTENAX 4 x 50 mm. | E8: un | F8: 16
C9: COTAÇÃO | D9: Emenda ELASPEED – 1KV – L – EPD-2549 PARA CABO EPROTENAX 4 x 50 mm. | E9: un | F9: 84
C10: COTAÇÃO | D10: Mangote Flexível REF CDF- HD DN 125 mm (KANAFLEX) | E10: m | F10: 15
C11: COTAÇÃO | D11: Mangote Flexível REF CDF- HD DN 150 mm (KANAFLEX) | E11: m | F11: 15
C12: COTAÇÃO | D12: Tubo de polietileno PEAD PE-80 PN 12,5 DN 160 mm | E12: m | F12: 284
